Body Name,Date Paid,Transaction Number,Amount,Supplier Name,Supplier Type,Expense Area,Cost Centre Description,Expense Type
Cambridgeshire County Council,22-Aug-17,24073768-15892748,-182987.8,Ameycespa Wm (East )Limited,Trade Supplier,Assets & Commissioning,Waste PFI,Landfill Tax
Cambridgeshire County Council,09-Aug-17,23913295-15820563,-16179.67,Metropolitan Housing Trust Ltd,Trust (Other),4 - Commissioning - Mental Health & Supporting People,Mental Health Vol Grants,Grants to Voluntary Bodies
Cambridgeshire County Council,16-Aug-17,23345627-15843672,-7266.05,Acorn Park School,Education,S&C,Placements - Education,Independent School Placements
Cambridgeshire County Council,31-Aug-17,24113737-15938579,-6000,Agile Applications Limited,Trade Supplier,Growth & Economy,"County Planning, Minerals & Waste",Computer software - annual licence agreement
Cambridgeshire County Council,17-Aug-17,23937076-15877661,-4655,Brookdale Healthcare Limited,Care Establishment,4 - Operations - Providers services,LDP Huntingdonshire Locality - Care,Respite Independent Sector
Cambridgeshire County Council,17-Aug-17,23939200-15877664,-4655,Brookdale Healthcare Limited,Care Establishment,2 - Operations - Learning Disability,LDP Hunts special needs,Respite Independent Sector
Cambridgeshire County Council,17-Aug-17,23975693-15877681,-4655,Brookdale Healthcare Limited,Care Establishment,4 - Operations - Providers services,LDP Huntingdonshire Locality - Care,Respite Independent Sector
Cambridgeshire County Council,17-Aug-17,23975699-15877682,-4655,Brookdale Healthcare Limited,Care Establishment,4 - Operations - Providers services,LDP Huntingdonshire Locality - Care,Respite Independent Sector
Cambridgeshire County Council,17-Aug-17,23975700-15877683,-4655,Brookdale Healthcare Limited,Care Establishment,4 - Operations - Providers services,LDP Huntingdonshire Locality - Care,Respite Independent Sector
Cambridgeshire County Council,17-Aug-17,23975710-15877687,-4655,Brookdale Healthcare Limited,Care Establishment,4 - Operations - Providers services,LDP Huntingdonshire Locality - Care,Respite Independent Sector
Cambridgeshire County Council,17-Aug-17,24047918-15877718,-4655,Brookdale Healthcare Limited,Care Establishment,2 - Operations - Learning Disability,LDP Hunts special needs,Respite Independent Sector
Cambridgeshire County Council,17-Aug-17,23939210-15877671,-4655,Brookdale Healthcare Limited,Care Establishment,2 - Operations - Learning Disability,LDP Hunts special needs,Respite Independent Sector
Cambridgeshire County Council,17-Aug-17,23937058-15877652,-4655,Brookdale Healthcare Limited,Care Establishment,2 - Operations - Learning Disability,LDP Hunts special needs,Respite Independent Sector
Cambridgeshire County Council,17-Aug-17,23937081-15877662,-4655,Brookdale Healthcare Limited,Care Establishment,2 - Operations - Learning Disability,LDP Hunts special needs,Respite Independent Sector
Cambridgeshire County Council,17-Aug-17,23939208-15877670,-4655,Brookdale Healthcare Limited,Care Establishment,2 - Operations - Learning Disability,LDP Hunts special needs,Respite Independent Sector
Cambridgeshire County Council,17-Aug-17,23975716-15877690,-4655,Brookdale Healthcare Limited,Care Establishment,2 - Operations - Learning Disability,LDP Hunts special needs,Respite Independent Sector
Cambridgeshire County Council,17-Aug-17,23975729-15877691,-4655,Brookdale Healthcare Limited,Care Establishment,4 - Operations - Providers services,LDP Huntingdonshire Locality - Care,Respite Independent Sector
Cambridgeshire County Council,17-Aug-17,24047903-15877703,-4655,Brookdale Healthcare Limited,Care Establishment,4 - Operations - Providers services,LDP Huntingdonshire Locality - Care,Respite Independent Sector
Cambridgeshire County Council,17-Aug-17,24047905-15877705,-4655,Brookdale Healthcare Limited,Care Establishment,4 - Operations - Providers services,LDP Huntingdonshire Locality - Care,Respite Independent Sector
Cambridgeshire County Council,17-Aug-17,23937066-15877655,-4655,Brookdale Healthcare Limited,Care Establishment,2 - Operations - Learning Disability,LDP Hunts special needs,Respite Independent Sector
Cambridgeshire County Council,17-Aug-17,23975704-15877685,-4655,Brookdale Healthcare Limited,Care Establishment,2 - Operations - Learning Disability,LDP Hunts special needs,Respite Independent Sector
Cambridgeshire County Council,17-Aug-17,24047910-15877710,-4655,Brookdale Healthcare Limited,Care Establishment,2 - Operations - Learning Disability,LDP Hunts special needs,Respite Independent Sector
Cambridgeshire County Council,17-Aug-17,24047912-15877712,-4655,Brookdale Healthcare Limited,Care Establishment,4 - Operations - Providers services,LDP Huntingdonshire Locality - Care,Respite Independent Sector
Cambridgeshire County Council,17-Aug-17,23975688-15877679,-4655,Brookdale Healthcare Limited,Care Establishment,4 - Operations - Providers services,LDP Huntingdonshire Locality - Care,Respite Independent Sector
Cambridgeshire County Council,17-Aug-17,24047901-15877701,-4655,Brookdale Healthcare Limited,Care Establishment,4 - Operations - Providers services,LDP Huntingdonshire Locality - Care,Respite Independent Sector
Cambridgeshire County Council,17-Aug-17,24047902-15877702,-4655,Brookdale Healthcare Limited,Care Establishment,4 - Operations - Providers services,LDP Huntingdonshire Locality - Care,Respite Independent Sector
Cambridgeshire County Council,17-Aug-17,23939201-15877665,-4655,Brookdale Healthcare Limited,Care Establishment,2 - Operations - Learning Disability,LDP Hunts special needs,Respite Independent Sector
Cambridgeshire County Council,17-Aug-17,23975673-15877673,-4655,Brookdale Healthcare Limited,Care Establishment,2 - Operations - Learning Disability,LDP Hunts special needs,Respite Independent Sector
Cambridgeshire County Council,17-Aug-17,24047900-15877700,-4655,Brookdale Healthcare Limited,Care Establishment,2 - Operations - Learning Disability,LDP Hunts special needs,Respite Independent Sector
Cambridgeshire County Council,17-Aug-17,23937073-15877660,-4655,Brookdale Healthcare Limited,Care Establishment,2 - Operations - Learning Disability,LDP Hunts special needs,Respite Independent Sector
Cambridgeshire County Council,17-Aug-17,24047908-15877708,-4655,Brookdale Healthcare Limited,Care Establishment,2 - Operations - Learning Disability,LDP Hunts special needs,Respite Independent Sector
Cambridgeshire County Council,24-Aug-17,24096682-15918442,-4655,Brookdale Healthcare Limited,Care Establishment,2 - Operations - Learning Disability,LDP Hunts special needs,Respite Independent Sector
Cambridgeshire County Council,24-Aug-17,24096683-15918443,-4655,Brookdale Healthcare Limited,Care Establishment,2 - Operations - Learning Disability,LDP Hunts special needs,Respite Independent Sector
Cambridgeshire County Council,24-Aug-17,24096671-15918431,-4655,Brookdale Healthcare Limited,Care Establishment,4 - Operations - Providers services,LDP Huntingdonshire Locality - Care,Respite Independent Sector
Cambridgeshire County Council,24-Aug-17,24096674-15918434,-4655,Brookdale Healthcare Limited,Care Establishment,4 - Operations - Providers services,LDP Huntingdonshire Locality - Care,Respite Independent Sector
Cambridgeshire County Council,24-Aug-17,24096684-15918444,-4655,Brookdale Healthcare Limited,Care Establishment,4 - Operations - Providers services,LDP Huntingdonshire Locality - Care,Respite Independent Sector
Cambridgeshire County Council,24-Aug-17,24096675-15918435,-4655,Brookdale Healthcare Limited,Care Establishment,4 - Operations - Providers services,LDP Huntingdonshire Locality - Care,Respite Independent Sector
Cambridgeshire County Council,24-Aug-17,24096678-15918438,-4655,Brookdale Healthcare Limited,Care Establishment,2 - Operations - Learning Disability,LDP Hunts special needs,Respite Independent Sector
Cambridgeshire County Council,24-Aug-17,24096676-15918436,-4655,Brookdale Healthcare Limited,Care Establishment,2 - Operations - Learning Disability,LDP Hunts special needs,Respite Independent Sector
Cambridgeshire County Council,24-Aug-17,24096680-15918440,-4655,Brookdale Healthcare Limited,Care Establishment,2 - Operations - Learning Disability,LDP Hunts special needs,Respite Independent Sector
Cambridgeshire County Council,10-Aug-17,23493094-15826438,-4085.64,Banya Family Placement Agency,Care Establishment,S&C,Placements - Social Care,Agency Placements - Out County
Cambridgeshire County Council,29-Aug-17,23954869-15928107,-3333,The Mary Hare Primary School,Education,S&C,Placements - Education,Independent School Placements
Cambridgeshire County Council,29-Aug-17,24053681-15928110,-3333,The Mary Hare Primary School,Education,S&C,Placements - Education,Independent School Placements
Cambridgeshire County Council,17-Aug-17,24047919-15877719,-3325,Brookdale Healthcare Limited,Care Establishment,4 - Operations - Providers services,LDP Huntingdonshire Locality - Care,Respite Independent Sector
Cambridgeshire County Council,17-Aug-17,23975672-15877672,-3325,Brookdale Healthcare Limited,Care Establishment,2 - Operations - Learning Disability,LDP Hunts special needs,Respite Independent Sector
Cambridgeshire County Council,17-Aug-17,23937064-15877654,-3325,Brookdale Healthcare Limited,Care Establishment,4 - Operations - Providers services,LDP Huntingdonshire Locality - Care,Respite Independent Sector
Cambridgeshire County Council,24-Aug-17,24096669-15918429,-3325,Brookdale Healthcare Limited,Care Establishment,2 - Operations - Learning Disability,LDP Hunts special needs,Respite Independent Sector
Cambridgeshire County Council,24-Aug-17,24103247-15910984,-2979.06,Fitzroy Supported,Care Establishment,2 - Operations - Learning Disability,LDP Fenland Locality - Care,Supported Living
Cambridgeshire County Council,24-Aug-17,24103250-15910987,-2979.06,Fitzroy Supported,Care Establishment,2 - Operations - Learning Disability,LDP Fenland Locality - Care,Supported Living
Cambridgeshire County Council,24-Aug-17,24103249-15910986,-2979.06,Fitzroy Supported,Care Establishment,2 - Operations - Learning Disability,LDP Fenland Locality - Care,Supported Living
Cambridgeshire County Council,24-Aug-17,24103246-15910983,-2979.06,Fitzroy Supported,Care Establishment,2 - Operations - Learning Disability,LDP Fenland Locality - Care,Supported Living
Cambridgeshire County Council,10-Aug-17,23970916-15822796,-2977.44,Decoy Farm,Care Establishment,4 - Operations - Providers services,LDP E Cambs Special Needs,Residential Independent Sector
Cambridgeshire County Council,10-Aug-17,23970929-15822809,-2977.44,Decoy Farm,Care Establishment,4 - Operations - Providers services,LDP E Cambs Special Needs,Residential Independent Sector
Cambridgeshire County Council,10-Aug-17,23970935-15822815,-2977.44,Decoy Farm,Care Establishment,4 - Operations - Providers services,LDP E Cambs Special Needs,Residential Independent Sector
Cambridgeshire County Council,10-Aug-17,23970946-15822826,-2977.44,Decoy Farm,Care Establishment,4 - Operations - Providers services,LDP E Cambs Special Needs,Residential Independent Sector
Cambridgeshire County Council,10-Aug-17,23970949-15822829,-2977.44,Decoy Farm,Care Establishment,4 - Operations - Providers services,LDP E Cambs Special Needs,Residential Independent Sector
Cambridgeshire County Council,10-Aug-17,23971017-15822846,-2977.44,Decoy Farm,Care Establishment,4 - Operations - Providers services,LDP E Cambs Special Needs,Residential Independent Sector
Cambridgeshire County Council,10-Aug-17,23971043-15822872,-2977.44,Decoy Farm,Care Establishment,4 - Operations - Providers services,LDP E Cambs Special Needs,Residential Independent Sector
Cambridgeshire County Council,10-Aug-17,23971051-15822880,-2977.44,Decoy Farm,Care Establishment,4 - Operations - Providers services,LDP E Cambs Special Needs,Residential Independent Sector
Cambridgeshire County Council,10-Aug-17,23970972-15822902,-2977.44,Decoy Farm,Care Establishment,4 - Operations - Providers services,LDP E Cambs Special Needs,Residential Independent Sector
Cambridgeshire County Council,10-Aug-17,23970987-15822917,-2977.44,Decoy Farm,Care Establishment,4 - Operations - Providers services,LDP E Cambs Special Needs,Residential Independent Sector
Cambridgeshire County Council,10-Aug-17,23973002-15823003,-2977.44,Decoy Farm,Care Establishment,4 - Operations - Providers services,LDP E Cambs Special Needs,Residential Independent Sector
Cambridgeshire County Council,10-Aug-17,23975850-15823030,-2977.44,Decoy Farm,Care Establishment,4 - Operations - Providers services,LDP E Cambs Special Needs,Residential Independent Sector
Cambridgeshire County Council,10-Aug-17,23975867-15823047,-2977.44,Decoy Farm,Care Establishment,4 - Operations - Providers services,LDP E Cambs Special Needs,Residential Independent Sector
Cambridgeshire County Council,10-Aug-17,23970922-15822802,-2977.44,Decoy Farm,Care Establishment,4 - Operations - Providers services,LDP E Cambs Special Needs,Residential Independent Sector
Cambridgeshire County Council,10-Aug-17,23970932-15822812,-2977.44,Decoy Farm,Care Establishment,4 - Operations - Providers services,LDP E Cambs Special Needs,Residential Independent Sector
Cambridgeshire County Council,10-Aug-17,23970956-15822836,-2977.44,Decoy Farm,Care Establishment,4 - Operations - Providers services,LDP E Cambs Special Needs,Residential Independent Sector
Cambridgeshire County Council,10-Aug-17,23971033-15822862,-2977.44,Decoy Farm,Care Establishment,4 - Operations - Providers services,LDP E Cambs Special Needs,Residential Independent Sector
Cambridgeshire County Council,10-Aug-17,23971053-15822882,-2977.44,Decoy Farm,Care Establishment,4 - Operations - Providers services,LDP E Cambs Special Needs,Residential Independent Sector
Cambridgeshire County Council,10-Aug-17,23971060-15822889,-2977.44,Decoy Farm,Care Establishment,4 - Operations - Providers services,LDP E Cambs Special Needs,Residential Independent Sector
Cambridgeshire County Council,10-Aug-17,23970963-15822893,-2977.44,Decoy Farm,Care Establishment,4 - Operations - Providers services,LDP E Cambs Special Needs,Residential Independent Sector
Cambridgeshire County Council,10-Aug-17,23970971-15822901,-2977.44,Decoy Farm,Care Establishment,4 - Operations - Providers services,LDP E Cambs Special Needs,Residential Independent Sector
Cambridgeshire County Council,10-Aug-17,23970991-15822921,-2977.44,Decoy Farm,Care Establishment,4 - Operations - Providers services,LDP E Cambs Special Needs,Residential Independent Sector
Cambridgeshire County Council,10-Aug-17,23973036-15822955,-2977.44,Decoy Farm,Care Establishment,4 - Operations - Providers services,LDP E Cambs Special Needs,Residential Independent Sector
Cambridgeshire County Council,10-Aug-17,23973053-15822972,-2977.44,Decoy Farm,Care Establishment,4 - Operations - Providers services,LDP E Cambs Special Needs,Residential Independent Sector
Cambridgeshire County Council,10-Aug-17,23973010-15823011,-2977.44,Decoy Farm,Care Establishment,4 - Operations - Providers services,LDP E Cambs Special Needs,Residential Independent Sector
Cambridgeshire County Council,10-Aug-17,23975863-15823043,-2977.44,Decoy Farm,Care Establishment,4 - Operations - Providers services,LDP E Cambs Special Needs,Residential Independent Sector
Cambridgeshire County Council,10-Aug-17,23970924-15822804,-2977.44,Decoy Farm,Care Establishment,4 - Operations - Providers services,LDP E Cambs Special Needs,Residential Independent Sector
Cambridgeshire County Council,10-Aug-17,23970934-15822814,-2977.44,Decoy Farm,Care Establishment,4 - Operations - Providers services,LDP E Cambs Special Needs,Residential Independent Sector
Cambridgeshire County Council,10-Aug-17,23970950-15822830,-2977.44,Decoy Farm,Care Establishment,4 - Operations - Providers services,LDP E Cambs Special Needs,Residential Independent Sector
Cambridgeshire County Council,10-Aug-17,23971061-15822890,-2977.44,Decoy Farm,Care Establishment,4 - Operations - Providers services,LDP E Cambs Special Needs,Residential Independent Sector
Cambridgeshire County Council,10-Aug-17,23970975-15822905,-2977.44,Decoy Farm,Care Establishment,4 - Operations - Providers services,LDP E Cambs Special Needs,Residential Independent Sector
Cambridgeshire County Council,10-Aug-17,23970978-15822908,-2977.44,Decoy Farm,Care Establishment,4 - Operations - Providers services,LDP E Cambs Special Needs,Residential Independent Sector
Cambridgeshire County Council,10-Aug-17,23970999-15822929,-2977.44,Decoy Farm,Care Establishment,4 - Operations - Providers services,LDP E Cambs Special Needs,Residential Independent Sector
Cambridgeshire County Council,10-Aug-17,23971008-15822938,-2977.44,Decoy Farm,Care Establishment,4 - Operations - Providers services,LDP E Cambs Special Needs,Residential Independent Sector
Cambridgeshire County Council,10-Aug-17,23973060-15822979,-2977.44,Decoy Farm,Care Establishment,4 - Operations - Providers services,LDP E Cambs Special Needs,Residential Independent Sector
Cambridgeshire County Council,10-Aug-17,23972987-15822988,-2977.44,Decoy Farm,Care Establishment,4 - Operations - Providers services,LDP E Cambs Special Needs,Residential Independent Sector
Cambridgeshire County Council,10-Aug-17,23973008-15823009,-2977.44,Decoy Farm,Care Establishment,4 - Operations - Providers services,LDP E Cambs Special Needs,Residential Independent Sector
Cambridgeshire County Council,10-Aug-17,23975848-15823028,-2977.44,Decoy Farm,Care Establishment,4 - Operations - Providers services,LDP E Cambs Special Needs,Residential Independent Sector
Cambridgeshire County Council,10-Aug-17,23975849-15823029,-2977.44,Decoy Farm,Care Establishment,4 - Operations - Providers services,LDP E Cambs Special Needs,Residential Independent Sector
Cambridgeshire County Council,10-Aug-17,23975855-15823035,-2977.44,Decoy Farm,Care Establishment,4 - Operations - Providers services,LDP E Cambs Special Needs,Residential Independent Sector
Cambridgeshire County Council,10-Aug-17,23975864-15823044,-2977.44,Decoy Farm,Care Establishment,4 - Operations - Providers services,LDP E Cambs Special Needs,Residential Independent Sector
Cambridgeshire County Council,10-Aug-17,23975866-15823046,-2977.44,Decoy Farm,Care Establishment,4 - Operations - Providers services,LDP E Cambs Special Needs,Residential Independent Sector
Cambridgeshire County Council,10-Aug-17,23970939-15822819,-2977.44,Decoy Farm,Care Establishment,4 - Operations - Providers services,LDP E Cambs Special Needs,Residential Independent Sector
Cambridgeshire County Council,10-Aug-17,23970945-15822825,-2977.44,Decoy Farm,Care Establishment,4 - Operations - Providers services,LDP E Cambs Special Needs,Residential Independent Sector
Cambridgeshire County Council,10-Aug-17,23971019-15822848,-2977.44,Decoy Farm,Care Establishment,4 - Operations - Providers services,LDP E Cambs Special Needs,Residential Independent Sector
Cambridgeshire County Council,10-Aug-17,23971020-15822849,-2977.44,Decoy Farm,Care Establishment,4 - Operations - Providers services,LDP E Cambs Special Needs,Residential Independent Sector
Cambridgeshire County Council,10-Aug-17,23971000-15822930,-2977.44,Decoy Farm,Care Establishment,4 - Operations - Providers services,LDP E Cambs Special Needs,Residential Independent Sector
Cambridgeshire County Council,10-Aug-17,23971004-15822934,-2977.44,Decoy Farm,Care Establishment,4 - Operations - Providers services,LDP E Cambs Special Needs,Residential Independent Sector
Cambridgeshire County Council,10-Aug-17,23973028-15822947,-2977.44,Decoy Farm,Care Establishment,4 - Operations - Providers services,LDP E Cambs Special Needs,Residential Independent Sector
Cambridgeshire County Council,10-Aug-17,23973001-15823002,-2977.44,Decoy Farm,Care Establishment,4 - Operations - Providers services,LDP E Cambs Special Needs,Residential Independent Sector
Cambridgeshire County Council,10-Aug-17,23973011-15823012,-2977.44,Decoy Farm,Care Establishment,4 - Operations - Providers services,LDP E Cambs Special Needs,Residential Independent Sector
Cambridgeshire County Council,10-Aug-17,23975847-15823027,-2977.44,Decoy Farm,Care Establishment,4 - Operations - Providers services,LDP E Cambs Special Needs,Residential Independent Sector
Cambridgeshire County Council,10-Aug-17,23970912-15822792,-2977.44,Decoy Farm,Care Establishment,4 - Operations - Providers services,LDP E Cambs Special Needs,Residential Independent Sector
Cambridgeshire County Council,10-Aug-17,23970918-15822798,-2977.44,Decoy Farm,Care Establishment,4 - Operations - Providers services,LDP E Cambs Special Needs,Residential Independent Sector
Cambridgeshire County Council,10-Aug-17,23970941-15822821,-2977.44,Decoy Farm,Care Establishment,4 - Operations - Providers services,LDP E Cambs Special Needs,Residential Independent Sector
Cambridgeshire County Council,10-Aug-17,23970952-15822832,-2977.44,Decoy Farm,Care Establishment,4 - Operations - Providers services,LDP E Cambs Special Needs,Residential Independent Sector
Cambridgeshire County Council,10-Aug-17,23970961-15822841,-2977.44,Decoy Farm,Care Establishment,4 - Operations - Providers services,LDP E Cambs Special Needs,Residential Independent Sector
Cambridgeshire County Council,10-Aug-17,23971021-15822850,-2977.44,Decoy Farm,Care Establishment,4 - Operations - Providers services,LDP E Cambs Special Needs,Residential Independent Sector
Cambridgeshire County Council,10-Aug-17,23971027-15822856,-2977.44,Decoy Farm,Care Establishment,4 - Operations - Providers services,LDP E Cambs Special Needs,Residential Independent Sector
Cambridgeshire County Council,10-Aug-17,23971031-15822860,-2977.44,Decoy Farm,Care Establishment,4 - Operations - Providers services,LDP E Cambs Special Needs,Residential Independent Sector
Cambridgeshire County Council,10-Aug-17,23971037-15822866,-2977.44,Decoy Farm,Care Establishment,4 - Operations - Providers services,LDP E Cambs Special Needs,Residential Independent Sector
Cambridgeshire County Council,10-Aug-17,23971046-15822875,-2977.44,Decoy Farm,Care Establishment,4 - Operations - Providers services,LDP E Cambs Special Needs,Residential Independent Sector
Cambridgeshire County Council,10-Aug-17,23971047-15822876,-2977.44,Decoy Farm,Care Establishment,4 - Operations - Providers services,LDP E Cambs Special Needs,Residential Independent Sector
Cambridgeshire County Council,10-Aug-17,23971054-15822883,-2977.44,Decoy Farm,Care Establishment,4 - Operations - Providers services,LDP E Cambs Special Needs,Residential Independent Sector
Cambridgeshire County Council,10-Aug-17,23971055-15822884,-2977.44,Decoy Farm,Care Establishment,4 - Operations - Providers services,LDP E Cambs Special Needs,Residential Independent Sector
Cambridgeshire County Council,10-Aug-17,23970964-15822894,-2977.44,Decoy Farm,Care Establishment,4 - Operations - Providers services,LDP E Cambs Special Needs,Residential Independent Sector
Cambridgeshire County Council,10-Aug-17,23970969-15822899,-2977.44,Decoy Farm,Care Establishment,4 - Operations - Providers services,LDP E Cambs Special Needs,Residential Independent Sector
Cambridgeshire County Council,10-Aug-17,23971002-15822932,-2977.44,Decoy Farm,Care Establishment,4 - Operations - Providers services,LDP E Cambs Special Needs,Residential Independent Sector
Cambridgeshire County Council,10-Aug-17,23973039-15822958,-2977.44,Decoy Farm,Care Establishment,4 - Operations - Providers services,LDP E Cambs Special Needs,Residential Independent Sector
Cambridgeshire County Council,10-Aug-17,23973043-15822962,-2977.44,Decoy Farm,Care Establishment,4 - Operations - Providers services,LDP E Cambs Special Needs,Residential Independent Sector
Cambridgeshire County Council,10-Aug-17,23973050-15822969,-2977.44,Decoy Farm,Care Establishment,4 - Operations - Providers services,LDP E Cambs Special Needs,Residential Independent Sector
Cambridgeshire County Council,10-Aug-17,23973004-15823005,-2977.44,Decoy Farm,Care Establishment,4 - Operations - Providers services,LDP E Cambs Special Needs,Residential Independent Sector
Cambridgeshire County Council,10-Aug-17,23973016-15823017,-2977.44,Decoy Farm,Care Establishment,4 - Operations - Providers services,LDP E Cambs Special Needs,Residential Independent Sector
Cambridgeshire County Council,10-Aug-17,23975852-15823032,-2977.44,Decoy Farm,Care Establishment,4 - Operations - Providers services,LDP E Cambs Special Needs,Residential Independent Sector
Cambridgeshire County Council,10-Aug-17,23970940-15822820,-2977.44,Decoy Farm,Care Establishment,4 - Operations - Providers services,LDP E Cambs Special Needs,Residential Independent Sector
Cambridgeshire County Council,10-Aug-17,23971048-15822877,-2977.44,Decoy Farm,Care Establishment,4 - Operations - Providers services,LDP E Cambs Special Needs,Residential Independent Sector
Cambridgeshire County Council,10-Aug-17,23971059-15822888,-2977.44,Decoy Farm,Care Establishment,4 - Operations - Providers services,LDP E Cambs Special Needs,Residential Independent Sector
Cambridgeshire County Council,10-Aug-17,23970973-15822903,-2977.44,Decoy Farm,Care Establishment,4 - Operations - Providers services,LDP E Cambs Special Needs,Residential Independent Sector
Cambridgeshire County Council,10-Aug-17,23970983-15822913,-2977.44,Decoy Farm,Care Establishment,4 - Operations - Providers services,LDP E Cambs Special Needs,Residential Independent Sector
Cambridgeshire County Council,10-Aug-17,23970993-15822923,-2977.44,Decoy Farm,Care Establishment,4 - Operations - Providers services,LDP E Cambs Special Needs,Residential Independent Sector
Cambridgeshire County Council,10-Aug-17,23970995-15822925,-2977.44,Decoy Farm,Care Establishment,4 - Operations - Providers services,LDP E Cambs Special Needs,Residential Independent Sector
Cambridgeshire County Council,10-Aug-17,23970997-15822927,-2977.44,Decoy Farm,Care Establishment,4 - Operations - Providers services,LDP E Cambs Special Needs,Residential Independent Sector
Cambridgeshire County Council,10-Aug-17,23970998-15822928,-2977.44,Decoy Farm,Care Establishment,4 - Operations - Providers services,LDP E Cambs Special Needs,Residential Independent Sector
Cambridgeshire County Council,10-Aug-17,23973026-15822945,-2977.44,Decoy Farm,Care Establishment,4 - Operations - Providers services,LDP E Cambs Special Needs,Residential Independent Sector
Cambridgeshire County Council,10-Aug-17,23973063-15822982,-2977.44,Decoy Farm,Care Establishment,4 - Operations - Providers services,LDP E Cambs Special Needs,Residential Independent Sector
Cambridgeshire County Council,10-Aug-17,23973066-15822985,-2977.44,Decoy Farm,Care Establishment,4 - Operations - Providers services,LDP E Cambs Special Needs,Residential Independent Sector
Cambridgeshire County Council,10-Aug-17,23972988-15822989,-2977.44,Decoy Farm,Care Establishment,4 - Operations - Providers services,LDP E Cambs Special Needs,Residential Independent Sector
Cambridgeshire County Council,10-Aug-17,23973000-15823001,-2977.44,Decoy Farm,Care Establishment,4 - Operations - Providers services,LDP E Cambs Special Needs,Residential Independent Sector
Cambridgeshire County Council,10-Aug-17,23973024-15823025,-2977.44,Decoy Farm,Care Establishment,4 - Operations - Providers services,LDP E Cambs Special Needs,Residential Independent Sector
Cambridgeshire County Council,10-Aug-17,23975861-15823041,-2977.44,Decoy Farm,Care Establishment,4 - Operations - Providers services,LDP E Cambs Special Needs,Residential Independent Sector
Cambridgeshire County Council,10-Aug-17,23975862-15823042,-2977.44,Decoy Farm,Care Establishment,4 - Operations - Providers services,LDP E Cambs Special Needs,Residential Independent Sector
Cambridgeshire County Council,10-Aug-17,23970926-15822806,-2977.44,Decoy Farm,Care Establishment,4 - Operations - Providers services,LDP E Cambs Special Needs,Residential Independent Sector
Cambridgeshire County Council,10-Aug-17,23970930-15822810,-2977.44,Decoy Farm,Care Establishment,4 - Operations - Providers services,LDP E Cambs Special Needs,Residential Independent Sector
Cambridgeshire County Council,10-Aug-17,23970943-15822823,-2977.44,Decoy Farm,Care Establishment,4 - Operations - Providers services,LDP E Cambs Special Needs,Residential Independent Sector
Cambridgeshire County Council,10-Aug-17,23971022-15822851,-2977.44,Decoy Farm,Care Establishment,4 - Operations - Providers services,LDP E Cambs Special Needs,Residential Independent Sector
Cambridgeshire County Council,10-Aug-17,23971036-15822865,-2977.44,Decoy Farm,Care Establishment,4 - Operations - Providers services,LDP E Cambs Special Needs,Residential Independent Sector
Cambridgeshire County Council,10-Aug-17,23971042-15822871,-2977.44,Decoy Farm,Care Establishment,4 - Operations - Providers services,LDP E Cambs Special Needs,Residential Independent Sector
Cambridgeshire County Council,10-Aug-17,23971045-15822874,-2977.44,Decoy Farm,Care Establishment,4 - Operations - Providers services,LDP E Cambs Special Needs,Residential Independent Sector
Cambridgeshire County Council,10-Aug-17,23971056-15822885,-2977.44,Decoy Farm,Care Establishment,4 - Operations - Providers services,LDP E Cambs Special Needs,Residential Independent Sector
Cambridgeshire County Council,10-Aug-17,23971063-15822892,-2977.44,Decoy Farm,Care Establishment,4 - Operations - Providers services,LDP E Cambs Special Needs,Residential Independent Sector
Cambridgeshire County Council,10-Aug-17,23970976-15822906,-2977.44,Decoy Farm,Care Establishment,4 - Operations - Providers services,LDP E Cambs Special Needs,Residential Independent Sector
Cambridgeshire County Council,10-Aug-17,23970992-15822922,-2977.44,Decoy Farm,Care Establishment,4 - Operations - Providers services,LDP E Cambs Special Needs,Residential Independent Sector
Cambridgeshire County Council,10-Aug-17,23973027-15822946,-2977.44,Decoy Farm,Care Establishment,4 - Operations - Providers services,LDP E Cambs Special Needs,Residential Independent Sector
Cambridgeshire County Council,10-Aug-17,23973029-15822948,-2977.44,Decoy Farm,Care Establishment,4 - Operations - Providers services,LDP E Cambs Special Needs,Residential Independent Sector
Cambridgeshire County Council,10-Aug-17,23973048-15822967,-2977.44,Decoy Farm,Care Establishment,4 - Operations - Providers services,LDP E Cambs Special Needs,Residential Independent Sector
Cambridgeshire County Council,10-Aug-17,23972990-15822991,-2977.44,Decoy Farm,Care Establishment,4 - Operations - Providers services,LDP E Cambs Special Needs,Residential Independent Sector
Cambridgeshire County Council,10-Aug-17,23972992-15822993,-2977.44,Decoy Farm,Care Establishment,4 - Operations - Providers services,LDP E Cambs Special Needs,Residential Independent Sector
Cambridgeshire County Council,10-Aug-17,23972996-15822997,-2977.44,Decoy Farm,Care Establishment,4 - Operations - Providers services,LDP E Cambs Special Needs,Residential Independent Sector
Cambridgeshire County Council,10-Aug-17,23973018-15823019,-2977.44,Decoy Farm,Care Establishment,4 - Operations - Providers services,LDP E Cambs Special Needs,Residential Independent Sector
Cambridgeshire County Council,10-Aug-17,23970927-15822807,-2977.44,Decoy Farm,Care Establishment,4 - Operations - Providers services,LDP E Cambs Special Needs,Residential Independent Sector
Cambridgeshire County Council,10-Aug-17,23970928-15822808,-2977.44,Decoy Farm,Care Establishment,4 - Operations - Providers services,LDP E Cambs Special Needs,Residential Independent Sector
Cambridgeshire County Council,10-Aug-17,23970947-15822827,-2977.44,Decoy Farm,Care Establishment,4 - Operations - Providers services,LDP E Cambs Special Needs,Residential Independent Sector
Cambridgeshire County Council,10-Aug-17,23970959-15822839,-2977.44,Decoy Farm,Care Establishment,4 - Operations - Providers services,LDP E Cambs Special Needs,Residential Independent Sector
Cambridgeshire County Council,10-Aug-17,23971032-15822861,-2977.44,Decoy Farm,Care Establishment,4 - Operations - Providers services,LDP E Cambs Special Needs,Residential Independent Sector
Cambridgeshire County Council,10-Aug-17,23971034-15822863,-2977.44,Decoy Farm,Care Establishment,4 - Operations - Providers services,LDP E Cambs Special Needs,Residential Independent Sector
Cambridgeshire County Council,10-Aug-17,23970965-15822895,-2977.44,Decoy Farm,Care Establishment,4 - Operations - Providers services,LDP E Cambs Special Needs,Residential Independent Sector
Cambridgeshire County Council,10-Aug-17,23970996-15822926,-2977.44,Decoy Farm,Care Establishment,4 - Operations - Providers services,LDP E Cambs Special Needs,Residential Independent Sector
Cambridgeshire County Council,10-Aug-17,23971013-15822943,-2977.44,Decoy Farm,Care Establishment,4 - Operations - Providers services,LDP E Cambs Special Needs,Residential Independent Sector
Cambridgeshire County Council,10-Aug-17,23973045-15822964,-2977.44,Decoy Farm,Care Establishment,4 - Operations - Providers services,LDP E Cambs Special Needs,Residential Independent Sector
Cambridgeshire County Council,10-Aug-17,23973056-15822975,-2977.44,Decoy Farm,Care Establishment,4 - Operations - Providers services,LDP E Cambs Special Needs,Residential Independent Sector
Cambridgeshire County Council,10-Aug-17,23972994-15822995,-2977.44,Decoy Farm,Care Establishment,4 - Operations - Providers services,LDP E Cambs Special Needs,Residential Independent Sector
Cambridgeshire County Council,10-Aug-17,23972997-15822998,-2977.44,Decoy Farm,Care Establishment,4 - Operations - Providers services,LDP E Cambs Special Needs,Residential Independent Sector
Cambridgeshire County Council,10-Aug-17,23975854-15823034,-2977.44,Decoy Farm,Care Establishment,4 - Operations - Providers services,LDP E Cambs Special Needs,Residential Independent Sector
Cambridgeshire County Council,24-Aug-17,24097051-15911753,-2977.44,Decoy Farm,Care Establishment,4 - Operations - Providers services,LDP E Cambs Special Needs,Residential Independent Sector
Cambridgeshire County Council,24-Aug-17,24097052-15911754,-2977.44,Decoy Farm,Care Establishment,4 - Operations - Providers services,LDP E Cambs Special Needs,Residential Independent Sector
Cambridgeshire County Council,24-Aug-17,24097055-15911757,-2977.44,Decoy Farm,Care Establishment,4 - Operations - Providers services,LDP E Cambs Special Needs,Residential Independent Sector
Cambridgeshire County Council,24-Aug-17,24097065-15911767,-2977.44,Decoy Farm,Care Establishment,4 - Operations - Providers services,LDP E Cambs Special Needs,Residential Independent Sector
Cambridgeshire County Council,24-Aug-17,24038134-15911466,-2977.44,Decoy Farm,Care Establishment,4 - Operations - Providers services,LDP E Cambs Special Needs,Residential Independent Sector
Cambridgeshire County Council,24-Aug-17,24038139-15911471,-2977.44,Decoy Farm,Care Establishment,4 - Operations - Providers services,LDP E Cambs Special Needs,Residential Independent Sector
Cambridgeshire County Council,24-Aug-17,24038141-15911473,-2977.44,Decoy Farm,Care Establishment,4 - Operations - Providers services,LDP E Cambs Special Needs,Residential Independent Sector
Cambridgeshire County Council,24-Aug-17,24038072-15911485,-2977.44,Decoy Farm,Care Establishment,4 - Operations - Providers services,LDP E Cambs Special Needs,Residential Independent Sector
Cambridgeshire County Council,24-Aug-17,24038074-15911487,-2977.44,Decoy Farm,Care Establishment,4 - Operations - Providers services,LDP E Cambs Special Needs,Residential Independent Sector
Cambridgeshire County Council,24-Aug-17,24038082-15911495,-2977.44,Decoy Farm,Care Establishment,4 - Operations - Providers services,LDP E Cambs Special Needs,Residential Independent Sector
Cambridgeshire County Council,24-Aug-17,24038085-15911496,-2977.44,Decoy Farm,Care Establishment,4 - Operations - Providers services,LDP E Cambs Special Needs,Residential Independent Sector
Cambridgeshire County Council,24-Aug-17,24038113-15911522,-2977.44,Decoy Farm,Care Establishment,4 - Operations - Providers services,LDP E Cambs Special Needs,Residential Independent Sector
Cambridgeshire County Council,24-Aug-17,24045363-15911542,-2977.44,Decoy Farm,Care Establishment,4 - Operations - Providers services,LDP E Cambs Special Needs,Residential Independent Sector
Cambridgeshire County Council,24-Aug-17,24045372-15911551,-2977.44,Decoy Farm,Care Establishment,4 - Operations - Providers services,LDP E Cambs Special Needs,Residential Independent Sector
Cambridgeshire County Council,24-Aug-17,24045379-15911558,-2977.44,Decoy Farm,Care Establishment,4 - Operations - Providers services,LDP E Cambs Special Needs,Residential Independent Sector
Cambridgeshire County Council,24-Aug-17,24045404-15911582,-2977.44,Decoy Farm,Care Establishment,4 - Operations - Providers services,LDP E Cambs Special Needs,Residential Independent Sector
Cambridgeshire County Council,24-Aug-17,24045426-15911601,-2977.44,Decoy Farm,Care Establishment,4 - Operations - Providers services,LDP E Cambs Special Needs,Residential Independent Sector
Cambridgeshire County Council,24-Aug-17,24045437-15911612,-2977.44,Decoy Farm,Care Establishment,4 - Operations - Providers services,LDP E Cambs Special Needs,Residential Independent Sector
Cambridgeshire County Council,24-Aug-17,24045438-15911613,-2977.44,Decoy Farm,Care Establishment,4 - Operations - Providers services,LDP E Cambs Special Needs,Residential Independent Sector
Cambridgeshire County Council,24-Aug-17,24045446-15911621,-2977.44,Decoy Farm,Care Establishment,4 - Operations - Providers services,LDP E Cambs Special Needs,Residential Independent Sector
Cambridgeshire County Council,24-Aug-17,24045311-15911674,-2977.44,Decoy Farm,Care Establishment,4 - Operations - Providers services,LDP E Cambs Special Needs,Residential Independent Sector
Cambridgeshire County Council,24-Aug-17,24045322-15911684,-2977.44,Decoy Farm,Care Establishment,4 - Operations - Providers services,LDP E Cambs Special Needs,Residential Independent Sector
Cambridgeshire County Council,24-Aug-17,24045347-15911707,-2977.44,Decoy Farm,Care Establishment,4 - Operations - Providers services,LDP E Cambs Special Needs,Residential Independent Sector
Cambridgeshire County Council,24-Aug-17,24097020-15911722,-2977.44,Decoy Farm,Care Establishment,4 - Operations - Providers services,LDP E Cambs Special Needs,Residential Independent Sector
Cambridgeshire County Council,24-Aug-17,24097036-15911738,-2977.44,Decoy Farm,Care Establishment,4 - Operations - Providers services,LDP E Cambs Special Needs,Residential Independent Sector
Cambridgeshire County Council,24-Aug-17,24097041-15911743,-2977.44,Decoy Farm,Care Establishment,4 - Operations - Providers services,LDP E Cambs Special Needs,Residential Independent Sector
Cambridgeshire County Council,24-Aug-17,24099045-15911847,-2977.44,Decoy Farm,Care Establishment,4 - Operations - Providers services,LDP E Cambs Special Needs,Residential Independent Sector
Cambridgeshire County Council,24-Aug-17,24101965-15911911,-2977.44,Decoy Farm,Care Establishment,4 - Operations - Providers services,LDP E Cambs Special Needs,Residential Independent Sector
Cambridgeshire County Council,24-Aug-17,24101973-15911919,-2977.44,Decoy Farm,Care Establishment,4 - Operations - Providers services,LDP E Cambs Special Needs,Residential Independent Sector
Cambridgeshire County Council,24-Aug-17,24101979-15911925,-2977.44,Decoy Farm,Care Establishment,4 - Operations - Providers services,LDP E Cambs Special Needs,Residential Independent Sector
Cambridgeshire County Council,24-Aug-17,24103963-15911946,-2977.44,Decoy Farm,Care Establishment,4 - Operations - Providers services,LDP E Cambs Special Needs,Residential Independent Sector
Cambridgeshire County Council,24-Aug-17,24103983-15911966,-2977.44,Decoy Farm,Care Establishment,4 - Operations - Providers services,LDP E Cambs Special Needs,Residential Independent Sector
Cambridgeshire County Council,24-Aug-17,24097007-15911785,-2977.44,Decoy Farm,Care Establishment,4 - Operations - Providers services,LDP E Cambs Special Needs,Residential Independent Sector
Cambridgeshire County Council,24-Aug-17,24099079-15911794,-2977.44,Decoy Farm,Care Establishment,4 - Operations - Providers services,LDP E Cambs Special Needs,Residential Independent Sector
Cambridgeshire County Council,24-Aug-17,24097053-15911755,-2977.44,Decoy Farm,Care Establishment,4 - Operations - Providers services,LDP E Cambs Special Needs,Residential Independent Sector
Cambridgeshire County Council,24-Aug-17,24038137-15911469,-2977.44,Decoy Farm,Care Establishment,4 - Operations - Providers services,LDP E Cambs Special Needs,Residential Independent Sector
Cambridgeshire County Council,24-Aug-17,24038077-15911490,-2977.44,Decoy Farm,Care Establishment,4 - Operations - Providers services,LDP E Cambs Special Needs,Residential Independent Sector
Cambridgeshire County Council,24-Aug-17,24038089-15911500,-2977.44,Decoy Farm,Care Establishment,4 - Operations - Providers services,LDP E Cambs Special Needs,Residential Independent Sector
Cambridgeshire County Council,24-Aug-17,24038093-15911504,-2977.44,Decoy Farm,Care Establishment,4 - Operations - Providers services,LDP E Cambs Special Needs,Residential Independent Sector
Cambridgeshire County Council,24-Aug-17,24038105-15911516,-2977.44,Decoy Farm,Care Establishment,4 - Operations - Providers services,LDP E Cambs Special Needs,Residential Independent Sector
Cambridgeshire County Council,24-Aug-17,24045383-15911562,-2977.44,Decoy Farm,Care Establishment,4 - Operations - Providers services,LDP E Cambs Special Needs,Residential Independent Sector
Cambridgeshire County Council,24-Aug-17,24045384-15911563,-2977.44,Decoy Farm,Care Establishment,4 - Operations - Providers services,LDP E Cambs Special Needs,Residential Independent Sector
Cambridgeshire County Council,24-Aug-17,24045398-15911576,-2977.44,Decoy Farm,Care Establishment,4 - Operations - Providers services,LDP E Cambs Special Needs,Residential Independent Sector
Cambridgeshire County Council,24-Aug-17,24045440-15911615,-2977.44,Decoy Farm,Care Establishment,4 - Operations - Providers services,LDP E Cambs Special Needs,Residential Independent Sector
Cambridgeshire County Council,24-Aug-17,24045451-15911626,-2977.44,Decoy Farm,Care Establishment,4 - Operations - Providers services,LDP E Cambs Special Needs,Residential Independent Sector
Cambridgeshire County Council,24-Aug-17,24045268-15911633,-2977.44,Decoy Farm,Care Establishment,4 - Operations - Providers services,LDP E Cambs Special Needs,Residential Independent Sector
Cambridgeshire County Council,24-Aug-17,24045285-15911649,-2977.44,Decoy Farm,Care Establishment,4 - Operations - Providers services,LDP E Cambs Special Needs,Residential Independent Sector
Cambridgeshire County Council,24-Aug-17,24045310-15911673,-2977.44,Decoy Farm,Care Establishment,4 - Operations - Providers services,LDP E Cambs Special Needs,Residential Independent Sector
Cambridgeshire County Council,24-Aug-17,24045331-15911693,-2977.44,Decoy Farm,Care Establishment,4 - Operations - Providers services,LDP E Cambs Special Needs,Residential Independent Sector
Cambridgeshire County Council,24-Aug-17,24045333-15911695,-2977.44,Decoy Farm,Care Establishment,4 - Operations - Providers services,LDP E Cambs Special Needs,Residential Independent Sector
Cambridgeshire County Council,24-Aug-17,24045343-15911703,-2977.44,Decoy Farm,Care Establishment,4 - Operations - Providers services,LDP E Cambs Special Needs,Residential Independent Sector
Cambridgeshire County Council,24-Aug-17,24097009-15911711,-2977.44,Decoy Farm,Care Establishment,4 - Operations - Providers services,LDP E Cambs Special Needs,Residential Independent Sector
Cambridgeshire County Council,24-Aug-17,24099020-15911822,-2977.44,Decoy Farm,Care Establishment,4 - Operations - Providers services,LDP E Cambs Special Needs,Residential Independent Sector
Cambridgeshire County Council,24-Aug-17,24099025-15911827,-2977.44,Decoy Farm,Care Establishment,4 - Operations - Providers services,LDP E Cambs Special Needs,Residential Independent Sector
Cambridgeshire County Council,24-Aug-17,24099034-15911836,-2977.44,Decoy Farm,Care Establishment,4 - Operations - Providers services,LDP E Cambs Special Needs,Residential Independent Sector
Cambridgeshire County Council,24-Aug-17,24099037-15911839,-2977.44,Decoy Farm,Care Establishment,4 - Operations - Providers services,LDP E Cambs Special Needs,Residential Independent Sector
Cambridgeshire County Council,24-Aug-17,24099051-15911853,-2977.44,Decoy Farm,Care Establishment,4 - Operations - Providers services,LDP E Cambs Special Needs,Residential Independent Sector
Cambridgeshire County Council,24-Aug-17,24101942-15911888,-2977.44,Decoy Farm,Care Establishment,4 - Operations - Providers services,LDP E Cambs Special Needs,Residential Independent Sector
Cambridgeshire County Council,24-Aug-17,24101971-15911917,-2977.44,Decoy Farm,Care Establishment,4 - Operations - Providers services,LDP E Cambs Special Needs,Residential Independent Sector
Cambridgeshire County Council,24-Aug-17,24101986-15911932,-2977.44,Decoy Farm,Care Establishment,4 - Operations - Providers services,LDP E Cambs Special Needs,Residential Independent Sector
Cambridgeshire County Council,24-Aug-17,24103974-15911957,-2977.44,Decoy Farm,Care Establishment,4 - Operations - Providers services,LDP E Cambs Special Needs,Residential Independent Sector
Cambridgeshire County Council,24-Aug-17,24103980-15911963,-2977.44,Decoy Farm,Care Establishment,4 - Operations - Providers services,LDP E Cambs Special Needs,Residential Independent Sector
Cambridgeshire County Council,24-Aug-17,24103982-15911965,-2977.44,Decoy Farm,Care Establishment,4 - Operations - Providers services,LDP E Cambs Special Needs,Residential Independent Sector
Cambridgeshire County Council,24-Aug-17,24097073-15911775,-2977.44,Decoy Farm,Care Establishment,4 - Operations - Providers services,LDP E Cambs Special Needs,Residential Independent Sector
Cambridgeshire County Council,24-Aug-17,24099073-15911788,-2977.44,Decoy Farm,Care Establishment,4 - Operations - Providers services,LDP E Cambs Special Needs,Residential Independent Sector
Cambridgeshire County Council,24-Aug-17,24099081-15911796,-2977.44,Decoy Farm,Care Establishment,4 - Operations - Providers services,LDP E Cambs Special Needs,Residential Independent Sector
Cambridgeshire County Council,24-Aug-17,24097070-15911772,-2977.44,Decoy Farm,Care Establishment,4 - Operations - Providers services,LDP E Cambs Special Needs,Residential Independent Sector
Cambridgeshire County Council,24-Aug-17,24038135-15911467,-2977.44,Decoy Farm,Care Establishment,4 - Operations - Providers services,LDP E Cambs Special Needs,Residential Independent Sector
Cambridgeshire County Council,24-Aug-17,24038065-15911479,-2977.44,Decoy Farm,Care Establishment,4 - Operations - Providers services,LDP E Cambs Special Needs,Residential Independent Sector
Cambridgeshire County Council,24-Aug-17,24038079-15911492,-2977.44,Decoy Farm,Care Establishment,4 - Operations - Providers services,LDP E Cambs Special Needs,Residential Independent Sector
Cambridgeshire County Council,24-Aug-17,24038102-15911513,-2977.44,Decoy Farm,Care Establishment,4 - Operations - Providers services,LDP E Cambs Special Needs,Residential Independent Sector
Cambridgeshire County Council,24-Aug-17,24038117-15911526,-2977.44,Decoy Farm,Care Establishment,4 - Operations - Providers services,LDP E Cambs Special Needs,Residential Independent Sector
Cambridgeshire County Council,24-Aug-17,24045350-15911529,-2977.44,Decoy Farm,Care Establishment,4 - Operations - Providers services,LDP E Cambs Special Needs,Residential Independent Sector
Cambridgeshire County Council,24-Aug-17,24045356-15911535,-2977.44,Decoy Farm,Care Establishment,4 - Operations - Providers services,LDP E Cambs Special Needs,Residential Independent Sector
Cambridgeshire County Council,24-Aug-17,24045358-15911537,-2977.44,Decoy Farm,Care Establishment,4 - Operations - Providers services,LDP E Cambs Special Needs,Residential Independent Sector
Cambridgeshire County Council,24-Aug-17,24045360-15911539,-2977.44,Decoy Farm,Care Establishment,4 - Operations - Providers services,LDP E Cambs Special Needs,Residential Independent Sector
Cambridgeshire County Council,24-Aug-17,24045388-15911567,-2977.44,Decoy Farm,Care Establishment,4 - Operations - Providers services,LDP E Cambs Special Needs,Residential Independent Sector
Cambridgeshire County Council,24-Aug-17,24045288-15911652,-2977.44,Decoy Farm,Care Establishment,4 - Operations - Providers services,LDP E Cambs Special Needs,Residential Independent Sector
Cambridgeshire County Council,24-Aug-17,24045329-15911691,-2977.44,Decoy Farm,Care Establishment,4 - Operations - Providers services,LDP E Cambs Special Needs,Residential Independent Sector
Cambridgeshire County Council,24-Aug-17,24045335-15911697,-2977.44,Decoy Farm,Care Establishment,4 - Operations - Providers services,LDP E Cambs Special Needs,Residential Independent Sector
Cambridgeshire County Council,24-Aug-17,24045344-15911704,-2977.44,Decoy Farm,Care Establishment,4 - Operations - Providers services,LDP E Cambs Special Needs,Residential Independent Sector
Cambridgeshire County Council,24-Aug-17,24097023-15911725,-2977.44,Decoy Farm,Care Establishment,4 - Operations - Providers services,LDP E Cambs Special Needs,Residential Independent Sector
Cambridgeshire County Council,24-Aug-17,24097035-15911737,-2977.44,Decoy Farm,Care Establishment,4 - Operations - Providers services,LDP E Cambs Special Needs,Residential Independent Sector
Cambridgeshire County Council,24-Aug-17,24099007-15911809,-2977.44,Decoy Farm,Care Establishment,4 - Operations - Providers services,LDP E Cambs Special Needs,Residential Independent Sector
Cambridgeshire County Council,24-Aug-17,24099014-15911816,-2977.44,Decoy Farm,Care Establishment,4 - Operations - Providers services,LDP E Cambs Special Needs,Residential Independent Sector
Cambridgeshire County Council,24-Aug-17,24099018-15911820,-2977.44,Decoy Farm,Care Establishment,4 - Operations - Providers services,LDP E Cambs Special Needs,Residential Independent Sector
Cambridgeshire County Council,24-Aug-17,24099021-15911823,-2977.44,Decoy Farm,Care Establishment,4 - Operations - Providers services,LDP E Cambs Special Needs,Residential Independent Sector
Cambridgeshire County Council,24-Aug-17,24099046-15911848,-2977.44,Decoy Farm,Care Establishment,4 - Operations - Providers services,LDP E Cambs Special Needs,Residential Independent Sector
Cambridgeshire County Council,24-Aug-17,24099059-15911861,-2977.44,Decoy Farm,Care Establishment,4 - Operations - Providers services,LDP E Cambs Special Needs,Residential Independent Sector
Cambridgeshire County Council,24-Aug-17,24101937-15911883,-2977.44,Decoy Farm,Care Establishment,4 - Operations - Providers services,LDP E Cambs Special Needs,Residential Independent Sector
Cambridgeshire County Council,24-Aug-17,24101946-15911892,-2977.44,Decoy Farm,Care Establishment,4 - Operations - Providers services,LDP E Cambs Special Needs,Residential Independent Sector
Cambridgeshire County Council,24-Aug-17,24101955-15911901,-2977.44,Decoy Farm,Care Establishment,4 - Operations - Providers services,LDP E Cambs Special Needs,Residential Independent Sector
Cambridgeshire County Council,24-Aug-17,24101990-15911936,-2977.44,Decoy Farm,Care Establishment,4 - Operations - Providers services,LDP E Cambs Special Needs,Residential Independent Sector
Cambridgeshire County Council,24-Aug-17,24103968-15911951,-2977.44,Decoy Farm,Care Establishment,4 - Operations - Providers services,LDP E Cambs Special Needs,Residential Independent Sector
Cambridgeshire County Council,24-Aug-17,24103979-15911962,-2977.44,Decoy Farm,Care Establishment,4 - Operations - Providers services,LDP E Cambs Special Needs,Residential Independent Sector
Cambridgeshire County Council,24-Aug-17,24097079-15911781,-2977.44,Decoy Farm,Care Establishment,4 - Operations - Providers services,LDP E Cambs Special Needs,Residential Independent Sector
Cambridgeshire County Council,24-Aug-17,24099088-15911803,-2977.44,Decoy Farm,Care Establishment,4 - Operations - Providers services,LDP E Cambs Special Needs,Residential Independent Sector
Cambridgeshire County Council,24-Aug-17,24099090-15911805,-2977.44,Decoy Farm,Care Establishment,4 - Operations - Providers services,LDP E Cambs Special Needs,Residential Independent Sector
Cambridgeshire County Council,24-Aug-17,24038126-15911459,-2977.44,Decoy Farm,Care Establishment,4 - Operations - Providers services,LDP E Cambs Special Needs,Residential Independent Sector
Cambridgeshire County Council,24-Aug-17,24038128-15911461,-2977.44,Decoy Farm,Care Establishment,4 - Operations - Providers services,LDP E Cambs Special Needs,Residential Independent Sector
Cambridgeshire County Council,24-Aug-17,24038066-15911480,-2977.44,Decoy Farm,Care Establishment,4 - Operations - Providers services,LDP E Cambs Special Needs,Residential Independent Sector
Cambridgeshire County Council,24-Aug-17,24045374-15911553,-2977.44,Decoy Farm,Care Establishment,4 - Operations - Providers services,LDP E Cambs Special Needs,Residential Independent Sector
Cambridgeshire County Council,24-Aug-17,24045390-15911569,-2977.44,Decoy Farm,Care Establishment,4 - Operations - Providers services,LDP E Cambs Special Needs,Residential Independent Sector
Cambridgeshire County Council,24-Aug-17,24045394-15911573,-2977.44,Decoy Farm,Care Establishment,4 - Operations - Providers services,LDP E Cambs Special Needs,Residential Independent Sector
Cambridgeshire County Council,24-Aug-17,24045399-15911577,-2977.44,Decoy Farm,Care Establishment,4 - Operations - Providers services,LDP E Cambs Special Needs,Residential Independent Sector
Cambridgeshire County Council,24-Aug-17,24045412-15911590,-2977.44,Decoy Farm,Care Establishment,4 - Operations - Providers services,LDP E Cambs Special Needs,Residential Independent Sector
Cambridgeshire County Council,24-Aug-17,24045421-15911596,-2977.44,Decoy Farm,Care Establishment,4 - Operations - Providers services,LDP E Cambs Special Needs,Residential Independent Sector
Cambridgeshire County Council,24-Aug-17,24045433-15911608,-2977.44,Decoy Farm,Care Establishment,4 - Operations - Providers services,LDP E Cambs Special Needs,Residential Independent Sector
Cambridgeshire County Council,24-Aug-17,24045443-15911618,-2977.44,Decoy Farm,Care Establishment,4 - Operations - Providers services,LDP E Cambs Special Needs,Residential Independent Sector
Cambridgeshire County Council,24-Aug-17,24045276-15911641,-2977.44,Decoy Farm,Care Establishment,4 - Operations - Providers services,LDP E Cambs Special Needs,Residential Independent Sector
Cambridgeshire County Council,24-Aug-17,24045277-15911642,-2977.44,Decoy Farm,Care Establishment,4 - Operations - Providers services,LDP E Cambs Special Needs,Residential Independent Sector
Cambridgeshire County Council,24-Aug-17,24045299-15911662,-2977.44,Decoy Farm,Care Establishment,4 - Operations - Providers services,LDP E Cambs Special Needs,Residential Independent Sector
Cambridgeshire County Council,24-Aug-17,24045302-15911665,-2977.44,Decoy Farm,Care Establishment,4 - Operations - Providers services,LDP E Cambs Special Needs,Residential Independent Sector
Cambridgeshire County Council,24-Aug-17,24045326-15911688,-2977.44,Decoy Farm,Care Establishment,4 - Operations - Providers services,LDP E Cambs Special Needs,Residential Independent Sector
Cambridgeshire County Council,24-Aug-17,24045338-15911700,-2977.44,Decoy Farm,Care Establishment,4 - Operations - Providers services,LDP E Cambs Special Needs,Residential Independent Sector
Cambridgeshire County Council,24-Aug-17,24045349-15911709,-2977.44,Decoy Farm,Care Establishment,4 - Operations - Providers services,LDP E Cambs Special Needs,Residential Independent Sector
Cambridgeshire County Council,24-Aug-17,24097037-15911739,-2977.44,Decoy Farm,Care Establishment,4 - Operations - Providers services,LDP E Cambs Special Needs,Residential Independent Sector
Cambridgeshire County Council,24-Aug-17,24099092-15911807,-2977.44,Decoy Farm,Care Establishment,4 - Operations - Providers services,LDP E Cambs Special Needs,Residential Independent Sector
Cambridgeshire County Council,24-Aug-17,24099024-15911826,-2977.44,Decoy Farm,Care Establishment,4 - Operations - Providers services,LDP E Cambs Special Needs,Residential Independent Sector
Cambridgeshire County Council,24-Aug-17,24099039-15911841,-2977.44,Decoy Farm,Care Establishment,4 - Operations - Providers services,LDP E Cambs Special Needs,Residential Independent Sector
Cambridgeshire County Council,24-Aug-17,24099056-15911858,-2977.44,Decoy Farm,Care Establishment,4 - Operations - Providers services,LDP E Cambs Special Needs,Residential Independent Sector
Cambridgeshire County Council,24-Aug-17,24099069-15911871,-2977.44,Decoy Farm,Care Establishment,4 - Operations - Providers services,LDP E Cambs Special Needs,Residential Independent Sector
Cambridgeshire County Council,24-Aug-17,24101933-15911879,-2977.44,Decoy Farm,Care Establishment,4 - Operations - Providers services,LDP E Cambs Special Needs,Residential Independent Sector
Cambridgeshire County Council,24-Aug-17,24101974-15911920,-2977.44,Decoy Farm,Care Establishment,4 - Operations - Providers services,LDP E Cambs Special Needs,Residential Independent Sector
Cambridgeshire County Council,24-Aug-17,24101977-15911923,-2977.44,Decoy Farm,Care Establishment,4 - Operations - Providers services,LDP E Cambs Special Needs,Residential Independent Sector
Cambridgeshire County Council,24-Aug-17,24101978-15911924,-2977.44,Decoy Farm,Care Establishment,4 - Operations - Providers services,LDP E Cambs Special Needs,Residential Independent Sector
Cambridgeshire County Council,24-Aug-17,24101993-15911939,-2977.44,Decoy Farm,Care Establishment,4 - Operations - Providers services,LDP E Cambs Special Needs,Residential Independent Sector
Cambridgeshire County Council,24-Aug-17,24103960-15911943,-2977.44,Decoy Farm,Care Establishment,4 - Operations - Providers services,LDP E Cambs Special Needs,Residential Independent Sector
Cambridgeshire County Council,24-Aug-17,24103978-15911961,-2977.44,Decoy Farm,Care Establishment,4 - Operations - Providers services,LDP E Cambs Special Needs,Residential Independent Sector
Cambridgeshire County Council,24-Aug-17,24103986-15911969,-2977.44,Decoy Farm,Care Establishment,4 - Operations - Providers services,LDP E Cambs Special Needs,Residential Independent Sector
Cambridgeshire County Council,24-Aug-17,24097077-15911779,-2977.44,Decoy Farm,Care Establishment,4 - Operations - Providers services,LDP E Cambs Special Needs,Residential Independent Sector
Cambridgeshire County Council,24-Aug-17,24038081-15911494,-2977.44,Decoy Farm,Care Establishment,4 - Operations - Providers services,LDP E Cambs Special Needs,Residential Independent Sector
Cambridgeshire County Council,24-Aug-17,24038087-15911498,-2977.44,Decoy Farm,Care Establishment,4 - Operations - Providers services,LDP E Cambs Special Needs,Residential Independent Sector
Cambridgeshire County Council,24-Aug-17,24038097-15911508,-2977.44,Decoy Farm,Care Establishment,4 - Operations - Providers services,LDP E Cambs Special Needs,Residential Independent Sector
Cambridgeshire County Council,24-Aug-17,24038099-15911510,-2977.44,Decoy Farm,Care Establishment,4 - Operations - Providers services,LDP E Cambs Special Needs,Residential Independent Sector
Cambridgeshire County Council,24-Aug-17,24038108-15911519,-2977.44,Decoy Farm,Care Establishment,4 - Operations - Providers services,LDP E Cambs Special Needs,Residential Independent Sector
Cambridgeshire County Council,24-Aug-17,24038120-15911528,-2977.44,Decoy Farm,Care Establishment,4 - Operations - Providers services,LDP E Cambs Special Needs,Residential Independent Sector
Cambridgeshire County Council,24-Aug-17,24045351-15911530,-2977.44,Decoy Farm,Care Establishment,4 - Operations - Providers services,LDP E Cambs Special Needs,Residential Independent Sector
Cambridgeshire County Council,24-Aug-17,24045352-15911531,-2977.44,Decoy Farm,Care Establishment,4 - Operations - Providers services,LDP E Cambs Special Needs,Residential Independent Sector
Cambridgeshire County Council,24-Aug-17,24045361-15911540,-2977.44,Decoy Farm,Care Establishment,4 - Operations - Providers services,LDP E Cambs Special Needs,Residential Independent Sector
Cambridgeshire County Council,24-Aug-17,24045367-15911546,-2977.44,Decoy Farm,Care Establishment,4 - Operations - Providers services,LDP E Cambs Special Needs,Residential Independent Sector
Cambridgeshire County Council,24-Aug-17,24045381-15911560,-2977.44,Decoy Farm,Care Establishment,4 - Operations - Providers services,LDP E Cambs Special Needs,Residential Independent Sector
Cambridgeshire County Council,24-Aug-17,24045403-15911581,-2977.44,Decoy Farm,Care Establishment,4 - Operations - Providers services,LDP E Cambs Special Needs,Residential Independent Sector
Cambridgeshire County Council,24-Aug-17,24045422-15911597,-2977.44,Decoy Farm,Care Establishment,4 - Operations - Providers services,LDP E Cambs Special Needs,Residential Independent Sector
Cambridgeshire County Council,24-Aug-17,24045449-15911624,-2977.44,Decoy Farm,Care Establishment,4 - Operations - Providers services,LDP E Cambs Special Needs,Residential Independent Sector
Cambridgeshire County Council,24-Aug-17,24045303-15911666,-2977.44,Decoy Farm,Care Establishment,4 - Operations - Providers services,LDP E Cambs Special Needs,Residential Independent Sector
Cambridgeshire County Council,24-Aug-17,24045307-15911670,-2977.44,Decoy Farm,Care Establishment,4 - Operations - Providers services,LDP E Cambs Special Needs,Residential Independent Sector
Cambridgeshire County Council,24-Aug-17,24045323-15911685,-2977.44,Decoy Farm,Care Establishment,4 - Operations - Providers services,LDP E Cambs Special Needs,Residential Independent Sector
Cambridgeshire County Council,24-Aug-17,24045330-15911692,-2977.44,Decoy Farm,Care Establishment,4 - Operations - Providers services,LDP E Cambs Special Needs,Residential Independent Sector
Cambridgeshire County Council,24-Aug-17,24097011-15911713,-2977.44,Decoy Farm,Care Establishment,4 - Operations - Providers services,LDP E Cambs Special Needs,Residential Independent Sector
Cambridgeshire County Council,24-Aug-17,24099012-15911814,-2977.44,Decoy Farm,Care Establishment,4 - Operations - Providers services,LDP E Cambs Special Needs,Residential Independent Sector
Cambridgeshire County Council,24-Aug-17,24099023-15911825,-2977.44,Decoy Farm,Care Establishment,4 - Operations - Providers services,LDP E Cambs Special Needs,Residential Independent Sector
Cambridgeshire County Council,24-Aug-17,24101957-15911903,-2977.44,Decoy Farm,Care Establishment,4 - Operations - Providers services,LDP E Cambs Special Needs,Residential Independent Sector
Cambridgeshire County Council,24-Aug-17,24101984-15911930,-2977.44,Decoy Farm,Care Establishment,4 - Operations - Providers services,LDP E Cambs Special Needs,Residential Independent Sector
Cambridgeshire County Council,24-Aug-17,24101985-15911931,-2977.44,Decoy Farm,Care Establishment,4 - Operations - Providers services,LDP E Cambs Special Needs,Residential Independent Sector
Cambridgeshire County Council,24-Aug-17,24101988-15911934,-2977.44,Decoy Farm,Care Establishment,4 - Operations - Providers services,LDP E Cambs Special Needs,Residential Independent Sector
Cambridgeshire County Council,24-Aug-17,24103972-15911955,-2977.44,Decoy Farm,Care Establishment,4 - Operations - Providers services,LDP E Cambs Special Needs,Residential Independent Sector
Cambridgeshire County Council,24-Aug-17,24103984-15911967,-2977.44,Decoy Farm,Care Establishment,4 - Operations - Providers services,LDP E Cambs Special Needs,Residential Independent Sector
Cambridgeshire County Council,24-Aug-17,24099075-15911790,-2977.44,Decoy Farm,Care Establishment,4 - Operations - Providers services,LDP E Cambs Special Needs,Residential Independent Sector
Cambridgeshire County Council,24-Aug-17,24099080-15911795,-2977.44,Decoy Farm,Care Establishment,4 - Operations - Providers services,LDP E Cambs Special Needs,Residential Independent Sector
Cambridgeshire County Council,24-Aug-17,24097045-15911747,-2977.44,Decoy Farm,Care Establishment,4 - Operations - Providers services,LDP E Cambs Special Needs,Residential Independent Sector
Cambridgeshire County Council,24-Aug-17,24097046-15911748,-2977.44,Decoy Farm,Care Establishment,4 - Operations - Providers services,LDP E Cambs Special Needs,Residential Independent Sector
Cambridgeshire County Council,24-Aug-17,24097056-15911758,-2977.44,Decoy Farm,Care Establishment,4 - Operations - Providers services,LDP E Cambs Special Needs,Residential Independent Sector
Cambridgeshire County Council,24-Aug-17,24097068-15911770,-2977.44,Decoy Farm,Care Establishment,4 - Operations - Providers services,LDP E Cambs Special Needs,Residential Independent Sector
Cambridgeshire County Council,24-Aug-17,24038121-15911454,-2977.44,Decoy Farm,Care Establishment,4 - Operations - Providers services,LDP E Cambs Special Needs,Residential Independent Sector
Cambridgeshire County Council,24-Aug-17,24038076-15911489,-2977.44,Decoy Farm,Care Establishment,4 - Operations - Providers services,LDP E Cambs Special Needs,Residential Independent Sector
Cambridgeshire County Council,24-Aug-17,24038094-15911505,-2977.44,Decoy Farm,Care Establishment,4 - Operations - Providers services,LDP E Cambs Special Needs,Residential Independent Sector
Cambridgeshire County Council,24-Aug-17,24038115-15911524,-2977.44,Decoy Farm,Care Establishment,4 - Operations - Providers services,LDP E Cambs Special Needs,Residential Independent Sector
Cambridgeshire County Council,24-Aug-17,24045370-15911549,-2977.44,Decoy Farm,Care Establishment,4 - Operations - Providers services,LDP E Cambs Special Needs,Residential Independent Sector
Cambridgeshire County Council,24-Aug-17,24045386-15911565,-2977.44,Decoy Farm,Care Establishment,4 - Operations - Providers services,LDP E Cambs Special Needs,Residential Independent Sector
Cambridgeshire County Council,24-Aug-17,24045444-15911619,-2977.44,Decoy Farm,Care Establishment,4 - Operations - Providers services,LDP E Cambs Special Needs,Residential Independent Sector
Cambridgeshire County Council,24-Aug-17,24045452-15911627,-2977.44,Decoy Farm,Care Establishment,4 - Operations - Providers services,LDP E Cambs Special Needs,Residential Independent Sector
Cambridgeshire County Council,24-Aug-17,24045272-15911637,-2977.44,Decoy Farm,Care Establishment,4 - Operations - Providers services,LDP E Cambs Special Needs,Residential Independent Sector
Cambridgeshire County Council,24-Aug-17,24045282-15911646,-2977.44,Decoy Farm,Care Establishment,4 - Operations - Providers services,LDP E Cambs Special Needs,Residential Independent Sector
Cambridgeshire County Council,24-Aug-17,24045290-15911653,-2977.44,Decoy Farm,Care Establishment,4 - Operations - Providers services,LDP E Cambs Special Needs,Residential Independent Sector
Cambridgeshire County Council,24-Aug-17,24045297-15911660,-2977.44,Decoy Farm,Care Establishment,4 - Operations - Providers services,LDP E Cambs Special Needs,Residential Independent Sector
Cambridgeshire County Council,24-Aug-17,24045305-15911668,-2977.44,Decoy Farm,Care Establishment,4 - Operations - Providers services,LDP E Cambs Special Needs,Residential Independent Sector
Cambridgeshire County Council,24-Aug-17,24045313-15911676,-2977.44,Decoy Farm,Care Establishment,4 - Operations - Providers services,LDP E Cambs Special Needs,Residential Independent Sector
Cambridgeshire County Council,24-Aug-17,24045321-15911683,-2977.44,Decoy Farm,Care Establishment,4 - Operations - Providers services,LDP E Cambs Special Needs,Residential Independent Sector
Cambridgeshire County Council,24-Aug-17,24045328-15911690,-2977.44,Decoy Farm,Care Establishment,4 - Operations - Providers services,LDP E Cambs Special Needs,Residential Independent Sector
Cambridgeshire County Council,24-Aug-17,24045348-15911708,-2977.44,Decoy Farm,Care Establishment,4 - Operations - Providers services,LDP E Cambs Special Needs,Residential Independent Sector
Cambridgeshire County Council,24-Aug-17,24097018-15911720,-2977.44,Decoy Farm,Care Establishment,4 - Operations - Providers services,LDP E Cambs Special Needs,Residential Independent Sector
Cambridgeshire County Council,24-Aug-17,24099019-15911821,-2977.44,Decoy Farm,Care Establishment,4 - Operations - Providers services,LDP E Cambs Special Needs,Residential Independent Sector
Cambridgeshire County Council,24-Aug-17,24099026-15911828,-2977.44,Decoy Farm,Care Establishment,4 - Operations - Providers services,LDP E Cambs Special Needs,Residential Independent Sector
Cambridgeshire County Council,24-Aug-17,24099030-15911832,-2977.44,Decoy Farm,Care Establishment,4 - Operations - Providers services,LDP E Cambs Special Needs,Residential Independent Sector
Cambridgeshire County Council,24-Aug-17,24099038-15911840,-2977.44,Decoy Farm,Care Establishment,4 - Operations - Providers services,LDP E Cambs Special Needs,Residential Independent Sector
Cambridgeshire County Council,24-Aug-17,24099057-15911859,-2977.44,Decoy Farm,Care Establishment,4 - Operations - Providers services,LDP E Cambs Special Needs,Residential Independent Sector
Cambridgeshire County Council,24-Aug-17,24099068-15911870,-2977.44,Decoy Farm,Care Establishment,4 - Operations - Providers services,LDP E Cambs Special Needs,Residential Independent Sector
Cambridgeshire County Council,24-Aug-17,24101997-15911876,-2977.44,Decoy Farm,Care Establishment,4 - Operations - Providers services,LDP E Cambs Special Needs,Residential Independent Sector
Cambridgeshire County Council,24-Aug-17,24101941-15911887,-2977.44,Decoy Farm,Care Establishment,4 - Operations - Providers services,LDP E Cambs Special Needs,Residential Independent Sector
Cambridgeshire County Council,24-Aug-17,24101943-15911889,-2977.44,Decoy Farm,Care Establishment,4 - Operations - Providers services,LDP E Cambs Special Needs,Residential Independent Sector
Cambridgeshire County Council,24-Aug-17,24101953-15911899,-2977.44,Decoy Farm,Care Establishment,4 - Operations - Providers services,LDP E Cambs Special Needs,Residential Independent Sector
Cambridgeshire County Council,24-Aug-17,24103969-15911952,-2977.44,Decoy Farm,Care Establishment,4 - Operations - Providers services,LDP E Cambs Special Needs,Residential Independent Sector
Cambridgeshire County Council,24-Aug-17,24099074-15911789,-2977.44,Decoy Farm,Care Establishment,4 - Operations - Providers services,LDP E Cambs Special Needs,Residential Independent Sector
Cambridgeshire County Council,24-Aug-17,24097064-15911766,-2977.44,Decoy Farm,Care Establishment,4 - Operations - Providers services,LDP E Cambs Special Needs,Residential Independent Sector
Cambridgeshire County Council,24-Aug-17,24038142-15911474,-2977.44,Decoy Farm,Care Establishment,4 - Operations - Providers services,LDP E Cambs Special Needs,Residential Independent Sector
Cambridgeshire County Council,24-Aug-17,24038096-15911507,-2977.44,Decoy Farm,Care Establishment,4 - Operations - Providers services,LDP E Cambs Special Needs,Residential Independent Sector
Cambridgeshire County Council,24-Aug-17,24045406-15911584,-2977.44,Decoy Farm,Care Establishment,4 - Operations - Providers services,LDP E Cambs Special Needs,Residential Independent Sector
Cambridgeshire County Council,24-Aug-17,24045419-15911594,-2977.44,Decoy Farm,Care Establishment,4 - Operations - Providers services,LDP E Cambs Special Needs,Residential Independent Sector
Cambridgeshire County Council,24-Aug-17,24045294-15911657,-2977.44,Decoy Farm,Care Establishment,4 - Operations - Providers services,LDP E Cambs Special Needs,Residential Independent Sector
Cambridgeshire County Council,24-Aug-17,24045296-15911659,-2977.44,Decoy Farm,Care Establishment,4 - Operations - Providers services,LDP E Cambs Special Needs,Residential Independent Sector
Cambridgeshire County Council,24-Aug-17,24045319-15911681,-2977.44,Decoy Farm,Care Establishment,4 - Operations - Providers services,LDP E Cambs Special Needs,Residential Independent Sector
Cambridgeshire County Council,24-Aug-17,24097024-15911726,-2977.44,Decoy Farm,Care Establishment,4 - Operations - Providers services,LDP E Cambs Special Needs,Residential Independent Sector
Cambridgeshire County Council,24-Aug-17,24097025-15911727,-2977.44,Decoy Farm,Care Establishment,4 - Operations - Providers services,LDP E Cambs Special Needs,Residential Independent Sector
Cambridgeshire County Council,24-Aug-17,24097026-15911728,-2977.44,Decoy Farm,Care Establishment,4 - Operations - Providers services,LDP E Cambs Special Needs,Residential Independent Sector
Cambridgeshire County Council,24-Aug-17,24097028-15911730,-2977.44,Decoy Farm,Care Establishment,4 - Operations - Providers services,LDP E Cambs Special Needs,Residential Independent Sector
Cambridgeshire County Council,24-Aug-17,24097034-15911736,-2977.44,Decoy Farm,Care Establishment,4 - Operations - Providers services,LDP E Cambs Special Needs,Residential Independent Sector
Cambridgeshire County Council,24-Aug-17,24099013-15911815,-2977.44,Decoy Farm,Care Establishment,4 - Operations - Providers services,LDP E Cambs Special Needs,Residential Independent Sector
Cambridgeshire County Council,24-Aug-17,24099053-15911855,-2977.44,Decoy Farm,Care Establishment,4 - Operations - Providers services,LDP E Cambs Special Needs,Residential Independent Sector
Cambridgeshire County Council,24-Aug-17,24099070-15911872,-2977.44,Decoy Farm,Care Establishment,4 - Operations - Providers services,LDP E Cambs Special Needs,Residential Independent Sector
Cambridgeshire County Council,24-Aug-17,24101935-15911881,-2977.44,Decoy Farm,Care Establishment,4 - Operations - Providers services,LDP E Cambs Special Needs,Residential Independent Sector
Cambridgeshire County Council,24-Aug-17,24101950-15911896,-2977.44,Decoy Farm,Care Establishment,4 - Operations - Providers services,LDP E Cambs Special Needs,Residential Independent Sector
Cambridgeshire County Council,24-Aug-17,24101952-15911898,-2977.44,Decoy Farm,Care Establishment,4 - Operations - Providers services,LDP E Cambs Special Needs,Residential Independent Sector
Cambridgeshire County Council,24-Aug-17,24101961-15911907,-2977.44,Decoy Farm,Care Establishment,4 - Operations - Providers services,LDP E Cambs Special Needs,Residential Independent Sector
Cambridgeshire County Council,24-Aug-17,24101983-15911929,-2977.44,Decoy Farm,Care Establishment,4 - Operations - Providers services,LDP E Cambs Special Needs,Residential Independent Sector
Cambridgeshire County Council,24-Aug-17,24103959-15911942,-2977.44,Decoy Farm,Care Establishment,4 - Operations - Providers services,LDP E Cambs Special Needs,Residential Independent Sector
Cambridgeshire County Council,24-Aug-17,24103965-15911948,-2977.44,Decoy Farm,Care Establishment,4 - Operations - Providers services,LDP E Cambs Special Needs,Residential Independent Sector
Cambridgeshire County Council,24-Aug-17,24103985-15911968,-2977.44,Decoy Farm,Care Establishment,4 - Operations - Providers services,LDP E Cambs Special Needs,Residential Independent Sector
Cambridgeshire County Council,24-Aug-17,24099084-15911799,-2977.44,Decoy Farm,Care Establishment,4 - Operations - Providers services,LDP E Cambs Special Needs,Residential Independent Sector
Cambridgeshire County Council,24-Aug-17,24097054-15911756,-2977.44,Decoy Farm,Care Establishment,4 - Operations - Providers services,LDP E Cambs Special Needs,Residential Independent Sector
Cambridgeshire County Council,24-Aug-17,24097062-15911764,-2977.44,Decoy Farm,Care Establishment,4 - Operations - Providers services,LDP E Cambs Special Needs,Residential Independent Sector
Cambridgeshire County Council,24-Aug-17,24038125-15911458,-2977.44,Decoy Farm,Care Establishment,4 - Operations - Providers services,LDP E Cambs Special Needs,Residential Independent Sector
Cambridgeshire County Council,24-Aug-17,24038068-15911482,-2977.44,Decoy Farm,Care Establishment,4 - Operations - Providers services,LDP E Cambs Special Needs,Residential Independent Sector
Cambridgeshire County Council,24-Aug-17,24038119-15911527,-2977.44,Decoy Farm,Care Establishment,4 - Operations - Providers services,LDP E Cambs Special Needs,Residential Independent Sector
Cambridgeshire County Council,24-Aug-17,24045368-15911547,-2977.44,Decoy Farm,Care Establishment,4 - Operations - Providers services,LDP E Cambs Special Needs,Residential Independent Sector
Cambridgeshire County Council,24-Aug-17,24045378-15911557,-2977.44,Decoy Farm,Care Establishment,4 - Operations - Providers services,LDP E Cambs Special Needs,Residential Independent Sector
Cambridgeshire County Council,24-Aug-17,24045434-15911609,-2977.44,Decoy Farm,Care Establishment,4 - Operations - Providers services,LDP E Cambs Special Needs,Residential Independent Sector
Cambridgeshire County Council,24-Aug-17,24045436-15911611,-2977.44,Decoy Farm,Care Establishment,4 - Operations - Providers services,LDP E Cambs Special Needs,Residential Independent Sector
Cambridgeshire County Council,24-Aug-17,24045439-15911614,-2977.44,Decoy Farm,Care Establishment,4 - Operations - Providers services,LDP E Cambs Special Needs,Residential Independent Sector
Cambridgeshire County Council,24-Aug-17,24045447-15911622,-2977.44,Decoy Farm,Care Establishment,4 - Operations - Providers services,LDP E Cambs Special Needs,Residential Independent Sector
Cambridgeshire County Council,24-Aug-17,24045453-15911628,-2977.44,Decoy Farm,Care Establishment,4 - Operations - Providers services,LDP E Cambs Special Needs,Residential Independent Sector
Cambridgeshire County Council,24-Aug-17,24045264-15911629,-2977.44,Decoy Farm,Care Establishment,4 - Operations - Providers services,LDP E Cambs Special Needs,Residential Independent Sector
Cambridgeshire County Council,24-Aug-17,24045278-15911643,-2977.44,Decoy Farm,Care Establishment,4 - Operations - Providers services,LDP E Cambs Special Needs,Residential Independent Sector
Cambridgeshire County Council,24-Aug-17,24045315-15911677,-2977.44,Decoy Farm,Care Establishment,4 - Operations - Providers services,LDP E Cambs Special Needs,Residential Independent Sector
Cambridgeshire County Council,24-Aug-17,24045334-15911696,-2977.44,Decoy Farm,Care Establishment,4 - Operations - Providers services,LDP E Cambs Special Needs,Residential Independent Sector
Cambridgeshire County Council,24-Aug-17,24097039-15911741,-2977.44,Decoy Farm,Care Establishment,4 - Operations - Providers services,LDP E Cambs Special Needs,Residential Independent Sector
Cambridgeshire County Council,24-Aug-17,24099028-15911830,-2977.44,Decoy Farm,Care Establishment,4 - Operations - Providers services,LDP E Cambs Special Needs,Residential Independent Sector
Cambridgeshire County Council,24-Aug-17,24099031-15911833,-2977.44,Decoy Farm,Care Establishment,4 - Operations - Providers services,LDP E Cambs Special Needs,Residential Independent Sector
Cambridgeshire County Council,24-Aug-17,24099041-15911843,-2977.44,Decoy Farm,Care Establishment,4 - Operations - Providers services,LDP E Cambs Special Needs,Residential Independent Sector
Cambridgeshire County Council,24-Aug-17,24099050-15911852,-2977.44,Decoy Farm,Care Establishment,4 - Operations - Providers services,LDP E Cambs Special Needs,Residential Independent Sector
Cambridgeshire County Council,24-Aug-17,24099054-15911856,-2977.44,Decoy Farm,Care Establishment,4 - Operations - Providers services,LDP E Cambs Special Needs,Residential Independent Sector
Cambridgeshire County Council,24-Aug-17,24101948-15911894,-2977.44,Decoy Farm,Care Establishment,4 - Operations - Providers services,LDP E Cambs Special Needs,Residential Independent Sector
Cambridgeshire County Council,24-Aug-17,24097075-15911777,-2977.44,Decoy Farm,Care Establishment,4 - Operations - Providers services,LDP E Cambs Special Needs,Residential Independent Sector
Cambridgeshire County Council,24-Aug-17,24097076-15911778,-2977.44,Decoy Farm,Care Establishment,4 - Operations - Providers services,LDP E Cambs Special Needs,Residential Independent Sector
Cambridgeshire County Council,24-Aug-17,24097080-15911782,-2977.44,Decoy Farm,Care Establishment,4 - Operations - Providers services,LDP E Cambs Special Needs,Residential Independent Sector
Cambridgeshire County Council,24-Aug-17,24099077-15911792,-2977.44,Decoy Farm,Care Establishment,4 - Operations - Providers services,LDP E Cambs Special Needs,Residential Independent Sector
Cambridgeshire County Council,31-Aug-17,24119648-15936484,-2977.44,Decoy Farm,Care Establishment,4 - Operations - Providers services,LDP E Cambs Special Needs,Residential Independent Sector
Cambridgeshire County Council,31-Aug-17,24119669-15936505,-2977.44,Decoy Farm,Care Establishment,4 - Operations - Providers services,LDP E Cambs Special Needs,Residential Independent Sector
Cambridgeshire County Council,31-Aug-17,24119686-15936522,-2977.44,Decoy Farm,Care Establishment,4 - Operations - Providers services,LDP E Cambs Special Needs,Residential Independent Sector
Cambridgeshire County Council,31-Aug-17,24119693-15936528,-2977.44,Decoy Farm,Care Establishment,4 - Operations - Providers services,LDP E Cambs Special Needs,Residential Independent Sector
Cambridgeshire County Council,31-Aug-17,24119703-15936538,-2977.44,Decoy Farm,Care Establishment,4 - Operations - Providers services,LDP E Cambs Special Needs,Residential Independent Sector
Cambridgeshire County Council,31-Aug-17,24119722-15936557,-2977.44,Decoy Farm,Care Establishment,4 - Operations - Providers services,LDP E Cambs Special Needs,Residential Independent Sector
Cambridgeshire County Council,31-Aug-17,24119634-15936571,-2977.44,Decoy Farm,Care Establishment,4 - Operations - Providers services,LDP E Cambs Special Needs,Residential Independent Sector
Cambridgeshire County Council,31-Aug-17,24119745-15936596,-2977.44,Decoy Farm,Care Establishment,4 - Operations - Providers services,LDP E Cambs Special Needs,Residential Independent Sector
Cambridgeshire County Council,31-Aug-17,24119754-15936605,-2977.44,Decoy Farm,Care Establishment,4 - Operations - Providers services,LDP E Cambs Special Needs,Residential Independent Sector
Cambridgeshire County Council,31-Aug-17,24119756-15936607,-2977.44,Decoy Farm,Care Establishment,4 - Operations - Providers services,LDP E Cambs Special Needs,Residential Independent Sector
Cambridgeshire County Council,31-Aug-17,24119766-15936617,-2977.44,Decoy Farm,Care Establishment,4 - Operations - Providers services,LDP E Cambs Special Needs,Residential Independent Sector
Cambridgeshire County Council,31-Aug-17,24131764-15936624,-2977.44,Decoy Farm,Care Establishment,4 - Operations - Providers services,LDP E Cambs Special Needs,Residential Independent Sector
Cambridgeshire County Council,31-Aug-17,24131772-15936631,-2977.44,Decoy Farm,Care Establishment,4 - Operations - Providers services,LDP E Cambs Special Needs,Residential Independent Sector
Cambridgeshire County Council,31-Aug-17,24131773-15936632,-2977.44,Decoy Farm,Care Establishment,4 - Operations - Providers services,LDP E Cambs Special Needs,Residential Independent Sector
Cambridgeshire County Council,31-Aug-17,24131775-15936634,-2977.44,Decoy Farm,Care Establishment,4 - Operations - Providers services,LDP E Cambs Special Needs,Residential Independent Sector
Cambridgeshire County Council,31-Aug-17,24131777-15936636,-2977.44,Decoy Farm,Care Establishment,4 - Operations - Providers services,LDP E Cambs Special Needs,Residential Independent Sector
Cambridgeshire County Council,31-Aug-17,24131717-15936653,-2977.44,Decoy Farm,Care Establishment,4 - Operations - Providers services,LDP E Cambs Special Needs,Residential Independent Sector
Cambridgeshire County Council,31-Aug-17,24131720-15936656,-2977.44,Decoy Farm,Care Establishment,4 - Operations - Providers services,LDP E Cambs Special Needs,Residential Independent Sector
Cambridgeshire County Council,31-Aug-17,24131722-15936658,-2977.44,Decoy Farm,Care Establishment,4 - Operations - Providers services,LDP E Cambs Special Needs,Residential Independent Sector
Cambridgeshire County Council,31-Aug-17,24131733-15936668,-2977.44,Decoy Farm,Care Establishment,4 - Operations - Providers services,LDP E Cambs Special Needs,Residential Independent Sector
Cambridgeshire County Council,31-Aug-17,24131752-15936687,-2977.44,Decoy Farm,Care Establishment,4 - Operations - Providers services,LDP E Cambs Special Needs,Residential Independent Sector
Cambridgeshire County Council,31-Aug-17,24131755-15936690,-2977.44,Decoy Farm,Care Establishment,4 - Operations - Providers services,LDP E Cambs Special Needs,Residential Independent Sector
Cambridgeshire County Council,31-Aug-17,24131760-15936695,-2977.44,Decoy Farm,Care Establishment,4 - Operations - Providers services,LDP E Cambs Special Needs,Residential Independent Sector
Cambridgeshire County Council,31-Aug-17,24135617-15936734,-2977.44,Decoy Farm,Care Establishment,4 - Operations - Providers services,LDP E Cambs Special Needs,Residential Independent Sector
Cambridgeshire County Council,31-Aug-17,24135618-15936735,-2977.44,Decoy Farm,Care Establishment,4 - Operations - Providers services,LDP E Cambs Special Needs,Residential Independent Sector
Cambridgeshire County Council,31-Aug-17,24119661-15936497,-2977.44,Decoy Farm,Care Establishment,4 - Operations - Providers services,LDP E Cambs Special Needs,Residential Independent Sector
Cambridgeshire County Council,31-Aug-17,24119705-15936540,-2977.44,Decoy Farm,Care Establishment,4 - Operations - Providers services,LDP E Cambs Special Needs,Residential Independent Sector
Cambridgeshire County Council,31-Aug-17,24119708-15936543,-2977.44,Decoy Farm,Care Establishment,4 - Operations - Providers services,LDP E Cambs Special Needs,Residential Independent Sector
Cambridgeshire County Council,31-Aug-17,24119720-15936555,-2977.44,Decoy Farm,Care Establishment,4 - Operations - Providers services,LDP E Cambs Special Needs,Residential Independent Sector
Cambridgeshire County Council,31-Aug-17,24131706-15936642,-2977.44,Decoy Farm,Care Establishment,4 - Operations - Providers services,LDP E Cambs Special Needs,Residential Independent Sector
Cambridgeshire County Council,31-Aug-17,24131724-15936660,-2977.44,Decoy Farm,Care Establishment,4 - Operations - Providers services,LDP E Cambs Special Needs,Residential Independent Sector
Cambridgeshire County Council,31-Aug-17,24131739-15936674,-2977.44,Decoy Farm,Care Establishment,4 - Operations - Providers services,LDP E Cambs Special Needs,Residential Independent Sector
Cambridgeshire County Council,31-Aug-17,24131753-15936688,-2977.44,Decoy Farm,Care Establishment,4 - Operations - Providers services,LDP E Cambs Special Needs,Residential Independent Sector
Cambridgeshire County Council,31-Aug-17,24135643-15936722,-2977.44,Decoy Farm,Care Establishment,4 - Operations - Providers services,LDP E Cambs Special Needs,Residential Independent Sector
Cambridgeshire County Council,31-Aug-17,24135644-15936723,-2977.44,Decoy Farm,Care Establishment,4 - Operations - Providers services,LDP E Cambs Special Needs,Residential Independent Sector
Cambridgeshire County Council,31-Aug-17,24135623-15936740,-2977.44,Decoy Farm,Care Establishment,4 - Operations - Providers services,LDP E Cambs Special Needs,Residential Independent Sector
Cambridgeshire County Council,31-Aug-17,24135624-15936741,-2977.44,Decoy Farm,Care Establishment,4 - Operations - Providers services,LDP E Cambs Special Needs,Residential Independent Sector
Cambridgeshire County Council,31-Aug-17,24119666-15936502,-2977.44,Decoy Farm,Care Establishment,4 - Operations - Providers services,LDP E Cambs Special Needs,Residential Independent Sector
Cambridgeshire County Council,31-Aug-17,24119679-15936515,-2977.44,Decoy Farm,Care Establishment,4 - Operations - Providers services,LDP E Cambs Special Needs,Residential Independent Sector
Cambridgeshire County Council,31-Aug-17,24119696-15936531,-2977.44,Decoy Farm,Care Establishment,4 - Operations - Providers services,LDP E Cambs Special Needs,Residential Independent Sector
Cambridgeshire County Council,31-Aug-17,24119633-15936570,-2977.44,Decoy Farm,Care Establishment,4 - Operations - Providers services,LDP E Cambs Special Needs,Residential Independent Sector
Cambridgeshire County Council,31-Aug-17,24119640-15936577,-2977.44,Decoy Farm,Care Establishment,4 - Operations - Providers services,LDP E Cambs Special Needs,Residential Independent Sector
Cambridgeshire County Council,31-Aug-17,24119755-15936606,-2977.44,Decoy Farm,Care Establishment,4 - Operations - Providers services,LDP E Cambs Special Needs,Residential Independent Sector
Cambridgeshire County Council,31-Aug-17,24131709-15936645,-2977.44,Decoy Farm,Care Establishment,4 - Operations - Providers services,LDP E Cambs Special Needs,Residential Independent Sector
Cambridgeshire County Council,31-Aug-17,24131736-15936671,-2977.44,Decoy Farm,Care Establishment,4 - Operations - Providers services,LDP E Cambs Special Needs,Residential Independent Sector
Cambridgeshire County Council,31-Aug-17,24135627-15936706,-2977.44,Decoy Farm,Care Establishment,4 - Operations - Providers services,LDP E Cambs Special Needs,Residential Independent Sector
Cambridgeshire County Council,31-Aug-17,24135608-15936725,-2977.44,Decoy Farm,Care Establishment,4 - Operations - Providers services,LDP E Cambs Special Needs,Residential Independent Sector
Cambridgeshire County Council,31-Aug-17,24135613-15936730,-2977.44,Decoy Farm,Care Establishment,4 - Operations - Providers services,LDP E Cambs Special Needs,Residential Independent Sector
Cambridgeshire County Council,31-Aug-17,24119650-15936486,-2977.44,Decoy Farm,Care Establishment,4 - Operations - Providers services,LDP E Cambs Special Needs,Residential Independent Sector
Cambridgeshire County Council,31-Aug-17,24119651-15936487,-2977.44,Decoy Farm,Care Establishment,4 - Operations - Providers services,LDP E Cambs Special Needs,Residential Independent Sector
Cambridgeshire County Council,31-Aug-17,24119656-15936492,-2977.44,Decoy Farm,Care Establishment,4 - Operations - Providers services,LDP E Cambs Special Needs,Residential Independent Sector
Cambridgeshire County Council,31-Aug-17,24119667-15936503,-2977.44,Decoy Farm,Care Establishment,4 - Operations - Providers services,LDP E Cambs Special Needs,Residential Independent Sector
Cambridgeshire County Council,31-Aug-17,24119673-15936509,-2977.44,Decoy Farm,Care Establishment,4 - Operations - Providers services,LDP E Cambs Special Needs,Residential Independent Sector
Cambridgeshire County Council,31-Aug-17,24119674-15936510,-2977.44,Decoy Farm,Care Establishment,4 - Operations - Providers services,LDP E Cambs Special Needs,Residential Independent Sector
Cambridgeshire County Council,31-Aug-17,24119695-15936530,-2977.44,Decoy Farm,Care Establishment,4 - Operations - Providers services,LDP E Cambs Special Needs,Residential Independent Sector
Cambridgeshire County Council,31-Aug-17,24119712-15936547,-2977.44,Decoy Farm,Care Establishment,4 - Operations - Providers services,LDP E Cambs Special Needs,Residential Independent Sector
Cambridgeshire County Council,31-Aug-17,24119630-15936567,-2977.44,Decoy Farm,Care Establishment,4 - Operations - Providers services,LDP E Cambs Special Needs,Residential Independent Sector
Cambridgeshire County Council,31-Aug-17,24119641-15936578,-2977.44,Decoy Farm,Care Establishment,4 - Operations - Providers services,LDP E Cambs Special Needs,Residential Independent Sector
Cambridgeshire County Council,31-Aug-17,24119753-15936604,-2977.44,Decoy Farm,Care Establishment,4 - Operations - Providers services,LDP E Cambs Special Needs,Residential Independent Sector
Cambridgeshire County Council,31-Aug-17,24119763-15936614,-2977.44,Decoy Farm,Care Establishment,4 - Operations - Providers services,LDP E Cambs Special Needs,Residential Independent Sector
Cambridgeshire County Council,31-Aug-17,24131762-15936622,-2977.44,Decoy Farm,Care Establishment,4 - Operations - Providers services,LDP E Cambs Special Needs,Residential Independent Sector
Cambridgeshire County Council,31-Aug-17,24131711-15936647,-2977.44,Decoy Farm,Care Establishment,4 - Operations - Providers services,LDP E Cambs Special Needs,Residential Independent Sector
Cambridgeshire County Council,31-Aug-17,24131747-15936682,-2977.44,Decoy Farm,Care Establishment,4 - Operations - Providers services,LDP E Cambs Special Needs,Residential Independent Sector
Cambridgeshire County Council,31-Aug-17,24131758-15936693,-2977.44,Decoy Farm,Care Establishment,4 - Operations - Providers services,LDP E Cambs Special Needs,Residential Independent Sector
Cambridgeshire County Council,31-Aug-17,24135633-15936712,-2977.44,Decoy Farm,Care Establishment,4 - Operations - Providers services,LDP E Cambs Special Needs,Residential Independent Sector
Cambridgeshire County Council,31-Aug-17,24135642-15936721,-2977.44,Decoy Farm,Care Establishment,4 - Operations - Providers services,LDP E Cambs Special Needs,Residential Independent Sector
Cambridgeshire County Council,31-Aug-17,24119653-15936489,-2977.44,Decoy Farm,Care Establishment,4 - Operations - Providers services,LDP E Cambs Special Needs,Residential Independent Sector
Cambridgeshire County Council,31-Aug-17,24119688-15936524,-2977.44,Decoy Farm,Care Establishment,4 - Operations - Providers services,LDP E Cambs Special Needs,Residential Independent Sector
Cambridgeshire County Council,31-Aug-17,24119724-15936559,-2977.44,Decoy Farm,Care Establishment,4 - Operations - Providers services,LDP E Cambs Special Needs,Residential Independent Sector
Cambridgeshire County Council,31-Aug-17,24119631-15936568,-2977.44,Decoy Farm,Care Establishment,4 - Operations - Providers services,LDP E Cambs Special Needs,Residential Independent Sector
Cambridgeshire County Council,31-Aug-17,24119731-15936582,-2977.44,Decoy Farm,Care Establishment,4 - Operations - Providers services,LDP E Cambs Special Needs,Residential Independent Sector
Cambridgeshire County Council,31-Aug-17,24119740-15936591,-2977.44,Decoy Farm,Care Establishment,4 - Operations - Providers services,LDP E Cambs Special Needs,Residential Independent Sector
Cambridgeshire County Council,31-Aug-17,24119747-15936598,-2977.44,Decoy Farm,Care Establishment,4 - Operations - Providers services,LDP E Cambs Special Needs,Residential Independent Sector
Cambridgeshire County Council,31-Aug-17,24119751-15936602,-2977.44,Decoy Farm,Care Establishment,4 - Operations - Providers services,LDP E Cambs Special Needs,Residential Independent Sector
Cambridgeshire County Council,31-Aug-17,24119760-15936611,-2977.44,Decoy Farm,Care Establishment,4 - Operations - Providers services,LDP E Cambs Special Needs,Residential Independent Sector
Cambridgeshire County Council,31-Aug-17,24119761-15936612,-2977.44,Decoy Farm,Care Establishment,4 - Operations - Providers services,LDP E Cambs Special Needs,Residential Independent Sector
Cambridgeshire County Council,31-Aug-17,24131770-15936629,-2977.44,Decoy Farm,Care Establishment,4 - Operations - Providers services,LDP E Cambs Special Needs,Residential Independent Sector
Cambridgeshire County Council,31-Aug-17,24131703-15936639,-2977.44,Decoy Farm,Care Establishment,4 - Operations - Providers services,LDP E Cambs Special Needs,Residential Independent Sector
Cambridgeshire County Council,31-Aug-17,24131704-15936640,-2977.44,Decoy Farm,Care Establishment,4 - Operations - Providers services,LDP E Cambs Special Needs,Residential Independent Sector
Cambridgeshire County Council,31-Aug-17,24131742-15936677,-2977.44,Decoy Farm,Care Establishment,4 - Operations - Providers services,LDP E Cambs Special Needs,Residential Independent Sector
Cambridgeshire County Council,31-Aug-17,24131751-15936686,-2977.44,Decoy Farm,Care Establishment,4 - Operations - Providers services,LDP E Cambs Special Needs,Residential Independent Sector
Cambridgeshire County Council,31-Aug-17,24135631-15936710,-2977.44,Decoy Farm,Care Establishment,4 - Operations - Providers services,LDP E Cambs Special Needs,Residential Independent Sector
Cambridgeshire County Council,31-Aug-17,24135637-15936716,-2977.44,Decoy Farm,Care Establishment,4 - Operations - Providers services,LDP E Cambs Special Needs,Residential Independent Sector
Cambridgeshire County Council,31-Aug-17,24119652-15936488,-2977.44,Decoy Farm,Care Establishment,4 - Operations - Providers services,LDP E Cambs Special Needs,Residential Independent Sector
Cambridgeshire County Council,31-Aug-17,24119658-15936494,-2977.44,Decoy Farm,Care Establishment,4 - Operations - Providers services,LDP E Cambs Special Needs,Residential Independent Sector
Cambridgeshire County Council,31-Aug-17,24119680-15936516,-2977.44,Decoy Farm,Care Establishment,4 - Operations - Providers services,LDP E Cambs Special Needs,Residential Independent Sector
Cambridgeshire County Council,31-Aug-17,24119684-15936520,-2977.44,Decoy Farm,Care Establishment,4 - Operations - Providers services,LDP E Cambs Special Needs,Residential Independent Sector
Cambridgeshire County Council,31-Aug-17,24119706-15936541,-2977.44,Decoy Farm,Care Establishment,4 - Operations - Providers services,LDP E Cambs Special Needs,Residential Independent Sector
Cambridgeshire County Council,31-Aug-17,24119714-15936549,-2977.44,Decoy Farm,Care Establishment,4 - Operations - Providers services,LDP E Cambs Special Needs,Residential Independent Sector
Cambridgeshire County Council,31-Aug-17,24119715-15936550,-2977.44,Decoy Farm,Care Establishment,4 - Operations - Providers services,LDP E Cambs Special Needs,Residential Independent Sector
Cambridgeshire County Council,31-Aug-17,24119629-15936566,-2977.44,Decoy Farm,Care Establishment,4 - Operations - Providers services,LDP E Cambs Special Needs,Residential Independent Sector
Cambridgeshire County Council,31-Aug-17,24119635-15936572,-2977.44,Decoy Farm,Care Establishment,4 - Operations - Providers services,LDP E Cambs Special Needs,Residential Independent Sector
Cambridgeshire County Council,31-Aug-17,24119732-15936583,-2977.44,Decoy Farm,Care Establishment,4 - Operations - Providers services,LDP E Cambs Special Needs,Residential Independent Sector
Cambridgeshire County Council,31-Aug-17,24131763-15936623,-2977.44,Decoy Farm,Care Establishment,4 - Operations - Providers services,LDP E Cambs Special Needs,Residential Independent Sector
Cambridgeshire County Council,31-Aug-17,24131778-15936637,-2977.44,Decoy Farm,Care Establishment,4 - Operations - Providers services,LDP E Cambs Special Needs,Residential Independent Sector
Cambridgeshire County Council,31-Aug-17,24131738-15936673,-2977.44,Decoy Farm,Care Establishment,4 - Operations - Providers services,LDP E Cambs Special Needs,Residential Independent Sector
Cambridgeshire County Council,31-Aug-17,24131741-15936676,-2977.44,Decoy Farm,Care Establishment,4 - Operations - Providers services,LDP E Cambs Special Needs,Residential Independent Sector
Cambridgeshire County Council,31-Aug-17,24135641-15936720,-2977.44,Decoy Farm,Care Establishment,4 - Operations - Providers services,LDP E Cambs Special Needs,Residential Independent Sector
Cambridgeshire County Council,31-Aug-17,24135615-15936732,-2977.44,Decoy Farm,Care Establishment,4 - Operations - Providers services,LDP E Cambs Special Needs,Residential Independent Sector
Cambridgeshire County Council,31-Aug-17,24119660-15936496,-2977.44,Decoy Farm,Care Establishment,4 - Operations - Providers services,LDP E Cambs Special Needs,Residential Independent Sector
Cambridgeshire County Council,31-Aug-17,24119675-15936511,-2977.44,Decoy Farm,Care Establishment,4 - Operations - Providers services,LDP E Cambs Special Needs,Residential Independent Sector
Cambridgeshire County Council,31-Aug-17,24119728-15936563,-2977.44,Decoy Farm,Care Establishment,4 - Operations - Providers services,LDP E Cambs Special Needs,Residential Independent Sector
Cambridgeshire County Council,31-Aug-17,24119639-15936576,-2977.44,Decoy Farm,Care Establishment,4 - Operations - Providers services,LDP E Cambs Special Needs,Residential Independent Sector
Cambridgeshire County Council,31-Aug-17,24119642-15936579,-2977.44,Decoy Farm,Care Establishment,4 - Operations - Providers services,LDP E Cambs Special Needs,Residential Independent Sector
Cambridgeshire County Council,31-Aug-17,24119738-15936589,-2977.44,Decoy Farm,Care Establishment,4 - Operations - Providers services,LDP E Cambs Special Needs,Residential Independent Sector
Cambridgeshire County Council,31-Aug-17,24119759-15936610,-2977.44,Decoy Farm,Care Establishment,4 - Operations - Providers services,LDP E Cambs Special Needs,Residential Independent Sector
Cambridgeshire County Council,31-Aug-17,24131710-15936646,-2977.44,Decoy Farm,Care Establishment,4 - Operations - Providers services,LDP E Cambs Special Needs,Residential Independent Sector
Cambridgeshire County Council,31-Aug-17,24131725-15936661,-2977.44,Decoy Farm,Care Establishment,4 - Operations - Providers services,LDP E Cambs Special Needs,Residential Independent Sector
Cambridgeshire County Council,31-Aug-17,24131730-15936665,-2977.44,Decoy Farm,Care Establishment,4 - Operations - Providers services,LDP E Cambs Special Needs,Residential Independent Sector
Cambridgeshire County Council,31-Aug-17,24131743-15936678,-2977.44,Decoy Farm,Care Establishment,4 - Operations - Providers services,LDP E Cambs Special Needs,Residential Independent Sector
Cambridgeshire County Council,31-Aug-17,24135612-15936729,-2977.44,Decoy Farm,Care Establishment,4 - Operations - Providers services,LDP E Cambs Special Needs,Residential Independent Sector
Cambridgeshire County Council,31-Aug-17,24135625-15936742,-2977.44,Decoy Farm,Care Establishment,4 - Operations - Providers services,LDP E Cambs Special Needs,Residential Independent Sector
Cambridgeshire County Council,31-Aug-17,24119681-15936517,-2977.44,Decoy Farm,Care Establishment,4 - Operations - Providers services,LDP E Cambs Special Needs,Residential Independent Sector
Cambridgeshire County Council,31-Aug-17,24119702-15936537,-2977.44,Decoy Farm,Care Establishment,4 - Operations - Providers services,LDP E Cambs Special Needs,Residential Independent Sector
Cambridgeshire County Council,31-Aug-17,24119721-15936556,-2977.44,Decoy Farm,Care Establishment,4 - Operations - Providers services,LDP E Cambs Special Needs,Residential Independent Sector
Cambridgeshire County Council,31-Aug-17,24119628-15936565,-2977.44,Decoy Farm,Care Establishment,4 - Operations - Providers services,LDP E Cambs Special Needs,Residential Independent Sector
Cambridgeshire County Council,31-Aug-17,24119637-15936574,-2977.44,Decoy Farm,Care Establishment,4 - Operations - Providers services,LDP E Cambs Special Needs,Residential Independent Sector
Cambridgeshire County Council,31-Aug-17,24119768-15936619,-2977.44,Decoy Farm,Care Establishment,4 - Operations - Providers services,LDP E Cambs Special Needs,Residential Independent Sector
Cambridgeshire County Council,31-Aug-17,24131714-15936650,-2977.44,Decoy Farm,Care Establishment,4 - Operations - Providers services,LDP E Cambs Special Needs,Residential Independent Sector
Cambridgeshire County Council,31-Aug-17,24131716-15936652,-2977.44,Decoy Farm,Care Establishment,4 - Operations - Providers services,LDP E Cambs Special Needs,Residential Independent Sector
Cambridgeshire County Council,31-Aug-17,24131726-15936662,-2977.44,Decoy Farm,Care Establishment,4 - Operations - Providers services,LDP E Cambs Special Needs,Residential Independent Sector
Cambridgeshire County Council,31-Aug-17,24131737-15936672,-2977.44,Decoy Farm,Care Establishment,4 - Operations - Providers services,LDP E Cambs Special Needs,Residential Independent Sector
Cambridgeshire County Council,31-Aug-17,24131748-15936683,-2977.44,Decoy Farm,Care Establishment,4 - Operations - Providers services,LDP E Cambs Special Needs,Residential Independent Sector
Cambridgeshire County Council,10-Aug-17,23894298-15826276,-2919.43,Aurora Orchard Manor#1,Care Establishment,Corporate Services,LDP Young Adults - Care,Respite Independent Sector
Cambridgeshire County Council,10-Aug-17,23894300-15826278,-2919.43,Aurora Orchard Manor#1,Care Establishment,Corporate Services,LDP Young Adults - Care,Respite Independent Sector
Cambridgeshire County Council,10-Aug-17,23894299-15826277,-2919.43,Aurora Orchard Manor#1,Care Establishment,Corporate Services,LDP Young Adults - Care,Respite Independent Sector
Cambridgeshire County Council,24-Aug-17,24099306-15915673,-2700.66,Affinity Trust,Care Establishment,4 - Operations - Providers services,LDP Huntingdonshire Locality - Care,Residential Independent Sector
Cambridgeshire County Council,24-Aug-17,24099303-15915670,-2700.66,Affinity Trust,Care Establishment,4 - Operations - Providers services,LDP Huntingdonshire Locality - Care,Residential Independent Sector
Cambridgeshire County Council,24-Aug-17,24099305-15915672,-2700.66,Affinity Trust,Care Establishment,4 - Operations - Providers services,LDP Huntingdonshire Locality - Care,Residential Independent Sector
Cambridgeshire County Council,24-Aug-17,24099307-15915674,-2700.66,Affinity Trust,Care Establishment,4 - Operations - Providers services,LDP Huntingdonshire Locality - Care,Residential Independent Sector
Cambridgeshire County Council,01-Aug-17,23752444-15784788,-2611.59,Compass Fostering Central Limited,Care Establishment,S&C,Placements - Social Care,Agency Placements - In Cambs
Cambridgeshire County Council,10-Aug-17,23970931-15822811,-2552.09,Decoy Farm,Care Establishment,4 - Operations - Providers services,LDP E Cambs Special Needs,Residential Independent Sector
Cambridgeshire County Council,10-Aug-17,23973041-15822960,-2552.09,Decoy Farm,Care Establishment,4 - Operations - Providers services,LDP E Cambs Special Needs,Residential Independent Sector
Cambridgeshire County Council,24-Aug-17,24099040-15911842,-2552.09,Decoy Farm,Care Establishment,4 - Operations - Providers services,LDP E Cambs Special Needs,Residential Independent Sector
Cambridgeshire County Council,24-Aug-17,24045441-15911616,-2552.09,Decoy Farm,Care Establishment,4 - Operations - Providers services,LDP E Cambs Special Needs,Residential Independent Sector
Cambridgeshire County Council,24-Aug-17,24097072-15911774,-2552.09,Decoy Farm,Care Establishment,4 - Operations - Providers services,LDP E Cambs Special Needs,Residential Independent Sector
Cambridgeshire County Council,24-Aug-17,24038130-15911463,-2552.09,Decoy Farm,Care Establishment,4 - Operations - Providers services,LDP E Cambs Special Needs,Residential Independent Sector
Cambridgeshire County Council,31-Aug-17,24119704-15936539,-2552.09,Decoy Farm,Care Establishment,4 - Operations - Providers services,LDP E Cambs Special Needs,Residential Independent Sector
Cambridgeshire County Council,31-Aug-17,24119691-15936527,-2552.09,Decoy Farm,Care Establishment,4 - Operations - Providers services,LDP E Cambs Special Needs,Residential Independent Sector
Cambridgeshire County Council,10-Aug-17,23894297-15826275,-2502.37,Aurora Orchard Manor#1,Care Establishment,Corporate Services,LDP Young Adults - Care,Respite Independent Sector
Cambridgeshire County Council,17-Aug-17,23898032-15877178,-2337.29,Dimensions (Uk) Ltd,Care Establishment,4 - Operations - Providers services,LDP Cambs City - Special Needs,Supported Living
Cambridgeshire County Council,17-Aug-17,23935901-15877197,-2337.29,Dimensions (Uk) Ltd,Care Establishment,4 - Operations - Providers services,LDP South Cambs - Special Needs,Supported Living
Cambridgeshire County Council,17-Aug-17,23935903-15877199,-2337.29,Dimensions (Uk) Ltd,Care Establishment,4 - Operations - Providers services,LDP Cambs City - Special Needs,Supported Living
Cambridgeshire County Council,17-Aug-17,23898037-15877183,-2337.29,Dimensions (Uk) Ltd,Care Establishment,4 - Operations - Providers services,LDP South Cambs - Special Needs,Supported Living
Cambridgeshire County Council,17-Aug-17,23898047-15877192,-2337.29,Dimensions (Uk) Ltd,Care Establishment,4 - Operations - Providers services,LDP South Cambs - Special Needs,Supported Living
Cambridgeshire County Council,17-Aug-17,23898048-15877193,-2337.29,Dimensions (Uk) Ltd,Care Establishment,4 - Operations - Providers services,LDP Cambs City - Special Needs,Supported Living
Cambridgeshire County Council,17-Aug-17,23972586-15877220,-2337.29,Dimensions (Uk) Ltd,Care Establishment,4 - Operations - Providers services,LDP South Cambs - Special Needs,Supported Living
Cambridgeshire County Council,17-Aug-17,24027775-15877242,-2337.29,Dimensions (Uk) Ltd,Care Establishment,4 - Operations - Providers services,LDP Cambs City - Special Needs,Supported Living
Cambridgeshire County Council,17-Aug-17,23935908-15877204,-2337.29,Dimensions (Uk) Ltd,Care Establishment,4 - Operations - Providers services,LDP South Cambs - Special Needs,Supported Living
Cambridgeshire County Council,17-Aug-17,23972590-15877224,-2337.29,Dimensions (Uk) Ltd,Care Establishment,4 - Operations - Providers services,LDP South Cambs - Special Needs,Supported Living
Cambridgeshire County Council,17-Aug-17,23898030-15877176,-2337.29,Dimensions (Uk) Ltd,Care Establishment,4 - Operations - Providers services,LDP South Cambs - Special Needs,Supported Living
Cambridgeshire County Council,17-Aug-17,23935907-15877203,-2337.29,Dimensions (Uk) Ltd,Care Establishment,4 - Operations - Providers services,LDP Cambs City - Special Needs,Supported Living
Cambridgeshire County Council,17-Aug-17,23935911-15877207,-2337.29,Dimensions (Uk) Ltd,Care Establishment,4 - Operations - Providers services,LDP Cambs City - Special Needs,Supported Living
Cambridgeshire County Council,17-Aug-17,23972585-15877219,-2337.29,Dimensions (Uk) Ltd,Care Establishment,4 - Operations - Providers services,LDP South Cambs - Special Needs,Supported Living
Cambridgeshire County Council,17-Aug-17,23972595-15877229,-2337.29,Dimensions (Uk) Ltd,Care Establishment,4 - Operations - Providers services,LDP Cambs City - Special Needs,Supported Living
Cambridgeshire County Council,17-Aug-17,24027778-15877245,-2337.29,Dimensions (Uk) Ltd,Care Establishment,4 - Operations - Providers services,LDP South Cambs - Special Needs,Supported Living
Cambridgeshire County Council,17-Aug-17,23935909-15877205,-2337.29,Dimensions (Uk) Ltd,Care Establishment,4 - Operations - Providers services,LDP Cambs City - Special Needs,Supported Living
Cambridgeshire County Council,17-Aug-17,23935912-15877208,-2337.29,Dimensions (Uk) Ltd,Care Establishment,4 - Operations - Providers services,LDP South Cambs - Special Needs,Supported Living
Cambridgeshire County Council,17-Aug-17,24027773-15877240,-2337.29,Dimensions (Uk) Ltd,Care Establishment,4 - Operations - Providers services,LDP South Cambs - Special Needs,Supported Living
Cambridgeshire County Council,17-Aug-17,23898045-15877191,-2337.29,Dimensions (Uk) Ltd,Care Establishment,4 - Operations - Providers services,LDP Cambs City - Special Needs,Supported Living
Cambridgeshire County Council,17-Aug-17,23935913-15877209,-2337.29,Dimensions (Uk) Ltd,Care Establishment,4 - Operations - Providers services,LDP Cambs City - Special Needs,Supported Living
Cambridgeshire County Council,17-Aug-17,23972578-15877212,-2337.29,Dimensions (Uk) Ltd,Care Establishment,4 - Operations - Providers services,LDP Cambs City - Special Needs,Supported Living
Cambridgeshire County Council,17-Aug-17,23972591-15877225,-2337.29,Dimensions (Uk) Ltd,Care Establishment,4 - Operations - Providers services,LDP South Cambs - Special Needs,Supported Living
Cambridgeshire County Council,17-Aug-17,24046679-15877342,-2337.29,Dimensions (Uk) Ltd,Care Establishment,4 - Operations - Providers services,LDP South Cambs - Special Needs,Supported Living
Cambridgeshire County Council,17-Aug-17,23898039-15877185,-2337.29,Dimensions (Uk) Ltd,Care Establishment,4 - Operations - Providers services,LDP South Cambs - Special Needs,Supported Living
Cambridgeshire County Council,17-Aug-17,23972580-15877214,-2337.29,Dimensions (Uk) Ltd,Care Establishment,4 - Operations - Providers services,LDP South Cambs - Special Needs,Supported Living
Cambridgeshire County Council,17-Aug-17,23972583-15877217,-2337.29,Dimensions (Uk) Ltd,Care Establishment,4 - Operations - Providers services,LDP South Cambs - Special Needs,Supported Living
Cambridgeshire County Council,17-Aug-17,24027766-15877233,-2337.29,Dimensions (Uk) Ltd,Care Establishment,4 - Operations - Providers services,LDP Cambs City - Special Needs,Supported Living
Cambridgeshire County Council,17-Aug-17,24027770-15877237,-2337.29,Dimensions (Uk) Ltd,Care Establishment,4 - Operations - Providers services,LDP South Cambs - Special Needs,Supported Living
Cambridgeshire County Council,17-Aug-17,24027777-15877244,-2337.29,Dimensions (Uk) Ltd,Care Establishment,4 - Operations - Providers services,LDP South Cambs - Special Needs,Supported Living
Cambridgeshire County Council,17-Aug-17,23898038-15877184,-2337.29,Dimensions (Uk) Ltd,Care Establishment,4 - Operations - Providers services,LDP South Cambs - Special Needs,Supported Living
Cambridgeshire County Council,17-Aug-17,24027782-15877248,-2337.29,Dimensions (Uk) Ltd,Care Establishment,4 - Operations - Providers services,LDP Cambs City - Special Needs,Supported Living
Cambridgeshire County Council,17-Aug-17,23971113-15874229,-2185.37,Turning Point Services Ltd,Care Establishment,2 - Operations - Learning Disability,LDP Fenland Locality - Care,Day and Domicillary Care Independent Sector
Cambridgeshire County Council,17-Aug-17,23971137-15874253,-2185.37,Turning Point Services Ltd,Care Establishment,2 - Operations - Learning Disability,LDP Fenland Locality - Care,Day and Domicillary Care Independent Sector
Cambridgeshire County Council,17-Aug-17,23975956-15874272,-2185.37,Turning Point Services Ltd,Care Establishment,2 - Operations - Learning Disability,LDP Fenland Locality - Care,Day and Domicillary Care Independent Sector
Cambridgeshire County Council,17-Aug-17,23976025-15874290,-2185.37,Turning Point Services Ltd,Care Establishment,2 - Operations - Learning Disability,LDP Fenland Locality - Care,Day and Domicillary Care Independent Sector
Cambridgeshire County Council,17-Aug-17,23976029-15874294,-2185.37,Turning Point Services Ltd,Care Establishment,2 - Operations - Learning Disability,LDP Fenland Locality - Care,Day and Domicillary Care Independent Sector
Cambridgeshire County Council,17-Aug-17,23976047-15874295,-2185.37,Turning Point Services Ltd,Care Establishment,2 - Operations - Learning Disability,LDP Fenland Locality - Care,Day and Domicillary Care Independent Sector
Cambridgeshire County Council,17-Aug-17,23976035-15874304,-2185.37,Turning Point Services Ltd,Care Establishment,2 - Operations - Learning Disability,LDP Fenland Locality - Care,Day and Domicillary Care Independent Sector
Cambridgeshire County Council,17-Aug-17,23975979-15874333,-2185.37,Turning Point Services Ltd,Care Establishment,2 - Operations - Learning Disability,LDP Fenland Locality - Care,Day and Domicillary Care Independent Sector
Cambridgeshire County Council,17-Aug-17,23975987-15874341,-2185.37,Turning Point Services Ltd,Care Establishment,2 - Operations - Learning Disability,LDP Fenland Locality - Care,Day and Domicillary Care Independent Sector
Cambridgeshire County Council,17-Aug-17,23971129-15874245,-2185.37,Turning Point Services Ltd,Care Establishment,2 - Operations - Learning Disability,LDP Fenland Locality - Care,Day and Domicillary Care Independent Sector
Cambridgeshire County Council,17-Aug-17,23971130-15874246,-2185.37,Turning Point Services Ltd,Care Establishment,2 - Operations - Learning Disability,LDP Fenland Locality - Care,Day and Domicillary Care Independent Sector
Cambridgeshire County Council,17-Aug-17,23971131-15874247,-2185.37,Turning Point Services Ltd,Care Establishment,2 - Operations - Learning Disability,LDP Fenland Locality - Care,Day and Domicillary Care Independent Sector
Cambridgeshire County Council,17-Aug-17,23974022-15874261,-2185.37,Turning Point Services Ltd,Care Establishment,2 - Operations - Learning Disability,LDP Fenland Locality - Care,Day and Domicillary Care Independent Sector
Cambridgeshire County Council,17-Aug-17,23976014-15874279,-2185.37,Turning Point Services Ltd,Care Establishment,2 - Operations - Learning Disability,LDP Fenland Locality - Care,Day and Domicillary Care Independent Sector
Cambridgeshire County Council,17-Aug-17,23976050-15874298,-2185.37,Turning Point Services Ltd,Care Establishment,2 - Operations - Learning Disability,LDP Fenland Locality - Care,Day and Domicillary Care Independent Sector
Cambridgeshire County Council,17-Aug-17,23976041-15874310,-2185.37,Turning Point Services Ltd,Care Establishment,2 - Operations - Learning Disability,LDP Fenland Locality - Care,Day and Domicillary Care Independent Sector
Cambridgeshire County Council,17-Aug-17,23975967-15874321,-2185.37,Turning Point Services Ltd,Care Establishment,2 - Operations - Learning Disability,LDP Fenland Locality - Care,Day and Domicillary Care Independent Sector
Cambridgeshire County Council,17-Aug-17,23975977-15874331,-2185.37,Turning Point Services Ltd,Care Establishment,2 - Operations - Learning Disability,LDP Fenland Locality - Care,Day and Domicillary Care Independent Sector
Cambridgeshire County Council,17-Aug-17,23975978-15874332,-2185.37,Turning Point Services Ltd,Care Establishment,2 - Operations - Learning Disability,LDP Fenland Locality - Care,Day and Domicillary Care Independent Sector
Cambridgeshire County Council,17-Aug-17,23976010-15874364,-2185.37,Turning Point Services Ltd,Care Establishment,2 - Operations - Learning Disability,LDP Fenland Locality - Care,Day and Domicillary Care Independent Sector
Cambridgeshire County Council,17-Aug-17,23976012-15874366,-2185.37,Turning Point Services Ltd,Care Establishment,2 - Operations - Learning Disability,LDP Fenland Locality - Care,Day and Domicillary Care Independent Sector
Cambridgeshire County Council,17-Aug-17,23971125-15874241,-2185.37,Turning Point Services Ltd,Care Establishment,2 - Operations - Learning Disability,LDP Fenland Locality - Care,Day and Domicillary Care Independent Sector
Cambridgeshire County Council,17-Aug-17,23974017-15874256,-2185.37,Turning Point Services Ltd,Care Establishment,2 - Operations - Learning Disability,LDP Fenland Locality - Care,Day and Domicillary Care Independent Sector
Cambridgeshire County Council,17-Aug-17,23974021-15874260,-2185.37,Turning Point Services Ltd,Care Establishment,2 - Operations - Learning Disability,LDP Fenland Locality - Care,Day and Domicillary Care Independent Sector
Cambridgeshire County Council,17-Aug-17,23976016-15874281,-2185.37,Turning Point Services Ltd,Care Establishment,2 - Operations - Learning Disability,LDP Fenland Locality - Care,Day and Domicillary Care Independent Sector
Cambridgeshire County Council,17-Aug-17,23976038-15874307,-2185.37,Turning Point Services Ltd,Care Establishment,2 - Operations - Learning Disability,LDP Fenland Locality - Care,Day and Domicillary Care Independent Sector
Cambridgeshire County Council,17-Aug-17,23975963-15874317,-2185.37,Turning Point Services Ltd,Care Establishment,2 - Operations - Learning Disability,LDP Fenland Locality - Care,Day and Domicillary Care Independent Sector
Cambridgeshire County Council,17-Aug-17,23975966-15874320,-2185.37,Turning Point Services Ltd,Care Establishment,2 - Operations - Learning Disability,LDP Fenland Locality - Care,Day and Domicillary Care Independent Sector
Cambridgeshire County Council,17-Aug-17,23971114-15874230,-2185.37,Turning Point Services Ltd,Care Establishment,2 - Operations - Learning Disability,LDP Fenland Locality - Care,Day and Domicillary Care Independent Sector
Cambridgeshire County Council,17-Aug-17,23976019-15874284,-2185.37,Turning Point Services Ltd,Care Establishment,2 - Operations - Learning Disability,LDP Fenland Locality - Care,Day and Domicillary Care Independent Sector
Cambridgeshire County Council,17-Aug-17,23976028-15874293,-2185.37,Turning Point Services Ltd,Care Establishment,2 - Operations - Learning Disability,LDP Fenland Locality - Care,Day and Domicillary Care Independent Sector
Cambridgeshire County Council,17-Aug-17,23976030-15874299,-2185.37,Turning Point Services Ltd,Care Establishment,2 - Operations - Learning Disability,LDP Fenland Locality - Care,Day and Domicillary Care Independent Sector
Cambridgeshire County Council,17-Aug-17,23975997-15874351,-2185.37,Turning Point Services Ltd,Care Establishment,2 - Operations - Learning Disability,LDP Fenland Locality - Care,Day and Domicillary Care Independent Sector
Cambridgeshire County Council,17-Aug-17,23971115-15874231,-2185.37,Turning Point Services Ltd,Care Establishment,2 - Operations - Learning Disability,LDP Fenland Locality - Care,Day and Domicillary Care Independent Sector
Cambridgeshire County Council,17-Aug-17,23971138-15874254,-2185.37,Turning Point Services Ltd,Care Establishment,2 - Operations - Learning Disability,LDP Fenland Locality - Care,Day and Domicillary Care Independent Sector
Cambridgeshire County Council,17-Aug-17,23976024-15874289,-2185.37,Turning Point Services Ltd,Care Establishment,2 - Operations - Learning Disability,LDP Fenland Locality - Care,Day and Domicillary Care Independent Sector
Cambridgeshire County Council,17-Aug-17,23976026-15874291,-2185.37,Turning Point Services Ltd,Care Establishment,2 - Operations - Learning Disability,LDP Fenland Locality - Care,Day and Domicillary Care Independent Sector
Cambridgeshire County Council,17-Aug-17,23976032-15874301,-2185.37,Turning Point Services Ltd,Care Establishment,2 - Operations - Learning Disability,LDP Fenland Locality - Care,Day and Domicillary Care Independent Sector
Cambridgeshire County Council,17-Aug-17,23975968-15874322,-2185.37,Turning Point Services Ltd,Care Establishment,2 - Operations - Learning Disability,LDP Fenland Locality - Care,Day and Domicillary Care Independent Sector
Cambridgeshire County Council,17-Aug-17,23975985-15874339,-2185.37,Turning Point Services Ltd,Care Establishment,2 - Operations - Learning Disability,LDP Fenland Locality - Care,Day and Domicillary Care Independent Sector
Cambridgeshire County Council,17-Aug-17,23976003-15874357,-2185.37,Turning Point Services Ltd,Care Establishment,2 - Operations - Learning Disability,LDP Fenland Locality - Care,Day and Domicillary Care Independent Sector
Cambridgeshire County Council,17-Aug-17,23971118-15874234,-2185.37,Turning Point Services Ltd,Care Establishment,2 - Operations - Learning Disability,LDP Fenland Locality - Care,Day and Domicillary Care Independent Sector
Cambridgeshire County Council,17-Aug-17,23975952-15874268,-2185.37,Turning Point Services Ltd,Care Establishment,2 - Operations - Learning Disability,LDP Fenland Locality - Care,Day and Domicillary Care Independent Sector
Cambridgeshire County Council,17-Aug-17,23976027-15874292,-2185.37,Turning Point Services Ltd,Care Establishment,2 - Operations - Learning Disability,LDP Fenland Locality - Care,Day and Domicillary Care Independent Sector
Cambridgeshire County Council,17-Aug-17,23976048-15874296,-2185.37,Turning Point Services Ltd,Care Establishment,2 - Operations - Learning Disability,LDP Fenland Locality - Care,Day and Domicillary Care Independent Sector
Cambridgeshire County Council,17-Aug-17,23976033-15874302,-2185.37,Turning Point Services Ltd,Care Establishment,2 - Operations - Learning Disability,LDP Fenland Locality - Care,Day and Domicillary Care Independent Sector
Cambridgeshire County Council,17-Aug-17,23975969-15874323,-2185.37,Turning Point Services Ltd,Care Establishment,2 - Operations - Learning Disability,LDP Fenland Locality - Care,Day and Domicillary Care Independent Sector
Cambridgeshire County Council,17-Aug-17,23975974-15874328,-2185.37,Turning Point Services Ltd,Care Establishment,2 - Operations - Learning Disability,LDP Fenland Locality - Care,Day and Domicillary Care Independent Sector
Cambridgeshire County Council,17-Aug-17,23975986-15874340,-2185.37,Turning Point Services Ltd,Care Establishment,2 - Operations - Learning Disability,LDP Fenland Locality - Care,Day and Domicillary Care Independent Sector
Cambridgeshire County Council,17-Aug-17,23971121-15874237,-2185.37,Turning Point Services Ltd,Care Establishment,2 - Operations - Learning Disability,LDP Fenland Locality - Care,Day and Domicillary Care Independent Sector
Cambridgeshire County Council,17-Aug-17,23974025-15874264,-2185.37,Turning Point Services Ltd,Care Establishment,2 - Operations - Learning Disability,LDP Fenland Locality - Care,Day and Domicillary Care Independent Sector
Cambridgeshire County Council,17-Aug-17,23975950-15874266,-2185.37,Turning Point Services Ltd,Care Establishment,2 - Operations - Learning Disability,LDP Fenland Locality - Care,Day and Domicillary Care Independent Sector
Cambridgeshire County Council,17-Aug-17,23975961-15874277,-2185.37,Turning Point Services Ltd,Care Establishment,2 - Operations - Learning Disability,LDP Fenland Locality - Care,Day and Domicillary Care Independent Sector
Cambridgeshire County Council,17-Aug-17,23976015-15874280,-2185.37,Turning Point Services Ltd,Care Establishment,2 - Operations - Learning Disability,LDP Fenland Locality - Care,Day and Domicillary Care Independent Sector
Cambridgeshire County Council,17-Aug-17,23976046-15874315,-2185.37,Turning Point Services Ltd,Care Establishment,2 - Operations - Learning Disability,LDP Fenland Locality - Care,Day and Domicillary Care Independent Sector
Cambridgeshire County Council,17-Aug-17,23975971-15874325,-2185.37,Turning Point Services Ltd,Care Establishment,2 - Operations - Learning Disability,LDP Fenland Locality - Care,Day and Domicillary Care Independent Sector
Cambridgeshire County Council,17-Aug-17,23975982-15874336,-2185.37,Turning Point Services Ltd,Care Establishment,2 - Operations - Learning Disability,LDP Fenland Locality - Care,Day and Domicillary Care Independent Sector
Cambridgeshire County Council,17-Aug-17,23976002-15874356,-2185.37,Turning Point Services Ltd,Care Establishment,2 - Operations - Learning Disability,LDP Fenland Locality - Care,Day and Domicillary Care Independent Sector
Cambridgeshire County Council,17-Aug-17,23971127-15874243,-2185.37,Turning Point Services Ltd,Care Establishment,2 - Operations - Learning Disability,LDP Fenland Locality - Care,Day and Domicillary Care Independent Sector
Cambridgeshire County Council,17-Aug-17,23971139-15874255,-2185.37,Turning Point Services Ltd,Care Establishment,2 - Operations - Learning Disability,LDP Fenland Locality - Care,Day and Domicillary Care Independent Sector
Cambridgeshire County Council,17-Aug-17,23974020-15874259,-2185.37,Turning Point Services Ltd,Care Establishment,2 - Operations - Learning Disability,LDP Fenland Locality - Care,Day and Domicillary Care Independent Sector
Cambridgeshire County Council,17-Aug-17,23974026-15874265,-2185.37,Turning Point Services Ltd,Care Establishment,2 - Operations - Learning Disability,LDP Fenland Locality - Care,Day and Domicillary Care Independent Sector
Cambridgeshire County Council,17-Aug-17,23975957-15874273,-2185.37,Turning Point Services Ltd,Care Establishment,2 - Operations - Learning Disability,LDP Fenland Locality - Care,Day and Domicillary Care Independent Sector
Cambridgeshire County Council,17-Aug-17,23976020-15874285,-2185.37,Turning Point Services Ltd,Care Establishment,2 - Operations - Learning Disability,LDP Fenland Locality - Care,Day and Domicillary Care Independent Sector
Cambridgeshire County Council,17-Aug-17,23975994-15874348,-2185.37,Turning Point Services Ltd,Care Establishment,2 - Operations - Learning Disability,LDP Fenland Locality - Care,Day and Domicillary Care Independent Sector
Cambridgeshire County Council,17-Aug-17,23976000-15874354,-2185.37,Turning Point Services Ltd,Care Establishment,2 - Operations - Learning Disability,LDP Fenland Locality - Care,Day and Domicillary Care Independent Sector
Cambridgeshire County Council,10-Aug-17,23971041-15822870,-2126.74,Decoy Farm,Care Establishment,4 - Operations - Providers services,LDP E Cambs Special Needs,Residential Independent Sector
Cambridgeshire County Council,24-Aug-17,24045431-15911606,-2126.74,Decoy Farm,Care Establishment,4 - Operations - Providers services,LDP E Cambs Special Needs,Residential Independent Sector
Cambridgeshire County Council,24-Aug-17,24099029-15911831,-2126.74,Decoy Farm,Care Establishment,4 - Operations - Providers services,LDP E Cambs Special Needs,Residential Independent Sector
Cambridgeshire County Council,31-Aug-17,24131732-15936667,-2126.74,Decoy Farm,Care Establishment,4 - Operations - Providers services,LDP E Cambs Special Needs,Residential Independent Sector
Cambridgeshire County Council,17-Aug-17,23976004-15874358,-1873.17,Turning Point Services Ltd,Care Establishment,2 - Operations - Learning Disability,LDP Fenland Locality - Care,Day and Domicillary Care Independent Sector
Cambridgeshire County Council,17-Aug-17,23975976-15874330,-1873.17,Turning Point Services Ltd,Care Establishment,2 - Operations - Learning Disability,LDP Fenland Locality - Care,Day and Domicillary Care Independent Sector
Cambridgeshire County Council,24-Aug-17,24102463-15915338,-1825.01,Mayfield Heath Farm,Care Establishment,4 - Operations - Providers services,LDP Huntingdonshire Locality - Care,Supported Living
Cambridgeshire County Council,24-Aug-17,24102466-15915341,-1825.01,Mayfield Heath Farm,Care Establishment,4 - Operations - Providers services,LDP Huntingdonshire Locality - Care,Supported Living
Cambridgeshire County Council,24-Aug-17,24102451-15915326,-1825.01,Mayfield Heath Farm,Care Establishment,4 - Operations - Providers services,LDP Huntingdonshire Locality - Care,Supported Living
Cambridgeshire County Council,24-Aug-17,24102461-15915336,-1825.01,Mayfield Heath Farm,Care Establishment,4 - Operations - Providers services,LDP Huntingdonshire Locality - Care,Supported Living
Cambridgeshire County Council,17-Aug-17,23970889-15867838,-1780.14,Voyage,Care Establishment,4 - Operations - Providers services,LDP South Cambs - Special Needs,Residential Independent Sector
Cambridgeshire County Council,17-Aug-17,23974585-15868254,-1780.14,Voyage,Care Establishment,4 - Operations - Providers services,LDP Cambs City - Special Needs,Residential Independent Sector
Cambridgeshire County Council,17-Aug-17,23976152-15868288,-1780.14,Voyage,Care Establishment,4 - Operations - Providers services,LDP Cambs City - Special Needs,Residential Independent Sector
Cambridgeshire County Council,17-Aug-17,23976155-15868290,-1780.14,Voyage,Care Establishment,4 - Operations - Providers services,LDP Cambs City - Special Needs,Residential Independent Sector
Cambridgeshire County Council,17-Aug-17,23976186-15868308,-1780.14,Voyage,Care Establishment,4 - Operations - Providers services,LDP Cambs City - Special Needs,Residential Independent Sector
Cambridgeshire County Council,17-Aug-17,23976196-15868313,-1780.14,Voyage,Care Establishment,4 - Operations - Providers services,LDP Cambs City - Special Needs,Residential Independent Sector
Cambridgeshire County Council,17-Aug-17,23976198-15868314,-1780.14,Voyage,Care Establishment,4 - Operations - Providers services,LDP Cambs City - Special Needs,Residential Independent Sector
Cambridgeshire County Council,17-Aug-17,23971393-15867894,-1780.14,Voyage,Care Establishment,4 - Operations - Providers services,LDP Cambs City - Special Needs,Residential Independent Sector
Cambridgeshire County Council,17-Aug-17,23971400-15867901,-1780.14,Voyage,Care Establishment,4 - Operations - Providers services,LDP Cambs City - Special Needs,Residential Independent Sector
Cambridgeshire County Council,17-Aug-17,23972904-15868118,-1780.14,Voyage,Care Establishment,4 - Operations - Providers services,LDP South Cambs - Special Needs,Residential Independent Sector
Cambridgeshire County Council,17-Aug-17,23972905-15868119,-1780.14,Voyage,Care Establishment,4 - Operations - Providers services,LDP South Cambs - Special Needs,Residential Independent Sector
Cambridgeshire County Council,17-Aug-17,23972906-15868120,-1780.14,Voyage,Care Establishment,4 - Operations - Providers services,LDP South Cambs - Special Needs,Residential Independent Sector
Cambridgeshire County Council,17-Aug-17,23972909-15868123,-1780.14,Voyage,Care Establishment,4 - Operations - Providers services,LDP South Cambs - Special Needs,Residential Independent Sector
Cambridgeshire County Council,17-Aug-17,23972918-15868131,-1780.14,Voyage,Care Establishment,4 - Operations - Providers services,LDP South Cambs - Special Needs,Residential Independent Sector
Cambridgeshire County Council,17-Aug-17,23972924-15868137,-1780.14,Voyage,Care Establishment,4 - Operations - Providers services,LDP South Cambs - Special Needs,Residential Independent Sector
Cambridgeshire County Council,17-Aug-17,24032187-15868479,-1780.14,Voyage,Care Establishment,2 - Operations - Learning Disability,LDP South Cambs Locality - Care,Residential Independent Sector
Cambridgeshire County Council,17-Aug-17,24032115-15868517,-1780.14,Voyage,Care Establishment,2 - Operations - Learning Disability,LDP South Cambs Locality - Care,Residential Independent Sector
Cambridgeshire County Council,17-Aug-17,24034472-15868594,-1780.14,Voyage,Care Establishment,4 - Operations - Providers services,LDP City Locality - Care,Residential Independent Sector
Cambridgeshire County Council,17-Aug-17,24034474-15868596,-1780.14,Voyage,Care Establishment,4 - Operations - Providers services,LDP City Locality - Care,Residential Independent Sector
Cambridgeshire County Council,17-Aug-17,24034432-15868657,-1780.14,Voyage,Care Establishment,4 - Operations - Providers services,LDP City Locality - Care,Residential Independent Sector
Cambridgeshire County Council,17-Aug-17,24035026-15868700,-1780.14,Voyage,Care Establishment,4 - Operations - Providers services,LDP City Locality - Care,Residential Independent Sector
Cambridgeshire County Council,17-Aug-17,24035027-15868701,-1780.14,Voyage,Care Establishment,4 - Operations - Providers services,LDP City Locality - Care,Residential Independent Sector
Cambridgeshire County Council,17-Aug-17,24034998-15868712,-1780.14,Voyage,Care Establishment,4 - Operations - Providers services,LDP City Locality - Care,Residential Independent Sector
Cambridgeshire County Council,17-Aug-17,24042063-15868942,-1780.14,Voyage,Care Establishment,4 - Operations - Providers services,LDP City Locality - Care,Residential Independent Sector
Cambridgeshire County Council,17-Aug-17,24042006-15868960,-1780.14,Voyage,Care Establishment,4 - Operations - Providers services,LDP City Locality - Care,Residential Independent Sector
Cambridgeshire County Council,17-Aug-17,24042057-15869011,-1780.14,Voyage,Care Establishment,4 - Operations - Providers services,LDP City Locality - Care,Residential Independent Sector
Cambridgeshire County Council,17-Aug-17,23976192-15868311,-1780.14,Voyage,Care Establishment,4 - Operations - Providers services,LDP Cambs City - Special Needs,Residential Independent Sector
Cambridgeshire County Council,17-Aug-17,23976206-15868316,-1780.14,Voyage,Care Establishment,4 - Operations - Providers services,LDP Cambs City - Special Needs,Residential Independent Sector
Cambridgeshire County Council,17-Aug-17,23976209-15868319,-1780.14,Voyage,Care Establishment,4 - Operations - Providers services,LDP Cambs City - Special Needs,Residential Independent Sector
Cambridgeshire County Council,17-Aug-17,23976212-15868321,-1780.14,Voyage,Care Establishment,4 - Operations - Providers services,LDP Cambs City - Special Needs,Residential Independent Sector
Cambridgeshire County Council,17-Aug-17,23970903-15867890,-1780.14,Voyage,Care Establishment,4 - Operations - Providers services,LDP South Cambs - Special Needs,Residential Independent Sector
Cambridgeshire County Council,17-Aug-17,23972907-15868121,-1780.14,Voyage,Care Establishment,4 - Operations - Providers services,LDP South Cambs - Special Needs,Residential Independent Sector
Cambridgeshire County Council,17-Aug-17,24032178-15868473,-1780.14,Voyage,Care Establishment,2 - Operations - Learning Disability,LDP South Cambs Locality - Care,Residential Independent Sector
Cambridgeshire County Council,17-Aug-17,24032191-15868483,-1780.14,Voyage,Care Establishment,2 - Operations - Learning Disability,LDP South Cambs Locality - Care,Residential Independent Sector
Cambridgeshire County Council,17-Aug-17,24032126-15868526,-1780.14,Voyage,Care Establishment,2 - Operations - Learning Disability,LDP South Cambs Locality - Care,Residential Independent Sector
Cambridgeshire County Council,17-Aug-17,24034473-15868595,-1780.14,Voyage,Care Establishment,4 - Operations - Providers services,LDP City Locality - Care,Residential Independent Sector
Cambridgeshire County Council,17-Aug-17,24034387-15868618,-1780.14,Voyage,Care Establishment,4 - Operations - Providers services,LDP City Locality - Care,Residential Independent Sector
Cambridgeshire County Council,17-Aug-17,24034397-15868625,-1780.14,Voyage,Care Establishment,4 - Operations - Providers services,LDP City Locality - Care,Residential Independent Sector
Cambridgeshire County Council,17-Aug-17,24034405-15868632,-1780.14,Voyage,Care Establishment,4 - Operations - Providers services,LDP City Locality - Care,Residential Independent Sector
Cambridgeshire County Council,17-Aug-17,24034427-15868652,-1780.14,Voyage,Care Establishment,4 - Operations - Providers services,LDP City Locality - Care,Residential Independent Sector
Cambridgeshire County Council,17-Aug-17,24035030-15868704,-1780.14,Voyage,Care Establishment,4 - Operations - Providers services,LDP City Locality - Care,Residential Independent Sector
Cambridgeshire County Council,17-Aug-17,24042011-15868965,-1780.14,Voyage,Care Establishment,4 - Operations - Providers services,LDP City Locality - Care,Residential Independent Sector
Cambridgeshire County Council,17-Aug-17,24042039-15868993,-1780.14,Voyage,Care Establishment,4 - Operations - Providers services,LDP City Locality - Care,Residential Independent Sector
Cambridgeshire County Council,17-Aug-17,24042044-15868998,-1780.14,Voyage,Care Establishment,4 - Operations - Providers services,LDP City Locality - Care,Residential Independent Sector
Cambridgeshire County Council,17-Aug-17,24042052-15869006,-1780.14,Voyage,Care Establishment,4 - Operations - Providers services,LDP City Locality - Care,Residential Independent Sector
Cambridgeshire County Council,17-Aug-17,24042053-15869007,-1780.14,Voyage,Care Establishment,4 - Operations - Providers services,LDP City Locality - Care,Residential Independent Sector
Cambridgeshire County Council,17-Aug-17,23970873-15867822,-1780.14,Voyage,Care Establishment,4 - Operations - Providers services,LDP South Cambs - Special Needs,Residential Independent Sector
Cambridgeshire County Council,17-Aug-17,23970893-15867842,-1780.14,Voyage,Care Establishment,4 - Operations - Providers services,LDP South Cambs - Special Needs,Residential Independent Sector
Cambridgeshire County Council,17-Aug-17,23974580-15868249,-1780.14,Voyage,Care Establishment,4 - Operations - Providers services,LDP Cambs City - Special Needs,Residential Independent Sector
Cambridgeshire County Council,17-Aug-17,23976166-15868298,-1780.14,Voyage,Care Establishment,4 - Operations - Providers services,LDP Cambs City - Special Needs,Residential Independent Sector
Cambridgeshire County Council,17-Aug-17,23976174-15868303,-1780.14,Voyage,Care Establishment,4 - Operations - Providers services,LDP Cambs City - Special Needs,Residential Independent Sector
Cambridgeshire County Council,17-Aug-17,23976177-15868305,-1780.14,Voyage,Care Establishment,4 - Operations - Providers services,LDP Cambs City - Special Needs,Residential Independent Sector
Cambridgeshire County Council,17-Aug-17,23976203-15868315,-1780.14,Voyage,Care Establishment,4 - Operations - Providers services,LDP Cambs City - Special Needs,Residential Independent Sector
Cambridgeshire County Council,17-Aug-17,23976207-15868317,-1780.14,Voyage,Care Establishment,4 - Operations - Providers services,LDP Cambs City - Special Needs,Residential Independent Sector
Cambridgeshire County Council,17-Aug-17,23976208-15868318,-1780.14,Voyage,Care Establishment,4 - Operations - Providers services,LDP Cambs City - Special Needs,Residential Independent Sector
Cambridgeshire County Council,17-Aug-17,23971392-15867893,-1780.14,Voyage,Care Establishment,4 - Operations - Providers services,LDP Cambs City - Special Needs,Residential Independent Sector
Cambridgeshire County Council,17-Aug-17,23972926-15868139,-1780.14,Voyage,Care Establishment,4 - Operations - Providers services,LDP South Cambs - Special Needs,Residential Independent Sector
Cambridgeshire County Council,17-Aug-17,23972931-15868144,-1780.14,Voyage,Care Establishment,4 - Operations - Providers services,LDP South Cambs - Special Needs,Residential Independent Sector
Cambridgeshire County Council,17-Aug-17,23972936-15868149,-1780.14,Voyage,Care Establishment,4 - Operations - Providers services,LDP South Cambs - Special Needs,Residential Independent Sector
Cambridgeshire County Council,17-Aug-17,24032212-15868493,-1780.14,Voyage,Care Establishment,2 - Operations - Learning Disability,LDP South Cambs Locality - Care,Residential Independent Sector
Cambridgeshire County Council,17-Aug-17,24032214-15868495,-1780.14,Voyage,Care Establishment,2 - Operations - Learning Disability,LDP South Cambs Locality - Care,Residential Independent Sector
Cambridgeshire County Council,17-Aug-17,24032217-15868498,-1780.14,Voyage,Care Establishment,2 - Operations - Learning Disability,LDP South Cambs Locality - Care,Residential Independent Sector
Cambridgeshire County Council,17-Aug-17,24032102-15868508,-1780.14,Voyage,Care Establishment,2 - Operations - Learning Disability,LDP South Cambs Locality - Care,Residential Independent Sector
Cambridgeshire County Council,17-Aug-17,24032116-15868518,-1780.14,Voyage,Care Establishment,2 - Operations - Learning Disability,LDP South Cambs Locality - Care,Residential Independent Sector
Cambridgeshire County Council,17-Aug-17,24032151-15868543,-1780.14,Voyage,Care Establishment,2 - Operations - Learning Disability,LDP South Cambs Locality - Care,Residential Independent Sector
Cambridgeshire County Council,17-Aug-17,24032160-15868550,-1780.14,Voyage,Care Establishment,2 - Operations - Learning Disability,LDP South Cambs Locality - Care,Residential Independent Sector
Cambridgeshire County Council,17-Aug-17,24032162-15868552,-1780.14,Voyage,Care Establishment,2 - Operations - Learning Disability,LDP South Cambs Locality - Care,Residential Independent Sector
Cambridgeshire County Council,17-Aug-17,24032176-15868559,-1780.14,Voyage,Care Establishment,2 - Operations - Learning Disability,LDP South Cambs Locality - Care,Residential Independent Sector
Cambridgeshire County Council,17-Aug-17,24034470-15868592,-1780.14,Voyage,Care Establishment,4 - Operations - Providers services,LDP City Locality - Care,Residential Independent Sector
Cambridgeshire County Council,17-Aug-17,24034377-15868611,-1780.14,Voyage,Care Establishment,4 - Operations - Providers services,LDP City Locality - Care,Residential Independent Sector
Cambridgeshire County Council,17-Aug-17,24034430-15868655,-1780.14,Voyage,Care Establishment,4 - Operations - Providers services,LDP City Locality - Care,Residential Independent Sector
Cambridgeshire County Council,17-Aug-17,24034438-15868661,-1780.14,Voyage,Care Establishment,4 - Operations - Providers services,LDP City Locality - Care,Residential Independent Sector
Cambridgeshire County Council,17-Aug-17,24034439-15868662,-1780.14,Voyage,Care Establishment,4 - Operations - Providers services,LDP City Locality - Care,Residential Independent Sector
Cambridgeshire County Council,17-Aug-17,24035009-15868723,-1780.14,Voyage,Care Establishment,4 - Operations - Providers services,LDP City Locality - Care,Residential Independent Sector
Cambridgeshire County Council,17-Aug-17,24042065-15868944,-1780.14,Voyage,Care Establishment,4 - Operations - Providers services,LDP City Locality - Care,Residential Independent Sector
Cambridgeshire County Council,17-Aug-17,24042020-15868974,-1780.14,Voyage,Care Establishment,4 - Operations - Providers services,LDP City Locality - Care,Residential Independent Sector
Cambridgeshire County Council,17-Aug-17,24042033-15868987,-1780.14,Voyage,Care Establishment,4 - Operations - Providers services,LDP City Locality - Care,Residential Independent Sector
Cambridgeshire County Council,17-Aug-17,24042056-15869010,-1780.14,Voyage,Care Establishment,4 - Operations - Providers services,LDP City Locality - Care,Residential Independent Sector
Cambridgeshire County Council,17-Aug-17,23974587-15868256,-1780.14,Voyage,Care Establishment,4 - Operations - Providers services,LDP Cambs City - Special Needs,Residential Independent Sector
Cambridgeshire County Council,17-Aug-17,23976154-15868289,-1780.14,Voyage,Care Establishment,4 - Operations - Providers services,LDP Cambs City - Special Needs,Residential Independent Sector
Cambridgeshire County Council,17-Aug-17,23976159-15868292,-1780.14,Voyage,Care Establishment,4 - Operations - Providers services,LDP Cambs City - Special Needs,Residential Independent Sector
Cambridgeshire County Council,17-Aug-17,23976160-15868293,-1780.14,Voyage,Care Establishment,4 - Operations - Providers services,LDP Cambs City - Special Needs,Residential Independent Sector
Cambridgeshire County Council,17-Aug-17,23976167-15868299,-1780.14,Voyage,Care Establishment,4 - Operations - Providers services,LDP Cambs City - Special Needs,Residential Independent Sector
Cambridgeshire County Council,17-Aug-17,23976170-15868301,-1780.14,Voyage,Care Establishment,4 - Operations - Providers services,LDP Cambs City - Special Needs,Residential Independent Sector
Cambridgeshire County Council,17-Aug-17,23976190-15868310,-1780.14,Voyage,Care Establishment,4 - Operations - Providers services,LDP Cambs City - Special Needs,Residential Independent Sector
Cambridgeshire County Council,17-Aug-17,23976193-15868312,-1780.14,Voyage,Care Establishment,4 - Operations - Providers services,LDP Cambs City - Special Needs,Residential Independent Sector
Cambridgeshire County Council,17-Aug-17,23970898-15867847,-1780.14,Voyage,Care Establishment,4 - Operations - Providers services,LDP South Cambs - Special Needs,Residential Independent Sector
Cambridgeshire County Council,17-Aug-17,23970905-15867892,-1780.14,Voyage,Care Establishment,4 - Operations - Providers services,LDP South Cambs - Special Needs,Residential Independent Sector
Cambridgeshire County Council,17-Aug-17,23972917-15868130,-1780.14,Voyage,Care Establishment,4 - Operations - Providers services,LDP South Cambs - Special Needs,Residential Independent Sector
Cambridgeshire County Council,17-Aug-17,23974441-15868236,-1780.14,Voyage,Care Establishment,4 - Operations - Providers services,LDP Cambs City - Special Needs,Residential Independent Sector
Cambridgeshire County Council,17-Aug-17,23974445-15868239,-1780.14,Voyage,Care Establishment,4 - Operations - Providers services,LDP Cambs City - Special Needs,Residential Independent Sector
Cambridgeshire County Council,17-Aug-17,23974446-15868240,-1780.14,Voyage,Care Establishment,4 - Operations - Providers services,LDP Cambs City - Special Needs,Residential Independent Sector
Cambridgeshire County Council,17-Aug-17,24032189-15868481,-1780.14,Voyage,Care Establishment,2 - Operations - Learning Disability,LDP South Cambs Locality - Care,Residential Independent Sector
Cambridgeshire County Council,17-Aug-17,24032202-15868488,-1780.14,Voyage,Care Establishment,2 - Operations - Learning Disability,LDP South Cambs Locality - Care,Residential Independent Sector
Cambridgeshire County Council,17-Aug-17,24032118-15868520,-1780.14,Voyage,Care Establishment,2 - Operations - Learning Disability,LDP South Cambs Locality - Care,Residential Independent Sector
Cambridgeshire County Council,17-Aug-17,24032175-15868558,-1780.14,Voyage,Care Establishment,2 - Operations - Learning Disability,LDP South Cambs Locality - Care,Residential Independent Sector
Cambridgeshire County Council,17-Aug-17,24034452-15868575,-1780.14,Voyage,Care Establishment,4 - Operations - Providers services,LDP City Locality - Care,Residential Independent Sector
Cambridgeshire County Council,17-Aug-17,24034459-15868581,-1780.14,Voyage,Care Establishment,4 - Operations - Providers services,LDP City Locality - Care,Residential Independent Sector
Cambridgeshire County Council,17-Aug-17,24034461-15868583,-1780.14,Voyage,Care Establishment,4 - Operations - Providers services,LDP City Locality - Care,Residential Independent Sector
Cambridgeshire County Council,17-Aug-17,24034388-15868619,-1780.14,Voyage,Care Establishment,4 - Operations - Providers services,LDP City Locality - Care,Residential Independent Sector
Cambridgeshire County Council,17-Aug-17,24034416-15868641,-1780.14,Voyage,Care Establishment,4 - Operations - Providers services,LDP City Locality - Care,Residential Independent Sector
Cambridgeshire County Council,17-Aug-17,24034418-15868643,-1780.14,Voyage,Care Establishment,4 - Operations - Providers services,LDP City Locality - Care,Residential Independent Sector
Cambridgeshire County Council,17-Aug-17,24034428-15868653,-1780.14,Voyage,Care Establishment,4 - Operations - Providers services,LDP City Locality - Care,Residential Independent Sector
Cambridgeshire County Council,17-Aug-17,24034441-15868664,-1780.14,Voyage,Care Establishment,4 - Operations - Providers services,LDP City Locality - Care,Residential Independent Sector
Cambridgeshire County Council,17-Aug-17,24034995-15868709,-1780.14,Voyage,Care Establishment,4 - Operations - Providers services,LDP City Locality - Care,Residential Independent Sector
Cambridgeshire County Council,17-Aug-17,24035011-15868725,-1780.14,Voyage,Care Establishment,4 - Operations - Providers services,LDP City Locality - Care,Residential Independent Sector
Cambridgeshire County Council,17-Aug-17,24042035-15868989,-1780.14,Voyage,Care Establishment,4 - Operations - Providers services,LDP City Locality - Care,Residential Independent Sector
Cambridgeshire County Council,17-Aug-17,23970868-15867817,-1780.14,Voyage,Care Establishment,4 - Operations - Providers services,LDP South Cambs - Special Needs,Residential Independent Sector
Cambridgeshire County Council,17-Aug-17,23970870-15867819,-1780.14,Voyage,Care Establishment,4 - Operations - Providers services,LDP South Cambs - Special Needs,Residential Independent Sector
Cambridgeshire County Council,17-Aug-17,23974588-15868257,-1780.14,Voyage,Care Establishment,4 - Operations - Providers services,LDP Cambs City - Special Needs,Residential Independent Sector
Cambridgeshire County Council,17-Aug-17,23976148-15868284,-1780.14,Voyage,Care Establishment,4 - Operations - Providers services,LDP Cambs City - Special Needs,Residential Independent Sector
Cambridgeshire County Council,17-Aug-17,23976161-15868294,-1780.14,Voyage,Care Establishment,4 - Operations - Providers services,LDP Cambs City - Special Needs,Residential Independent Sector
Cambridgeshire County Council,17-Aug-17,23976168-15868300,-1780.14,Voyage,Care Establishment,4 - Operations - Providers services,LDP Cambs City - Special Needs,Residential Independent Sector
Cambridgeshire County Council,17-Aug-17,23976171-15868302,-1780.14,Voyage,Care Establishment,4 - Operations - Providers services,LDP Cambs City - Special Needs,Residential Independent Sector
Cambridgeshire County Council,17-Aug-17,24026169-15868336,-1780.14,Voyage,Care Establishment,2 - Operations - Learning Disability,LDP South Cambs Locality - Care,Residential Independent Sector
Cambridgeshire County Council,17-Aug-17,23971404-15867905,-1780.14,Voyage,Care Establishment,4 - Operations - Providers services,LDP Cambs City - Special Needs,Residential Independent Sector
Cambridgeshire County Council,17-Aug-17,23972934-15868147,-1780.14,Voyage,Care Establishment,4 - Operations - Providers services,LDP South Cambs - Special Needs,Residential Independent Sector
Cambridgeshire County Council,17-Aug-17,23972938-15868151,-1780.14,Voyage,Care Establishment,4 - Operations - Providers services,LDP South Cambs - Special Needs,Residential Independent Sector
Cambridgeshire County Council,17-Aug-17,23972939-15868152,-1780.14,Voyage,Care Establishment,4 - Operations - Providers services,LDP South Cambs - Special Needs,Residential Independent Sector
Cambridgeshire County Council,17-Aug-17,23972943-15868156,-1780.14,Voyage,Care Establishment,4 - Operations - Providers services,LDP South Cambs - Special Needs,Residential Independent Sector
Cambridgeshire County Council,17-Aug-17,24032184-15868476,-1780.14,Voyage,Care Establishment,2 - Operations - Learning Disability,LDP South Cambs Locality - Care,Residential Independent Sector
Cambridgeshire County Council,17-Aug-17,24032213-15868494,-1780.14,Voyage,Care Establishment,2 - Operations - Learning Disability,LDP South Cambs Locality - Care,Residential Independent Sector
Cambridgeshire County Council,17-Aug-17,24032101-15868507,-1780.14,Voyage,Care Establishment,2 - Operations - Learning Disability,LDP South Cambs Locality - Care,Residential Independent Sector
Cambridgeshire County Council,17-Aug-17,24032104-15868510,-1780.14,Voyage,Care Establishment,2 - Operations - Learning Disability,LDP South Cambs Locality - Care,Residential Independent Sector
Cambridgeshire County Council,17-Aug-17,24032137-15868534,-1780.14,Voyage,Care Establishment,2 - Operations - Learning Disability,LDP South Cambs Locality - Care,Residential Independent Sector
Cambridgeshire County Council,17-Aug-17,24034449-15868572,-1780.14,Voyage,Care Establishment,4 - Operations - Providers services,LDP City Locality - Care,Residential Independent Sector
Cambridgeshire County Council,17-Aug-17,24034466-15868588,-1780.14,Voyage,Care Establishment,4 - Operations - Providers services,LDP City Locality - Care,Residential Independent Sector
Cambridgeshire County Council,17-Aug-17,24034368-15868602,-1780.14,Voyage,Care Establishment,4 - Operations - Providers services,LDP City Locality - Care,Residential Independent Sector
Cambridgeshire County Council,17-Aug-17,24034382-15868613,-1780.14,Voyage,Care Establishment,4 - Operations - Providers services,LDP City Locality - Care,Residential Independent Sector
Cambridgeshire County Council,17-Aug-17,24034421-15868646,-1780.14,Voyage,Care Establishment,4 - Operations - Providers services,LDP City Locality - Care,Residential Independent Sector
Cambridgeshire County Council,17-Aug-17,24035031-15868705,-1780.14,Voyage,Care Establishment,4 - Operations - Providers services,LDP City Locality - Care,Residential Independent Sector
Cambridgeshire County Council,17-Aug-17,24042041-15868995,-1780.14,Voyage,Care Establishment,4 - Operations - Providers services,LDP City Locality - Care,Residential Independent Sector
Cambridgeshire County Council,17-Aug-17,23970877-15867826,-1780.14,Voyage,Care Establishment,4 - Operations - Providers services,LDP South Cambs - Special Needs,Residential Independent Sector
Cambridgeshire County Council,17-Aug-17,23976151-15868287,-1780.14,Voyage,Care Establishment,4 - Operations - Providers services,LDP Cambs City - Special Needs,Residential Independent Sector
Cambridgeshire County Council,17-Aug-17,23976156-15868291,-1780.14,Voyage,Care Establishment,4 - Operations - Providers services,LDP Cambs City - Special Needs,Residential Independent Sector
Cambridgeshire County Council,17-Aug-17,23976175-15868304,-1780.14,Voyage,Care Establishment,4 - Operations - Providers services,LDP Cambs City - Special Needs,Residential Independent Sector
Cambridgeshire County Council,17-Aug-17,23970901-15867888,-1780.14,Voyage,Care Establishment,4 - Operations - Providers services,LDP South Cambs - Special Needs,Residential Independent Sector
Cambridgeshire County Council,17-Aug-17,23971403-15867904,-1780.14,Voyage,Care Establishment,4 - Operations - Providers services,LDP Cambs City - Special Needs,Residential Independent Sector
Cambridgeshire County Council,17-Aug-17,23972914-15868127,-1780.14,Voyage,Care Establishment,4 - Operations - Providers services,LDP South Cambs - Special Needs,Residential Independent Sector
Cambridgeshire County Council,17-Aug-17,23972935-15868148,-1780.14,Voyage,Care Establishment,4 - Operations - Providers services,LDP South Cambs - Special Needs,Residential Independent Sector
Cambridgeshire County Council,17-Aug-17,23972946-15868159,-1780.14,Voyage,Care Establishment,4 - Operations - Providers services,LDP South Cambs - Special Needs,Residential Independent Sector
Cambridgeshire County Council,17-Aug-17,23972951-15868163,-1780.14,Voyage,Care Establishment,4 - Operations - Providers services,LDP South Cambs - Special Needs,Residential Independent Sector
Cambridgeshire County Council,17-Aug-17,23974443-15868238,-1780.14,Voyage,Care Establishment,4 - Operations - Providers services,LDP Cambs City - Special Needs,Residential Independent Sector
Cambridgeshire County Council,17-Aug-17,24032216-15868497,-1780.14,Voyage,Care Establishment,2 - Operations - Learning Disability,LDP South Cambs Locality - Care,Residential Independent Sector
Cambridgeshire County Council,17-Aug-17,24032224-15868504,-1780.14,Voyage,Care Establishment,2 - Operations - Learning Disability,LDP South Cambs Locality - Care,Residential Independent Sector
Cambridgeshire County Council,17-Aug-17,24032100-15868506,-1780.14,Voyage,Care Establishment,2 - Operations - Learning Disability,LDP South Cambs Locality - Care,Residential Independent Sector
Cambridgeshire County Council,17-Aug-17,24032138-15868535,-1780.14,Voyage,Care Establishment,2 - Operations - Learning Disability,LDP South Cambs Locality - Care,Residential Independent Sector
Cambridgeshire County Council,17-Aug-17,24034370-15868604,-1780.14,Voyage,Care Establishment,4 - Operations - Providers services,LDP City Locality - Care,Residential Independent Sector
Cambridgeshire County Council,17-Aug-17,24034375-15868609,-1780.14,Voyage,Care Establishment,4 - Operations - Providers services,LDP City Locality - Care,Residential Independent Sector
Cambridgeshire County Council,17-Aug-17,24034415-15868640,-1780.14,Voyage,Care Establishment,4 - Operations - Providers services,LDP City Locality - Care,Residential Independent Sector
Cambridgeshire County Council,17-Aug-17,24034447-15868670,-1780.14,Voyage,Care Establishment,4 - Operations - Providers services,LDP City Locality - Care,Residential Independent Sector
Cambridgeshire County Council,17-Aug-17,24035023-15868697,-1780.14,Voyage,Care Establishment,4 - Operations - Providers services,LDP City Locality - Care,Residential Independent Sector
Cambridgeshire County Council,17-Aug-17,24035008-15868722,-1780.14,Voyage,Care Establishment,4 - Operations - Providers services,LDP City Locality - Care,Residential Independent Sector
Cambridgeshire County Council,17-Aug-17,24035013-15868727,-1780.14,Voyage,Care Establishment,4 - Operations - Providers services,LDP City Locality - Care,Residential Independent Sector
Cambridgeshire County Council,17-Aug-17,24042026-15868980,-1780.14,Voyage,Care Establishment,4 - Operations - Providers services,LDP City Locality - Care,Residential Independent Sector
Cambridgeshire County Council,17-Aug-17,24042029-15868983,-1780.14,Voyage,Care Establishment,4 - Operations - Providers services,LDP City Locality - Care,Residential Independent Sector
Cambridgeshire County Council,17-Aug-17,24042031-15868985,-1780.14,Voyage,Care Establishment,4 - Operations - Providers services,LDP City Locality - Care,Residential Independent Sector
Cambridgeshire County Council,17-Aug-17,24042032-15868986,-1780.14,Voyage,Care Establishment,4 - Operations - Providers services,LDP City Locality - Care,Residential Independent Sector
Cambridgeshire County Council,17-Aug-17,24042034-15868988,-1780.14,Voyage,Care Establishment,4 - Operations - Providers services,LDP City Locality - Care,Residential Independent Sector
Cambridgeshire County Council,17-Aug-17,23970875-15867824,-1780.14,Voyage,Care Establishment,4 - Operations - Providers services,LDP South Cambs - Special Needs,Residential Independent Sector
Cambridgeshire County Council,17-Aug-17,23970882-15867831,-1780.14,Voyage,Care Establishment,4 - Operations - Providers services,LDP South Cambs - Special Needs,Residential Independent Sector
Cambridgeshire County Council,17-Aug-17,23970883-15867832,-1780.14,Voyage,Care Establishment,4 - Operations - Providers services,LDP South Cambs - Special Needs,Residential Independent Sector
Cambridgeshire County Council,17-Aug-17,23970885-15867834,-1780.14,Voyage,Care Establishment,4 - Operations - Providers services,LDP South Cambs - Special Needs,Residential Independent Sector
Cambridgeshire County Council,17-Aug-17,23976150-15868286,-1780.14,Voyage,Care Establishment,4 - Operations - Providers services,LDP Cambs City - Special Needs,Residential Independent Sector
Cambridgeshire County Council,17-Aug-17,23976162-15868295,-1780.14,Voyage,Care Establishment,4 - Operations - Providers services,LDP Cambs City - Special Needs,Residential Independent Sector
Cambridgeshire County Council,17-Aug-17,23976164-15868296,-1780.14,Voyage,Care Establishment,4 - Operations - Providers services,LDP Cambs City - Special Needs,Residential Independent Sector
Cambridgeshire County Council,17-Aug-17,23976181-15868306,-1780.14,Voyage,Care Establishment,4 - Operations - Providers services,LDP Cambs City - Special Needs,Residential Independent Sector
Cambridgeshire County Council,17-Aug-17,23976182-15868307,-1780.14,Voyage,Care Establishment,4 - Operations - Providers services,LDP Cambs City - Special Needs,Residential Independent Sector
Cambridgeshire County Council,17-Aug-17,24026164-15868332,-1780.14,Voyage,Care Establishment,2 - Operations - Learning Disability,LDP South Cambs Locality - Care,Residential Independent Sector
Cambridgeshire County Council,17-Aug-17,24026170-15868337,-1780.14,Voyage,Care Establishment,2 - Operations - Learning Disability,LDP South Cambs Locality - Care,Residential Independent Sector
Cambridgeshire County Council,17-Aug-17,23972915-15868128,-1780.14,Voyage,Care Establishment,4 - Operations - Providers services,LDP South Cambs - Special Needs,Residential Independent Sector
Cambridgeshire County Council,17-Aug-17,23972923-15868136,-1780.14,Voyage,Care Establishment,4 - Operations - Providers services,LDP South Cambs - Special Needs,Residential Independent Sector
Cambridgeshire County Council,17-Aug-17,24032185-15868477,-1780.14,Voyage,Care Establishment,2 - Operations - Learning Disability,LDP South Cambs Locality - Care,Residential Independent Sector
Cambridgeshire County Council,17-Aug-17,24032193-15868485,-1780.14,Voyage,Care Establishment,2 - Operations - Learning Disability,LDP South Cambs Locality - Care,Residential Independent Sector
Cambridgeshire County Council,17-Aug-17,24032220-15868500,-1780.14,Voyage,Care Establishment,2 - Operations - Learning Disability,LDP South Cambs Locality - Care,Residential Independent Sector
Cambridgeshire County Council,17-Aug-17,24032222-15868502,-1780.14,Voyage,Care Establishment,2 - Operations - Learning Disability,LDP South Cambs Locality - Care,Residential Independent Sector
Cambridgeshire County Council,17-Aug-17,24032103-15868509,-1780.14,Voyage,Care Establishment,2 - Operations - Learning Disability,LDP South Cambs Locality - Care,Residential Independent Sector
Cambridgeshire County Council,17-Aug-17,24032111-15868515,-1780.14,Voyage,Care Establishment,2 - Operations - Learning Disability,LDP South Cambs Locality - Care,Residential Independent Sector
Cambridgeshire County Council,17-Aug-17,24032140-15868536,-1780.14,Voyage,Care Establishment,2 - Operations - Learning Disability,LDP South Cambs Locality - Care,Residential Independent Sector
Cambridgeshire County Council,17-Aug-17,24032161-15868551,-1780.14,Voyage,Care Establishment,2 - Operations - Learning Disability,LDP South Cambs Locality - Care,Residential Independent Sector
Cambridgeshire County Council,17-Aug-17,24032166-15868556,-1780.14,Voyage,Care Establishment,2 - Operations - Learning Disability,LDP South Cambs Locality - Care,Residential Independent Sector
Cambridgeshire County Council,17-Aug-17,24032177-15868560,-1780.14,Voyage,Care Establishment,2 - Operations - Learning Disability,LDP South Cambs Locality - Care,Residential Independent Sector
Cambridgeshire County Council,17-Aug-17,24034467-15868589,-1780.14,Voyage,Care Establishment,4 - Operations - Providers services,LDP City Locality - Care,Residential Independent Sector
Cambridgeshire County Council,17-Aug-17,24034386-15868617,-1780.14,Voyage,Care Establishment,4 - Operations - Providers services,LDP City Locality - Care,Residential Independent Sector
Cambridgeshire County Council,17-Aug-17,24034400-15868628,-1780.14,Voyage,Care Establishment,4 - Operations - Providers services,LDP City Locality - Care,Residential Independent Sector
Cambridgeshire County Council,17-Aug-17,24034410-15868636,-1780.14,Voyage,Care Establishment,4 - Operations - Providers services,LDP City Locality - Care,Residential Independent Sector
Cambridgeshire County Council,17-Aug-17,24034436-15868659,-1780.14,Voyage,Care Establishment,4 - Operations - Providers services,LDP City Locality - Care,Residential Independent Sector
Cambridgeshire County Council,17-Aug-17,24034446-15868669,-1780.14,Voyage,Care Establishment,4 - Operations - Providers services,LDP City Locality - Care,Residential Independent Sector
Cambridgeshire County Council,17-Aug-17,24034448-15868671,-1780.14,Voyage,Care Establishment,4 - Operations - Providers services,LDP City Locality - Care,Residential Independent Sector
Cambridgeshire County Council,17-Aug-17,24034999-15868713,-1780.14,Voyage,Care Establishment,4 - Operations - Providers services,LDP City Locality - Care,Residential Independent Sector
Cambridgeshire County Council,17-Aug-17,24042014-15868968,-1780.14,Voyage,Care Establishment,4 - Operations - Providers services,LDP City Locality - Care,Residential Independent Sector
Cambridgeshire County Council,17-Aug-17,24042038-15868992,-1780.14,Voyage,Care Establishment,4 - Operations - Providers services,LDP City Locality - Care,Residential Independent Sector
Cambridgeshire County Council,17-Aug-17,24042049-15869003,-1780.14,Voyage,Care Establishment,4 - Operations - Providers services,LDP City Locality - Care,Residential Independent Sector
Cambridgeshire County Council,17-Aug-17,23970861-15867811,-1780.14,Voyage,Care Establishment,4 - Operations - Providers services,LDP South Cambs - Special Needs,Residential Independent Sector
Cambridgeshire County Council,17-Aug-17,23970879-15867828,-1780.14,Voyage,Care Establishment,4 - Operations - Providers services,LDP South Cambs - Special Needs,Residential Independent Sector
Cambridgeshire County Council,17-Aug-17,23974581-15868250,-1780.14,Voyage,Care Establishment,4 - Operations - Providers services,LDP Cambs City - Special Needs,Residential Independent Sector
Cambridgeshire County Council,17-Aug-17,23976149-15868285,-1780.14,Voyage,Care Establishment,4 - Operations - Providers services,LDP Cambs City - Special Needs,Residential Independent Sector
Cambridgeshire County Council,17-Aug-17,23976211-15868320,-1780.14,Voyage,Care Establishment,4 - Operations - Providers services,LDP Cambs City - Special Needs,Residential Independent Sector
Cambridgeshire County Council,17-Aug-17,23970900-15867887,-1780.14,Voyage,Care Establishment,4 - Operations - Providers services,LDP South Cambs - Special Needs,Residential Independent Sector
Cambridgeshire County Council,17-Aug-17,23972902-15868116,-1780.14,Voyage,Care Establishment,4 - Operations - Providers services,LDP South Cambs - Special Needs,Residential Independent Sector
Cambridgeshire County Council,17-Aug-17,23972929-15868142,-1780.14,Voyage,Care Establishment,4 - Operations - Providers services,LDP South Cambs - Special Needs,Residential Independent Sector
Cambridgeshire County Council,17-Aug-17,23972930-15868143,-1780.14,Voyage,Care Establishment,4 - Operations - Providers services,LDP South Cambs - Special Needs,Residential Independent Sector
Cambridgeshire County Council,17-Aug-17,23974442-15868237,-1780.14,Voyage,Care Establishment,4 - Operations - Providers services,LDP Cambs City - Special Needs,Residential Independent Sector
Cambridgeshire County Council,17-Aug-17,24032205-15868489,-1780.14,Voyage,Care Establishment,2 - Operations - Learning Disability,LDP South Cambs Locality - Care,Residential Independent Sector
Cambridgeshire County Council,17-Aug-17,24034364-15868598,-1780.14,Voyage,Care Establishment,4 - Operations - Providers services,LDP City Locality - Care,Residential Independent Sector
Cambridgeshire County Council,17-Aug-17,24034393-15868622,-1780.14,Voyage,Care Establishment,4 - Operations - Providers services,LDP City Locality - Care,Residential Independent Sector
Cambridgeshire County Council,17-Aug-17,24034412-15868638,-1780.14,Voyage,Care Establishment,4 - Operations - Providers services,LDP City Locality - Care,Residential Independent Sector
Cambridgeshire County Council,17-Aug-17,24034417-15868642,-1780.14,Voyage,Care Establishment,4 - Operations - Providers services,LDP City Locality - Care,Residential Independent Sector
Cambridgeshire County Council,17-Aug-17,24035014-15868688,-1780.14,Voyage,Care Establishment,4 - Operations - Providers services,LDP City Locality - Care,Residential Independent Sector
Cambridgeshire County Council,17-Aug-17,24035017-15868691,-1780.14,Voyage,Care Establishment,4 - Operations - Providers services,LDP City Locality - Care,Residential Independent Sector
Cambridgeshire County Council,17-Aug-17,24035006-15868720,-1780.14,Voyage,Care Establishment,4 - Operations - Providers services,LDP City Locality - Care,Residential Independent Sector
Cambridgeshire County Council,17-Aug-17,24035012-15868726,-1780.14,Voyage,Care Establishment,4 - Operations - Providers services,LDP City Locality - Care,Residential Independent Sector
Cambridgeshire County Council,17-Aug-17,24042061-15868940,-1780.14,Voyage,Care Establishment,4 - Operations - Providers services,LDP City Locality - Care,Residential Independent Sector
Cambridgeshire County Council,17-Aug-17,24042037-15868991,-1780.14,Voyage,Care Establishment,4 - Operations - Providers services,LDP City Locality - Care,Residential Independent Sector
Cambridgeshire County Council,17-Aug-17,24042054-15869008,-1780.14,Voyage,Care Establishment,4 - Operations - Providers services,LDP City Locality - Care,Residential Independent Sector
Cambridgeshire County Council,17-Aug-17,24034108-15859672,-1779.75,The Brambles (Soham) Ltd,Care Establishment,4 - Operations - Providers services,LDP E Cambs Locality - Care,Residential Independent Sector
Cambridgeshire County Council,17-Aug-17,24034114-15859678,-1779.75,The Brambles (Soham) Ltd,Care Establishment,4 - Operations - Providers services,LDP E Cambs Locality - Care,Residential Independent Sector
Cambridgeshire County Council,17-Aug-17,24034117-15859681,-1779.75,The Brambles (Soham) Ltd,Care Establishment,4 - Operations - Providers services,LDP E Cambs Locality - Care,Residential Independent Sector
Cambridgeshire County Council,17-Aug-17,24034123-15859687,-1779.75,The Brambles (Soham) Ltd,Care Establishment,4 - Operations - Providers services,LDP E Cambs Locality - Care,Residential Independent Sector
Cambridgeshire County Council,17-Aug-17,24034133-15859697,-1779.75,The Brambles (Soham) Ltd,Care Establishment,4 - Operations - Providers services,LDP E Cambs Locality - Care,Residential Independent Sector
Cambridgeshire County Council,17-Aug-17,24034158-15859722,-1779.75,The Brambles (Soham) Ltd,Care Establishment,4 - Operations - Providers services,LDP E Cambs Locality - Care,Residential Independent Sector
Cambridgeshire County Council,17-Aug-17,24034161-15859725,-1779.75,The Brambles (Soham) Ltd,Care Establishment,4 - Operations - Providers services,LDP E Cambs Locality - Care,Residential Independent Sector
Cambridgeshire County Council,17-Aug-17,24034125-15859689,-1779.75,The Brambles (Soham) Ltd,Care Establishment,4 - Operations - Providers services,LDP E Cambs Locality - Care,Residential Independent Sector
Cambridgeshire County Council,17-Aug-17,24034130-15859694,-1779.75,The Brambles (Soham) Ltd,Care Establishment,4 - Operations - Providers services,LDP E Cambs Locality - Care,Residential Independent Sector
Cambridgeshire County Council,17-Aug-17,24034201-15859668,-1779.75,The Brambles (Soham) Ltd,Care Establishment,4 - Operations - Providers services,LDP E Cambs Locality - Care,Residential Independent Sector
Cambridgeshire County Council,17-Aug-17,24034113-15859677,-1779.75,The Brambles (Soham) Ltd,Care Establishment,4 - Operations - Providers services,LDP E Cambs Locality - Care,Residential Independent Sector
Cambridgeshire County Council,17-Aug-17,24034152-15859716,-1779.75,The Brambles (Soham) Ltd,Care Establishment,4 - Operations - Providers services,LDP E Cambs Locality - Care,Residential Independent Sector
Cambridgeshire County Council,17-Aug-17,24034153-15859717,-1779.75,The Brambles (Soham) Ltd,Care Establishment,4 - Operations - Providers services,LDP E Cambs Locality - Care,Residential Independent Sector
Cambridgeshire County Council,17-Aug-17,24035083-15859732,-1779.75,The Brambles (Soham) Ltd,Care Establishment,4 - Operations - Providers services,LDP E Cambs Locality - Care,Residential Independent Sector
Cambridgeshire County Council,17-Aug-17,24034157-15859721,-1779.75,The Brambles (Soham) Ltd,Care Establishment,4 - Operations - Providers services,LDP E Cambs Locality - Care,Residential Independent Sector
Cambridgeshire County Council,17-Aug-17,24034204-15859670,-1779.75,The Brambles (Soham) Ltd,Care Establishment,4 - Operations - Providers services,LDP E Cambs Locality - Care,Residential Independent Sector
Cambridgeshire County Council,17-Aug-17,24034137-15859701,-1779.75,The Brambles (Soham) Ltd,Care Establishment,4 - Operations - Providers services,LDP E Cambs Locality - Care,Residential Independent Sector
Cambridgeshire County Council,17-Aug-17,24034142-15859706,-1779.75,The Brambles (Soham) Ltd,Care Establishment,4 - Operations - Providers services,LDP E Cambs Locality - Care,Residential Independent Sector
Cambridgeshire County Council,17-Aug-17,24034150-15859714,-1779.75,The Brambles (Soham) Ltd,Care Establishment,4 - Operations - Providers services,LDP E Cambs Locality - Care,Residential Independent Sector
Cambridgeshire County Council,17-Aug-17,24034151-15859715,-1779.75,The Brambles (Soham) Ltd,Care Establishment,4 - Operations - Providers services,LDP E Cambs Locality - Care,Residential Independent Sector
Cambridgeshire County Council,17-Aug-17,24034129-15859693,-1779.75,The Brambles (Soham) Ltd,Care Establishment,4 - Operations - Providers services,LDP E Cambs Locality - Care,Residential Independent Sector
Cambridgeshire County Council,17-Aug-17,24034139-15859703,-1779.75,The Brambles (Soham) Ltd,Care Establishment,4 - Operations - Providers services,LDP E Cambs Locality - Care,Residential Independent Sector
Cambridgeshire County Council,17-Aug-17,24043252-15859761,-1759.5,The Brambles (Soham) Ltd,Care Establishment,4 - Operations - Providers services,LDP E Cambs Locality - Care,Residential Independent Sector
Cambridgeshire County Council,17-Aug-17,24043275-15859783,-1759.5,The Brambles (Soham) Ltd,Care Establishment,4 - Operations - Providers services,LDP E Cambs Locality - Care,Residential Independent Sector
Cambridgeshire County Council,17-Aug-17,24043284-15859792,-1759.5,The Brambles (Soham) Ltd,Care Establishment,4 - Operations - Providers services,LDP E Cambs Locality - Care,Residential Independent Sector
Cambridgeshire County Council,17-Aug-17,24049491-15859835,-1759.5,The Brambles (Soham) Ltd,Care Establishment,4 - Operations - Providers services,LDP E Cambs Locality - Care,Residential Independent Sector
Cambridgeshire County Council,17-Aug-17,24043229-15859738,-1759.5,The Brambles (Soham) Ltd,Care Establishment,4 - Operations - Providers services,LDP E Cambs Locality - Care,Residential Independent Sector
Cambridgeshire County Council,17-Aug-17,24043235-15859744,-1759.5,The Brambles (Soham) Ltd,Care Establishment,4 - Operations - Providers services,LDP E Cambs Locality - Care,Residential Independent Sector
Cambridgeshire County Council,17-Aug-17,24043242-15859751,-1759.5,The Brambles (Soham) Ltd,Care Establishment,4 - Operations - Providers services,LDP E Cambs Locality - Care,Residential Independent Sector
Cambridgeshire County Council,17-Aug-17,24043265-15859773,-1759.5,The Brambles (Soham) Ltd,Care Establishment,4 - Operations - Providers services,LDP E Cambs Locality - Care,Residential Independent Sector
Cambridgeshire County Council,17-Aug-17,24043281-15859789,-1759.5,The Brambles (Soham) Ltd,Care Establishment,4 - Operations - Providers services,LDP E Cambs Locality - Care,Residential Independent Sector
Cambridgeshire County Council,17-Aug-17,24049462-15859806,-1759.5,The Brambles (Soham) Ltd,Care Establishment,4 - Operations - Providers services,LDP E Cambs Locality - Care,Residential Independent Sector
Cambridgeshire County Council,17-Aug-17,24043236-15859745,-1759.5,The Brambles (Soham) Ltd,Care Establishment,4 - Operations - Providers services,LDP E Cambs Locality - Care,Residential Independent Sector
Cambridgeshire County Council,17-Aug-17,24043238-15859747,-1759.5,The Brambles (Soham) Ltd,Care Establishment,4 - Operations - Providers services,LDP E Cambs Locality - Care,Residential Independent Sector
Cambridgeshire County Council,17-Aug-17,24049476-15859820,-1759.5,The Brambles (Soham) Ltd,Care Establishment,4 - Operations - Providers services,LDP E Cambs Locality - Care,Residential Independent Sector
Cambridgeshire County Council,17-Aug-17,24049481-15859825,-1759.5,The Brambles (Soham) Ltd,Care Establishment,4 - Operations - Providers services,LDP E Cambs Locality - Care,Residential Independent Sector
Cambridgeshire County Council,17-Aug-17,24049482-15859826,-1759.5,The Brambles (Soham) Ltd,Care Establishment,4 - Operations - Providers services,LDP E Cambs Locality - Care,Residential Independent Sector
Cambridgeshire County Council,17-Aug-17,24049459-15859803,-1759.5,The Brambles (Soham) Ltd,Care Establishment,4 - Operations - Providers services,LDP E Cambs Locality - Care,Residential Independent Sector
Cambridgeshire County Council,17-Aug-17,24049475-15859819,-1759.5,The Brambles (Soham) Ltd,Care Establishment,4 - Operations - Providers services,LDP E Cambs Locality - Care,Residential Independent Sector
Cambridgeshire County Council,17-Aug-17,24043239-15859748,-1759.5,The Brambles (Soham) Ltd,Care Establishment,4 - Operations - Providers services,LDP E Cambs Locality - Care,Residential Independent Sector
Cambridgeshire County Council,17-Aug-17,24043241-15859750,-1759.5,The Brambles (Soham) Ltd,Care Establishment,4 - Operations - Providers services,LDP E Cambs Locality - Care,Residential Independent Sector
Cambridgeshire County Council,17-Aug-17,24049484-15859828,-1759.5,The Brambles (Soham) Ltd,Care Establishment,4 - Operations - Providers services,LDP E Cambs Locality - Care,Residential Independent Sector
Cambridgeshire County Council,17-Aug-17,24043237-15859746,-1759.5,The Brambles (Soham) Ltd,Care Establishment,4 - Operations - Providers services,LDP E Cambs Locality - Care,Residential Independent Sector
Cambridgeshire County Council,17-Aug-17,24043247-15859756,-1759.5,The Brambles (Soham) Ltd,Care Establishment,4 - Operations - Providers services,LDP E Cambs Locality - Care,Residential Independent Sector
Cambridgeshire County Council,17-Aug-17,24049463-15859807,-1759.5,The Brambles (Soham) Ltd,Care Establishment,4 - Operations - Providers services,LDP E Cambs Locality - Care,Residential Independent Sector
Cambridgeshire County Council,17-Aug-17,24049470-15859814,-1759.5,The Brambles (Soham) Ltd,Care Establishment,4 - Operations - Providers services,LDP E Cambs Locality - Care,Residential Independent Sector
Cambridgeshire County Council,17-Aug-17,23975394-15858982,-1711.36,Affinity Trust,Care Establishment,2 - Operations - Learning Disability,LDP Fenland Locality - Care,Supported Living
Cambridgeshire County Council,17-Aug-17,23975398-15858985,-1711.36,Affinity Trust,Care Establishment,2 - Operations - Learning Disability,LDP Fenland Locality - Care,Supported Living
Cambridgeshire County Council,17-Aug-17,24046550-15859231,-1711.36,Affinity Trust,Care Establishment,2 - Operations - Learning Disability,LDP Fenland Locality - Care,Supported Living
Cambridgeshire County Council,17-Aug-17,23975392-15858981,-1711.36,Affinity Trust,Care Establishment,4 - Operations - Providers services,LDP Fens - Special Needs,Supported Living
Cambridgeshire County Council,17-Aug-17,23975399-15858986,-1711.36,Affinity Trust,Care Establishment,4 - Operations - Providers services,LDP Fens - Special Needs,Supported Living
Cambridgeshire County Council,17-Aug-17,24040878-15859148,-1711.36,Affinity Trust,Care Establishment,2 - Operations - Learning Disability,LDP Fenland Locality - Care,Supported Living
Cambridgeshire County Council,17-Aug-17,23975383-15858972,-1711.36,Affinity Trust,Care Establishment,4 - Operations - Providers services,LDP Fens - Special Needs,Supported Living
Cambridgeshire County Council,17-Aug-17,23975386-15858975,-1711.36,Affinity Trust,Care Establishment,4 - Operations - Providers services,LDP Fens - Special Needs,Supported Living
Cambridgeshire County Council,17-Aug-17,23975405-15858992,-1711.36,Affinity Trust,Care Establishment,2 - Operations - Learning Disability,LDP Fenland Locality - Care,Supported Living
Cambridgeshire County Council,17-Aug-17,23975408-15858995,-1711.36,Affinity Trust,Care Establishment,2 - Operations - Learning Disability,LDP Fenland Locality - Care,Supported Living
Cambridgeshire County Council,17-Aug-17,24041264-15859155,-1711.36,Affinity Trust,Care Establishment,4 - Operations - Providers services,LDP Fens - Special Needs,Supported Living
Cambridgeshire County Council,17-Aug-17,23975401-15858988,-1711.36,Affinity Trust,Care Establishment,4 - Operations - Providers services,LDP Fens - Special Needs,Supported Living
Cambridgeshire County Council,17-Aug-17,23975380-15858969,-1711.36,Affinity Trust,Care Establishment,2 - Operations - Learning Disability,LDP Fenland Locality - Care,Supported Living
Cambridgeshire County Council,17-Aug-17,23975381-15858970,-1711.36,Affinity Trust,Care Establishment,2 - Operations - Learning Disability,LDP Fenland Locality - Care,Supported Living
Cambridgeshire County Council,17-Aug-17,23975396-15858984,-1711.36,Affinity Trust,Care Establishment,2 - Operations - Learning Disability,LDP Fenland Locality - Care,Supported Living
Cambridgeshire County Council,17-Aug-17,24040875-15859145,-1711.36,Affinity Trust,Care Establishment,2 - Operations - Learning Disability,LDP Fenland Locality - Care,Supported Living
Cambridgeshire County Council,17-Aug-17,24040877-15859147,-1711.36,Affinity Trust,Care Establishment,2 - Operations - Learning Disability,LDP Fenland Locality - Care,Supported Living
Cambridgeshire County Council,17-Aug-17,24041272-15859163,-1711.36,Affinity Trust,Care Establishment,2 - Operations - Learning Disability,LDP Fenland Locality - Care,Supported Living
Cambridgeshire County Council,17-Aug-17,24046560-15859222,-1711.36,Affinity Trust,Care Establishment,4 - Operations - Providers services,LDP Fens - Special Needs,Supported Living
Cambridgeshire County Council,17-Aug-17,24046549-15859230,-1711.36,Affinity Trust,Care Establishment,2 - Operations - Learning Disability,LDP Fenland Locality - Care,Supported Living
Cambridgeshire County Council,17-Aug-17,24046555-15859236,-1711.36,Affinity Trust,Care Establishment,2 - Operations - Learning Disability,LDP Fenland Locality - Care,Supported Living
Cambridgeshire County Council,17-Aug-17,23975389-15858978,-1711.36,Affinity Trust,Care Establishment,2 - Operations - Learning Disability,LDP Fenland Locality - Care,Supported Living
Cambridgeshire County Council,17-Aug-17,24040872-15859142,-1711.36,Affinity Trust,Care Establishment,4 - Operations - Providers services,LDP Fens - Special Needs,Supported Living
Cambridgeshire County Council,17-Aug-17,24046546-15859227,-1711.36,Affinity Trust,Care Establishment,2 - Operations - Learning Disability,LDP Fenland Locality - Care,Supported Living
Cambridgeshire County Council,17-Aug-17,23975384-15858973,-1711.36,Affinity Trust,Care Establishment,4 - Operations - Providers services,LDP Fens - Special Needs,Supported Living
Cambridgeshire County Council,17-Aug-17,23975390-15858979,-1711.36,Affinity Trust,Care Establishment,2 - Operations - Learning Disability,LDP Fenland Locality - Care,Supported Living
Cambridgeshire County Council,17-Aug-17,23975395-15858983,-1711.36,Affinity Trust,Care Establishment,2 - Operations - Learning Disability,LDP Fenland Locality - Care,Supported Living
Cambridgeshire County Council,17-Aug-17,24041266-15859157,-1711.36,Affinity Trust,Care Establishment,2 - Operations - Learning Disability,LDP Fenland Locality - Care,Supported Living
Cambridgeshire County Council,17-Aug-17,24041267-15859158,-1711.36,Affinity Trust,Care Establishment,2 - Operations - Learning Disability,LDP Fenland Locality - Care,Supported Living
Cambridgeshire County Council,17-Aug-17,24041268-15859159,-1711.36,Affinity Trust,Care Establishment,4 - Operations - Providers services,LDP Fens - Special Needs,Supported Living
Cambridgeshire County Council,17-Aug-17,24046559-15859221,-1711.36,Affinity Trust,Care Establishment,2 - Operations - Learning Disability,LDP Fenland Locality - Care,Supported Living
Cambridgeshire County Council,17-Aug-17,24046556-15859237,-1711.36,Affinity Trust,Care Establishment,2 - Operations - Learning Disability,LDP Fenland Locality - Care,Supported Living
Cambridgeshire County Council,24-Aug-17,24097772-15915649,-1711.36,Affinity Trust,Care Establishment,2 - Operations - Learning Disability,LDP Fenland Locality - Care,Supported Living
Cambridgeshire County Council,24-Aug-17,24097758-15915635,-1711.36,Affinity Trust,Care Establishment,2 - Operations - Learning Disability,LDP Fenland Locality - Care,Supported Living
Cambridgeshire County Council,24-Aug-17,24097764-15915641,-1711.36,Affinity Trust,Care Establishment,2 - Operations - Learning Disability,LDP Fenland Locality - Care,Supported Living
Cambridgeshire County Council,24-Aug-17,24097766-15915643,-1711.36,Affinity Trust,Care Establishment,2 - Operations - Learning Disability,LDP Fenland Locality - Care,Supported Living
Cambridgeshire County Council,24-Aug-17,24097773-15915650,-1711.36,Affinity Trust,Care Establishment,2 - Operations - Learning Disability,LDP Fenland Locality - Care,Supported Living
Cambridgeshire County Council,24-Aug-17,24097757-15915634,-1711.36,Affinity Trust,Care Establishment,4 - Operations - Providers services,LDP Fens - Special Needs,Supported Living
Cambridgeshire County Council,24-Aug-17,24097770-15915647,-1711.36,Affinity Trust,Care Establishment,2 - Operations - Learning Disability,LDP Fenland Locality - Care,Supported Living
Cambridgeshire County Council,24-Aug-17,24097775-15915652,-1711.36,Affinity Trust,Care Establishment,4 - Operations - Providers services,LDP Fens - Special Needs,Supported Living
Cambridgeshire County Council,24-Aug-17,24097783-15915660,-1711.36,Affinity Trust,Care Establishment,2 - Operations - Learning Disability,LDP Fenland Locality - Care,Supported Living
Cambridgeshire County Council,24-Aug-17,24097786-15915663,-1711.36,Affinity Trust,Care Establishment,2 - Operations - Learning Disability,LDP Fenland Locality - Care,Supported Living
Cambridgeshire County Council,24-Aug-17,24097789-15915666,-1711.36,Affinity Trust,Care Establishment,4 - Operations - Providers services,LDP Fens - Special Needs,Supported Living
Cambridgeshire County Council,24-Aug-17,24097762-15915639,-1711.36,Affinity Trust,Care Establishment,4 - Operations - Providers services,LDP Fens - Special Needs,Supported Living
Cambridgeshire County Council,24-Aug-17,24097765-15915642,-1711.36,Affinity Trust,Care Establishment,2 - Operations - Learning Disability,LDP Fenland Locality - Care,Supported Living
Cambridgeshire County Council,24-Aug-17,24097782-15915659,-1711.36,Affinity Trust,Care Establishment,4 - Operations - Providers services,LDP Fens - Special Needs,Supported Living
Cambridgeshire County Council,24-Aug-17,24097790-15915667,-1711.36,Affinity Trust,Care Establishment,2 - Operations - Learning Disability,LDP Fenland Locality - Care,Supported Living
Cambridgeshire County Council,24-Aug-17,24097759-15915636,-1711.36,Affinity Trust,Care Establishment,4 - Operations - Providers services,LDP Fens - Special Needs,Supported Living
Cambridgeshire County Council,14-Aug-17,23991141-15838864,-1672.72,Fosterplus Ltd,Care Establishment,S&C,Placements - Social Care,Agency Placements - In Cambs
Cambridgeshire County Council,17-Aug-17,10871732-15861481,-1649.78,The Regard Partnership Ltd,Care Establishment,4 - Operations - Providers services,LDP Huntingdonshire Locality - Care,Residential Independent Sector
Cambridgeshire County Council,24-Aug-17,24099671-15915685,-1640.1,Affinity Trust,Care Establishment,2 - Operations - Learning Disability,LDP Fenland Locality - Care,Supported Living
Cambridgeshire County Council,24-Aug-17,24096646-15915620,-1640.1,Affinity Trust,Care Establishment,2 - Operations - Learning Disability,LDP Fenland Locality - Care,Supported Living
Cambridgeshire County Council,24-Aug-17,24096654-15915627,-1640.1,Affinity Trust,Care Establishment,2 - Operations - Learning Disability,LDP Fenland Locality - Care,Supported Living
Cambridgeshire County Council,24-Aug-17,24096657-15915630,-1640.1,Affinity Trust,Care Establishment,2 - Operations - Learning Disability,LDP Fenland Locality - Care,Supported Living
Cambridgeshire County Council,17-Aug-17,23976165-15868297,-1525.83,Voyage,Care Establishment,4 - Operations - Providers services,LDP Cambs City - Special Needs,Residential Independent Sector
Cambridgeshire County Council,17-Aug-17,24032215-15868496,-1525.83,Voyage,Care Establishment,2 - Operations - Learning Disability,LDP South Cambs Locality - Care,Residential Independent Sector
Cambridgeshire County Council,17-Aug-17,24034419-15868644,-1525.83,Voyage,Care Establishment,4 - Operations - Providers services,LDP City Locality - Care,Residential Independent Sector
Cambridgeshire County Council,17-Aug-17,23970888-15867837,-1525.83,Voyage,Care Establishment,4 - Operations - Providers services,LDP South Cambs - Special Needs,Residential Independent Sector
Cambridgeshire County Council,17-Aug-17,24034996-15868710,-1525.83,Voyage,Care Establishment,4 - Operations - Providers services,LDP City Locality - Care,Residential Independent Sector
Cambridgeshire County Council,17-Aug-17,23970376-15867771,-1515.46,Voyage,Care Establishment,2 - Operations - Learning Disability,LDP South Cambs Locality - Care,Residential Independent Sector
Cambridgeshire County Council,17-Aug-17,23970401-15867854,-1515.46,Voyage,Care Establishment,2 - Operations - Learning Disability,LDP South Cambs Locality - Care,Residential Independent Sector
Cambridgeshire County Council,17-Aug-17,23970402-15867855,-1515.46,Voyage,Care Establishment,2 - Operations - Learning Disability,LDP South Cambs Locality - Care,Residential Independent Sector
Cambridgeshire County Council,17-Aug-17,23972221-15867927,-1515.46,Voyage,Care Establishment,2 - Operations - Learning Disability,LDP South Cambs Locality - Care,Residential Independent Sector
Cambridgeshire County Council,17-Aug-17,23972242-15867948,-1515.46,Voyage,Care Establishment,2 - Operations - Learning Disability,LDP South Cambs Locality - Care,Residential Independent Sector
Cambridgeshire County Council,17-Aug-17,23972244-15867950,-1515.46,Voyage,Care Establishment,2 - Operations - Learning Disability,LDP South Cambs Locality - Care,Residential Independent Sector
Cambridgeshire County Council,17-Aug-17,23972249-15867955,-1515.46,Voyage,Care Establishment,2 - Operations - Learning Disability,LDP South Cambs Locality - Care,Residential Independent Sector
Cambridgeshire County Council,17-Aug-17,23972280-15867986,-1515.46,Voyage,Care Establishment,2 - Operations - Learning Disability,LDP South Cambs Locality - Care,Residential Independent Sector
Cambridgeshire County Council,17-Aug-17,23972304-15868010,-1515.46,Voyage,Care Establishment,2 - Operations - Learning Disability,LDP South Cambs Locality - Care,Residential Independent Sector
Cambridgeshire County Council,17-Aug-17,23972317-15868023,-1515.46,Voyage,Care Establishment,2 - Operations - Learning Disability,LDP South Cambs Locality - Care,Residential Independent Sector
Cambridgeshire County Council,17-Aug-17,23973356-15868038,-1515.46,Voyage,Care Establishment,2 - Operations - Learning Disability,LDP South Cambs Locality - Care,Residential Independent Sector
Cambridgeshire County Council,17-Aug-17,23973363-15868045,-1515.46,Voyage,Care Establishment,2 - Operations - Learning Disability,LDP South Cambs Locality - Care,Residential Independent Sector
Cambridgeshire County Council,17-Aug-17,23973389-15868071,-1515.46,Voyage,Care Establishment,2 - Operations - Learning Disability,LDP South Cambs Locality - Care,Residential Independent Sector
Cambridgeshire County Council,17-Aug-17,23973391-15868073,-1515.46,Voyage,Care Establishment,2 - Operations - Learning Disability,LDP South Cambs Locality - Care,Residential Independent Sector
Cambridgeshire County Council,17-Aug-17,23973405-15868087,-1515.46,Voyage,Care Establishment,2 - Operations - Learning Disability,LDP South Cambs Locality - Care,Residential Independent Sector
Cambridgeshire County Council,17-Aug-17,23973353-15868174,-1515.46,Voyage,Care Establishment,2 - Operations - Learning Disability,LDP South Cambs Locality - Care,Residential Independent Sector
Cambridgeshire County Council,17-Aug-17,23973354-15868175,-1515.46,Voyage,Care Establishment,2 - Operations - Learning Disability,LDP South Cambs Locality - Care,Residential Independent Sector
Cambridgeshire County Council,17-Aug-17,23974263-15868201,-1515.46,Voyage,Care Establishment,2 - Operations - Learning Disability,LDP South Cambs Locality - Care,Residential Independent Sector
Cambridgeshire County Council,17-Aug-17,23974280-15868218,-1515.46,Voyage,Care Establishment,2 - Operations - Learning Disability,LDP South Cambs Locality - Care,Residential Independent Sector
Cambridgeshire County Council,17-Aug-17,23970381-15867776,-1515.46,Voyage,Care Establishment,2 - Operations - Learning Disability,LDP South Cambs Locality - Care,Residential Independent Sector
Cambridgeshire County Council,17-Aug-17,23970392-15867787,-1515.46,Voyage,Care Establishment,2 - Operations - Learning Disability,LDP South Cambs Locality - Care,Residential Independent Sector
Cambridgeshire County Council,17-Aug-17,23970399-15867852,-1515.46,Voyage,Care Establishment,2 - Operations - Learning Disability,LDP South Cambs Locality - Care,Residential Independent Sector
Cambridgeshire County Council,17-Aug-17,23972331-15867907,-1515.46,Voyage,Care Establishment,2 - Operations - Learning Disability,LDP South Cambs Locality - Care,Residential Independent Sector
Cambridgeshire County Council,17-Aug-17,23972235-15867941,-1515.46,Voyage,Care Establishment,2 - Operations - Learning Disability,LDP South Cambs Locality - Care,Residential Independent Sector
Cambridgeshire County Council,17-Aug-17,23972272-15867978,-1515.46,Voyage,Care Establishment,2 - Operations - Learning Disability,LDP South Cambs Locality - Care,Residential Independent Sector
Cambridgeshire County Council,17-Aug-17,23972290-15867996,-1515.46,Voyage,Care Establishment,2 - Operations - Learning Disability,LDP South Cambs Locality - Care,Residential Independent Sector
Cambridgeshire County Council,17-Aug-17,23972295-15868001,-1515.46,Voyage,Care Establishment,2 - Operations - Learning Disability,LDP South Cambs Locality - Care,Residential Independent Sector
Cambridgeshire County Council,17-Aug-17,23972298-15868004,-1515.46,Voyage,Care Establishment,2 - Operations - Learning Disability,LDP South Cambs Locality - Care,Residential Independent Sector
Cambridgeshire County Council,17-Aug-17,23972313-15868019,-1515.46,Voyage,Care Establishment,2 - Operations - Learning Disability,LDP South Cambs Locality - Care,Residential Independent Sector
Cambridgeshire County Council,17-Aug-17,23973355-15868037,-1515.46,Voyage,Care Establishment,2 - Operations - Learning Disability,LDP South Cambs Locality - Care,Residential Independent Sector
Cambridgeshire County Council,17-Aug-17,23973359-15868041,-1515.46,Voyage,Care Establishment,2 - Operations - Learning Disability,LDP South Cambs Locality - Care,Residential Independent Sector
Cambridgeshire County Council,17-Aug-17,23973365-15868047,-1515.46,Voyage,Care Establishment,2 - Operations - Learning Disability,LDP South Cambs Locality - Care,Residential Independent Sector
Cambridgeshire County Council,17-Aug-17,23973401-15868083,-1515.46,Voyage,Care Establishment,2 - Operations - Learning Disability,LDP South Cambs Locality - Care,Residential Independent Sector
Cambridgeshire County Council,17-Aug-17,23973404-15868086,-1515.46,Voyage,Care Establishment,2 - Operations - Learning Disability,LDP South Cambs Locality - Care,Residential Independent Sector
Cambridgeshire County Council,17-Aug-17,23973348-15868169,-1515.46,Voyage,Care Establishment,2 - Operations - Learning Disability,LDP South Cambs Locality - Care,Residential Independent Sector
Cambridgeshire County Council,17-Aug-17,23974279-15868217,-1515.46,Voyage,Care Establishment,2 - Operations - Learning Disability,LDP South Cambs Locality - Care,Residential Independent Sector
Cambridgeshire County Council,17-Aug-17,23970379-15867774,-1515.46,Voyage,Care Establishment,2 - Operations - Learning Disability,LDP South Cambs Locality - Care,Residential Independent Sector
Cambridgeshire County Council,17-Aug-17,23970380-15867775,-1515.46,Voyage,Care Establishment,2 - Operations - Learning Disability,LDP South Cambs Locality - Care,Residential Independent Sector
Cambridgeshire County Council,17-Aug-17,23970389-15867784,-1515.46,Voyage,Care Establishment,2 - Operations - Learning Disability,LDP South Cambs Locality - Care,Residential Independent Sector
Cambridgeshire County Council,17-Aug-17,23975001-15868275,-1515.46,Voyage,Care Establishment,2 - Operations - Learning Disability,LDP South Cambs Locality - Care,Residential Independent Sector
Cambridgeshire County Council,17-Aug-17,23972225-15867931,-1515.46,Voyage,Care Establishment,2 - Operations - Learning Disability,LDP South Cambs Locality - Care,Residential Independent Sector
Cambridgeshire County Council,17-Aug-17,23972252-15867958,-1515.46,Voyage,Care Establishment,2 - Operations - Learning Disability,LDP South Cambs Locality - Care,Residential Independent Sector
Cambridgeshire County Council,17-Aug-17,23972256-15867962,-1515.46,Voyage,Care Establishment,2 - Operations - Learning Disability,LDP South Cambs Locality - Care,Residential Independent Sector
